Organisation name,Organisation Code,Effective date,Directorate / service where expenditure incurred,Service Category label,Service category URI,Supplier (Beneficiary) name,Local supplier (beneficiary) internal reference,Supplier,Supplier registered charity number,VCSE grant,Payment date - G/L Date,Transaction number,Net Amount,Irrecoverable VAT,purpose_of_spend,Procurement classification / merchant category: Council�s procurement category name,Procurement classification / merchant category: CPV label,Procurement classification / merchant category: CPV code,Procurement classification / merchant category: Proclass label,Procurement classification / merchant category: Proclass code,card_transaction
The Royal Borough of Kensington and Chelsea,RBKC,,Adult Social Care & Health,Adult Social Care,,Medequip Assistive Technology Ltd ,1234994,,,,09/04/2020,2200088987,"122,955.64",,Joint Authorities,,,,,,No
The Royal Borough of Kensington and Chelsea,RBKC,,Adult Social Care & Health,Adult Social Care,,Medequip Assistive Technology Ltd ,1234994,,,,28/05/2020,2200099379,"87,013.58",,Hired and Contracted Services,,,,,,No
The Royal Borough of Kensington and Chelsea,RBKC,,Adult Social Care & Health,Adult Social Care,,Medequip Assistive Technology Ltd ,1234994,,,,01/06/2020,2200100150,"1,032.00",,Joint Authorities,,,,,,No
The Royal Borough of Kensington and Chelsea,RBKC,,Adult Social Care & Health,Adult Social Care,,Medequip Assistive Technology Ltd ,1234994,,,,12/06/2020,2200102509,"10,500.00",,Hired and Contracted Services,,,,,,No
The Royal Borough of Kensington and Chelsea,RBKC,,Adult Social Care & Health,Adult Social Care,,Medequip Assistive Technology Ltd ,1234994,,,,12/06/2020,2200102510,"10,740.00",,Hired and Contracted Services,,,,,,No
The Royal Borough of Kensington and Chelsea,RBKC,,Adult Social Care & Health,Adult Social Care,,Medequip Assistive Technology Ltd ,1234994,,,,12/06/2020,2200102512,"108,330.97",,Hired and Contracted Services,,,,,,No
The Royal Borough of Kensington and Chelsea,RBKC,,Adult Social Care & Health,Adult Social Care,,Medequip Assistive Technology Ltd ,1234994,,,,12/06/2020,2200102515,"6,932.10",,Hired and Contracted Services,,,,,,No
The Royal Borough of Kensington and Chelsea,RBKC,,Adult Social Care & Health,Adult Social Care,,Red Alert Ltd ,1231238,,,,30/06/2020,2200105889,700,,Payments to Voluntary bodies,,,,,,No
The Royal Borough of Kensington and Chelsea,RBKC,,Adult Social Care & Health,Adult Social Care,,Tunstall Healthcare (UK) Ltd (Use 3012996),1235586,,,,23/04/2020,2200091536,"4,800.00",,Payments to Voluntary bodies,,,,,,No
The Royal Borough of Kensington and Chelsea,RBKC,,Adult Social Care & Health,Adult Social Care,,Tunstall Healthcare (UK) Ltd (Use 3012996),1235586,,,,28/04/2020,2200092422,"2,180.00",,Payments to Voluntary bodies,,,,,,No
The Royal Borough of Kensington and Chelsea,RBKC,,Adult Social Care & Health,Adult Social Care,,Tunstall Healthcare (UK) Ltd (Use 3012996),1235586,,,,30/04/2020,2200093251,"3,230.00",,Payments to Voluntary bodies,,,,,,No
The Royal Borough of Kensington and Chelsea,RBKC,,Adult Social Care & Health,Adult Social Care,,Tunstall Response Ltd ,1235587,,,,27/04/2020,2200092118,"13,038.48",,Domestic Supplies,,,,,,No
The Royal Borough of Kensington and Chelsea,RBKC,,Environment & Communities,Planning and Place,,A J Oakes And Partners,1232092,,,,25/06/2020,2200105081,"1,300.00",,Service Charges : Premises,,,,,,No
The Royal Borough of Kensington and Chelsea,RBKC,,Environment & Communities,Planning and Place,,London Borough Of Hackney,1265736,,,,20/04/2020,2200090700,649,,Registration and Inspection Fees,,,,,,No
The Royal Borough of Kensington and Chelsea,RBKC,,Environment & Communities,Planning and Place,,Dataplanit T/A 1 Big Data Management Ltd,1233959,,,,29/06/2020,2200105751,788,,Printing,,,,,,No
The Royal Borough of Kensington and Chelsea,RBKC,,Environment & Communities,Planning and Place,,Genius Within CIC,1257573,,,,02/04/2020,2200087605,"1,344.00",,IT Software,,,,,,No
The Royal Borough of Kensington and Chelsea,RBKC,,Environment & Communities,Planning and Place,,Idox Software Ltd ,1230453,,,,29/04/2020,2200093049,"4,750.00",,IT Software,,,,,,No
The Royal Borough of Kensington and Chelsea,RBKC,,Environment & Communities,Planning and Place,,Ihs Global Ltd ,1234760,,,,27/04/2020,2200092357,"5,901.00",,Subscriptions,,,,,,No
The Royal Borough of Kensington and Chelsea,RBKC,,Environment & Communities,Environmental Health,,Pembridge Investments Ltd,D000000023,,,,25/06/2020,3110201341,"3,921.67",,Income from costs charged to outside bodies,,,,,,No
The Royal Borough of Kensington and Chelsea,RBKC,,Environment & Communities,"Transport, Highways, Leisure & Parks",,C J Jordan & Son Ltd ,1233031,,,,07/04/2020,2200088549,"1,340.64",,Creditors Control : AP GRIR,,,,,,No
The Royal Borough of Kensington and Chelsea,RBKC,,Environment & Communities,"Transport, Highways, Leisure & Parks",,C J Jordan & Son Ltd ,1233031,,,,07/04/2020,2200088580,827.69,,Creditors Control : AP GRIR,,,,,,No
The Royal Borough of Kensington and Chelsea,RBKC,,Environment & Communities,"Transport, Highways, Leisure & Parks",,C J Jordan & Son Ltd ,1233031,,,,16/04/2020,2200090215,"1,453.36",,Creditors Control : AP GRIR,,,,,,No
The Royal Borough of Kensington and Chelsea,RBKC,,Environment & Communities,"Transport, Highways, Leisure & Parks",,C J Jordan & Son Ltd ,1233031,,,,23/04/2020,2200091469,703.84,,Creditors Control : AP GRIR,,,,,,No
The Royal Borough of Kensington and Chelsea,RBKC,,Environment & Communities,"Transport, Highways, Leisure & Parks",,C J Jordan & Son Ltd ,1233031,,,,11/05/2020,2200095408,"1,657.52",,Creditors Control : AP GRIR,,,,,,No
The Royal Borough of Kensington and Chelsea,RBKC,,Environment & Communities,"Transport, Highways, Leisure & Parks",,C J Jordan & Son Ltd ,1233031,,,,29/05/2020,2200099511,527.88,,Creditors Control : AP GRIR,,,,,,No
The Royal Borough of Kensington and Chelsea,RBKC,,Environment & Communities,"Transport, Highways, Leisure & Parks",,C J Jordan & Son Ltd ,1233031,,,,11/06/2020,2200102327,601.76,,Creditors Control : AP GRIR,,,,,,No
The Royal Borough of Kensington and Chelsea,RBKC,,Environment & Communities,"Transport, Highways, Leisure & Parks",,C J Jordan & Son Ltd ,1233031,,,,11/06/2020,2200102328,"1,612.90",,Creditors Control : AP GRIR,,,,,,No
The Royal Borough of Kensington and Chelsea,RBKC,,Environment & Communities,"Transport, Highways, Leisure & Parks",,C J Jordan & Son Ltd ,1233031,,,,19/06/2020,2200103879,879.8,,Creditors Control : AP GRIR,,,,,,No
The Royal Borough of Kensington and Chelsea,RBKC,,Environment & Communities,"Transport, Highways, Leisure & Parks",,Redact Details,D000000023,,,,08/04/2020,3110178528,"3,411.00",,General Fees and Charges,,,,,,No
The Royal Borough of Kensington and Chelsea,RBKC,,Environment & Communities,"Transport, Highways, Leisure & Parks",,Idverde Ltd ,1231380,,,,01/04/2020,2200087252,"38,185.24",,Creditors Control : AP GRIR,,,,,,No
The Royal Borough of Kensington and Chelsea,RBKC,,Environment & Communities,"Transport, Highways, Leisure & Parks",,Quadron Services Ltd T/A Idverde ,1231423,,,,07/04/2020,2200088597,"5,724.54",,Payments to Private Contractors,,,,,,No
The Royal Borough of Kensington and Chelsea,RBKC,,Environment & Communities,"Transport, Highways, Leisure & Parks",,Quadron Services Ltd T/A Idverde ,1231423,,,,11/05/2020,2200095583,"38,185.24",,Creditors Control : AP GRIR,,,,,,No
The Royal Borough of Kensington and Chelsea,RBKC,,Environment & Communities,"Transport, Highways, Leisure & Parks",,Quadron Services Ltd T/A Idverde ,1231423,,,,12/05/2020,2200095754,"76,496.00",,Creditors Control : AP GRIR,,,,,,No
The Royal Borough of Kensington and Chelsea,RBKC,,Environment & Communities,"Transport, Highways, Leisure & Parks",,Quadron Services Ltd T/A Idverde ,1231423,,,,04/06/2020,2200100739,"38,185.24",,Creditors Control : AP GRIR,,,,,,No
The Royal Borough of Kensington and Chelsea,RBKC,,Grenfell Team,Director for Resources and Assets,,City Pantry Ltd,1233387,,,,05/06/2020,2200101145,896.4,,Hired and Contracted Services,,,,,,No
The Royal Borough of Kensington and Chelsea,RBKC,,Grenfell Team,Director for Resources and Assets,,City Pantry Ltd,1233387,,,,15/06/2020,2200102841,615,,Hired and Contracted Services,,,,,,No
The Royal Borough of Kensington and Chelsea,RBKC,,Statutory Year End Accounting,Statutory Year End Accounting,,3Bm Ltd ,1232075,,,,01/04/2020,2200087462,"1,708.70",,Payments to main contractor,,,,,,No
The Royal Borough of Kensington and Chelsea,RBKC,,Statutory Year End Accounting,Statutory Year End Accounting,,3Bm Ltd ,1232075,,,,01/04/2020,2200087465,"4,481.22",,Payments to main contractor,,,,,,No
The Royal Borough of Kensington and Chelsea,RBKC,,Statutory Year End Accounting,Statutory Year End Accounting,,3Bm Ltd ,1232075,,,,08/04/2020,2200088728,"146,495.47",,Payments to main contractor,,,,,,No
The Royal Borough of Kensington and Chelsea,RBKC,,Statutory Year End Accounting,Statutory Year End Accounting,,3Bm Ltd ,1232075,,,,14/04/2020,2200089538,"9,764.58",,Payments to main contractor,,,,,,No
The Royal Borough of Kensington and Chelsea,RBKC,,Statutory Year End Accounting,Statutory Year End Accounting,,3Bm Ltd ,1232075,,,,14/04/2020,2200089539,"25,531.07",,Payments to main contractor,,,,,,No
The Royal Borough of Kensington and Chelsea,RBKC,,Statutory Year End Accounting,Statutory Year End Accounting,,3Bm Ltd ,1232075,,,,16/04/2020,2200090238,"36,401.11",,Payments to main contractor,,,,,,No
The Royal Borough of Kensington and Chelsea,RBKC,,Statutory Year End Accounting,Statutory Year End Accounting,,3Bm Ltd ,1232075,,,,16/04/2020,2200090239,"30,091.68",,Payments to main contractor,,,,,,No
The Royal Borough of Kensington and Chelsea,RBKC,,Statutory Year End Accounting,Statutory Year End Accounting,,3Bm Ltd ,1232075,,,,28/04/2020,2200092431,860.2,,Payments to main contractor,,,,,,No
The Royal Borough of Kensington and Chelsea,RBKC,,Statutory Year End Accounting,Statutory Year End Accounting,,3Bm Ltd ,1232075,,,,28/04/2020,2200092438,"5,854.98",,Payments to main contractor,,,,,,No
The Royal Borough of Kensington and Chelsea,RBKC,,Statutory Year End Accounting,Statutory Year End Accounting,,3Bm Ltd ,1232075,,,,04/05/2020,2200093909,"9,464.40",,Payments to main contractor,,,,,,No
The Royal Borough of Kensington and Chelsea,RBKC,,Statutory Year End Accounting,Statutory Year End Accounting,,3Bm Ltd ,1232075,,,,04/05/2020,2200093910,"2,902.50",,Payments to main contractor,,,,,,No
The Royal Borough of Kensington and Chelsea,RBKC,,Statutory Year End Accounting,Statutory Year End Accounting,,3Bm Ltd ,1232075,,,,04/05/2020,2200093911,"1,816.75",,Payments to main contractor,,,,,,No
The Royal Borough of Kensington and Chelsea,RBKC,,Statutory Year End Accounting,Statutory Year End Accounting,,3Bm Ltd ,1232075,,,,04/05/2020,2200093912,"9,857.75",,Payments to main contractor,,,,,,No
The Royal Borough of Kensington and Chelsea,RBKC,,Statutory Year End Accounting,Statutory Year End Accounting,,3Bm Ltd ,1232075,,,,04/05/2020,2200093913,"1,343.75",,Payments to main contractor,,,,,,No
The Royal Borough of Kensington and Chelsea,RBKC,,Statutory Year End Accounting,Statutory Year End Accounting,,3Bm Ltd ,1232075,,,,27/05/2020,2200099082,"2,000.00",,Payments to main contractor,,,,,,No
The Royal Borough of Kensington and Chelsea,RBKC,,Statutory Year End Accounting,Statutory Year End Accounting,,3Bm Ltd ,1232075,,,,27/05/2020,2200099083,860.2,,Payments to main contractor,,,,,,No
The Royal Borough of Kensington and Chelsea,RBKC,,Statutory Year End Accounting,Statutory Year End Accounting,,3Bm Ltd ,1232075,,,,27/05/2020,2200099084,"2,000.00",,Payments to main contractor,,,,,,No
The Royal Borough of Kensington and Chelsea,RBKC,,Statutory Year End Accounting,Statutory Year End Accounting,,3Bm Ltd ,1232075,,,,27/05/2020,2200099087,"4,975.00",,Payments to main contractor,,,,,,No
The Royal Borough of Kensington and Chelsea,RBKC,,Statutory Year End Accounting,Statutory Year End Accounting,,3Bm Ltd ,1232075,,,,05/06/2020,2200101080,"49,500.00",,Payments to main contractor,,,,,,No
The Royal Borough of Kensington and Chelsea,RBKC,,Statutory Year End Accounting,Statutory Year End Accounting,,3Bm Ltd ,1232075,,,,05/06/2020,2200101098,660,,Payments to main contractor,,,,,,No
The Royal Borough of Kensington and Chelsea,RBKC,,Statutory Year End Accounting,Statutory Year End Accounting,,3Bm Ltd ,1232075,,,,08/06/2020,2200101490,"2,270.90",,Payments to main contractor,,,,,,No
The Royal Borough of Kensington and Chelsea,RBKC,,Statutory Year End Accounting,Statutory Year End Accounting,,3Bm Ltd ,1232075,,,,18/06/2020,2200103604,"2,250.00",,Payments to main contractor,,,,,,No
The Royal Borough of Kensington and Chelsea,RBKC,,Statutory Year End Accounting,Statutory Year End Accounting,,3Bm Ltd ,1232075,,,,24/06/2020,2200104702,"36,872.50",,Payments to main contractor,,,,,,No
The Royal Borough of Kensington and Chelsea,RBKC,,Statutory Year End Accounting,Statutory Year End Accounting,,3Bm Ltd ,1232075,,,,26/06/2020,2200105258,"1,826.36",,Payments to main contractor,,,,,,No
The Royal Borough of Kensington and Chelsea,RBKC,,Statutory Year End Accounting,Statutory Year End Accounting,,3Bm Ltd ,1232075,,,,26/06/2020,2200105263,"1,826.36",,Payments to main contractor,,,,,,No
The Royal Borough of Kensington and Chelsea,RBKC,,Statutory Year End Accounting,Statutory Year End Accounting,,AB Heritage Limited,1269029,,,,22/05/2020,2200098067,"1,197.00",,Payments to main contractor,,,,,,No
The Royal Borough of Kensington and Chelsea,RBKC,,Statutory Year End Accounting,Statutory Year End Accounting,,ABCA Systems LTD ,1252858,,,,21/04/2020,2200091052,"16,889.17",,Payments to main contractor,,,,,,No
The Royal Borough of Kensington and Chelsea,RBKC,,Statutory Year End Accounting,Statutory Year End Accounting,,ABCA Systems LTD ,1252858,,,,21/04/2020,2200091054,"10,847.01",,Payments to main contractor,,,,,,No
The Royal Borough of Kensington and Chelsea,RBKC,,Statutory Year End Accounting,Statutory Year End Accounting,,Abc Building & Maintenance Contractors,1231156,,,,28/05/2020,2200099326,"2,920.45",,Special Maintenance,,,,,,No
The Royal Borough of Kensington and Chelsea,RBKC,,Statutory Year End Accounting,Statutory Year End Accounting,,Abc Building & Maintenance Contractors,1231156,,,,28/05/2020,2200099327,"12,944.32",,Special Maintenance,,,,,,No
The Royal Borough of Kensington and Chelsea,RBKC,,Statutory Year End Accounting,Statutory Year End Accounting,,Absolute Audio Visual Sol,1265383,,,,13/05/2020,2200096255,"2,585.00",,Professional Fees : Non Legal,,,,,,No
The Royal Borough of Kensington and Chelsea,RBKC,,Statutory Year End Accounting,Statutory Year End Accounting,,Absolute Audio Visual Sol,1265383,,,,13/05/2020,2200096256,"3,530.17",,Professional Fees : Non Legal,,,,,,No
The Royal Borough of Kensington and Chelsea,RBKC,,Statutory Year End Accounting,Statutory Year End Accounting,,Adair Limited ,1254959,,,,17/04/2020,2200090364,"2,175.00",,Professional Fees : Non Legal,,,,,,No
The Royal Borough of Kensington and Chelsea,RBKC,,Statutory Year End Accounting,Statutory Year End Accounting,,Adam Architecture Ltd ,1232322,,,,02/04/2020,2200087460,"30,744.00",,Creditors Control : AP GRIR,,,,,,No
The Royal Borough of Kensington and Chelsea,RBKC,,Statutory Year End Accounting,Statutory Year End Accounting,,Adam Architecture Ltd ,1232322,,,,02/04/2020,2200087463,"48,334.50",,Creditors Control : AP GRIR,,,,,,No
The Royal Borough of Kensington and Chelsea,RBKC,,Statutory Year End Accounting,Statutory Year End Accounting,,Adam Architecture Ltd ,1232322,,,,02/04/2020,2200087472,"58,516.00",,Creditors Control : AP GRIR,,,,,,No
The Royal Borough of Kensington and Chelsea,RBKC,,Statutory Year End Accounting,Statutory Year End Accounting,,Adam Architecture Ltd ,1232322,,,,20/04/2020,2200090734,"22,150.00",,Site Works,,,,,,No
The Royal Borough of Kensington and Chelsea,RBKC,,Statutory Year End Accounting,Statutory Year End Accounting,,Adam Architecture Ltd ,1232322,,,,20/04/2020,2200090735,"27,095.00",,Site Works,,,,,,No
The Royal Borough of Kensington and Chelsea,RBKC,,Statutory Year End Accounting,Statutory Year End Accounting,,Adam Architecture Ltd ,1232322,,,,20/04/2020,2200090736,"27,168.33",,Site Works,,,,,,No
The Royal Borough of Kensington and Chelsea,RBKC,,Statutory Year End Accounting,Statutory Year End Accounting,,Adam Architecture Ltd ,1232322,,,,22/04/2020,2200091253,"27,095.00",,Site Works,,,,,,No
The Royal Borough of Kensington and Chelsea,RBKC,,Statutory Year End Accounting,Statutory Year End Accounting,,Adam Architecture Ltd ,1232322,,,,06/05/2020,2200094660,"8,636.67",,Site Works,,,,,,No
The Royal Borough of Kensington and Chelsea,RBKC,,Statutory Year End Accounting,Statutory Year End Accounting,,Adam Architecture Ltd ,1232322,,,,06/05/2020,2200094662,"15,225.00",,Site Works,,,,,,No
The Royal Borough of Kensington and Chelsea,RBKC,,Statutory Year End Accounting,Statutory Year End Accounting,,Adam Architecture Ltd ,1232322,,,,11/06/2020,2200102363,"11,871.00",,Site Works,,,,,,No
The Royal Borough of Kensington and Chelsea,RBKC,,Statutory Year End Accounting,Statutory Year End Accounting,,Alexander Scaffold Ltd ,1231166,,,,22/05/2020,2200098091,"2,336.50",,Payments to main contractor,,,,,,No
The Royal Borough of Kensington and Chelsea,RBKC,,Statutory Year End Accounting,Statutory Year End Accounting,,Alexander Scaffold Ltd ,1231166,,,,22/05/2020,2200098092,"2,336.50",,Payments to main contractor,,,,,,No
The Royal Borough of Kensington and Chelsea,RBKC,,Statutory Year End Accounting,Statutory Year End Accounting,,Alexander Scaffold Ltd ,1231166,,,,22/05/2020,2200098093,"4,205.15",,Payments to main contractor,,,,,,No
The Royal Borough of Kensington and Chelsea,RBKC,,Statutory Year End Accounting,Statutory Year End Accounting,,Alexander Scaffold Ltd ,1231166,,,,22/05/2020,2200098094,"2,336.50",,Payments to main contractor,,,,,,No
The Royal Borough of Kensington and Chelsea,RBKC,,Statutory Year End Accounting,Statutory Year End Accounting,,Allchimneys London UK Ltd,1259398,,,,16/06/2020,2200103065,"9,600.00",,Payments to main contractor,,,,,,No
The Royal Borough of Kensington and Chelsea,RBKC,,Statutory Year End Accounting,Statutory Year End Accounting,,Allies & Morrison LLP ,1232371,,,,17/04/2020,2200090341,"10,669.50",,Creditors Control : AP GRIR,,,,,,No
The Royal Borough of Kensington and Chelsea,RBKC,,Statutory Year End Accounting,Statutory Year End Accounting,,Allies & Morrison LLP ,1232371,,,,17/04/2020,2200090344,"8,360.00",,Creditors Control : AP GRIR,,,,,,No
The Royal Borough of Kensington and Chelsea,RBKC,,Statutory Year End Accounting,Statutory Year End Accounting,,Allies & Morrison LLP ,1232371,,,,17/04/2020,2200090371,"21,644.00",,Creditors Control : AP GRIR,,,,,,No
The Royal Borough of Kensington and Chelsea,RBKC,,Statutory Year End Accounting,Statutory Year End Accounting,,Allies & Morrison LLP ,1232371,,,,17/04/2020,2200090374,870.79,,Creditors Control : AP GRIR,,,,,,No
The Royal Borough of Kensington and Chelsea,RBKC,,Statutory Year End Accounting,Statutory Year End Accounting,,Allies & Morrison LLP ,1232371,,,,17/04/2020,2200090376,"2,191.50",,Creditors Control : AP GRIR,,,,,,No
The Royal Borough of Kensington and Chelsea,RBKC,,Statutory Year End Accounting,Statutory Year End Accounting,,Allies & Morrison LLP ,1232371,,,,20/04/2020,2200090629,"61,125.00",,Creditors Control : AP GRIR,,,,,,No
The Royal Borough of Kensington and Chelsea,RBKC,,Statutory Year End Accounting,Statutory Year End Accounting,,Allies & Morrison LLP ,1232371,,,,27/04/2020,2200092291,"13,082.00",,Creditors Control : AP GRIR,,,,,,No
The Royal Borough of Kensington and Chelsea,RBKC,,Statutory Year End Accounting,Statutory Year End Accounting,,Allies & Morrison LLP ,1232371,,,,27/04/2020,2200092293,800,,Creditors Control : AP GRIR,,,,,,No
The Royal Borough of Kensington and Chelsea,RBKC,,Statutory Year End Accounting,Statutory Year End Accounting,,Allies & Morrison LLP ,1232371,,,,19/05/2020,2200097144,"150,052.00",,Payments to main contractor,,,,,,No
The Royal Borough of Kensington and Chelsea,RBKC,,Statutory Year End Accounting,Statutory Year End Accounting,,Anstey Horne & Co Ltd ,1232407,,,,06/04/2020,2200088262,935,,Other Consultants,,,,,,No
The Royal Borough of Kensington and Chelsea,RBKC,,Statutory Year End Accounting,Statutory Year End Accounting,,Aquaneed Ltd,1260944,,,,07/05/2020,2200094990,"4,248.29",,Payments to main contractor,,,,,,No
The Royal Borough of Kensington and Chelsea,RBKC,,Statutory Year End Accounting,Statutory Year End Accounting,,Arcadis Llp ,1232430,,,,13/05/2020,2200096160,"2,075.00",,Professional Fees : Non Legal,,,,,,No
The Royal Borough of Kensington and Chelsea,RBKC,,Statutory Year End Accounting,Statutory Year End Accounting,,Arcadis Llp ,1232430,,,,01/06/2020,2200099969,"29,000.00",,Construction : enhancements,,,,,,No
The Royal Borough of Kensington and Chelsea,RBKC,,Statutory Year End Accounting,Statutory Year End Accounting,,Arcus Consulting Llp,1265536,,,,13/05/2020,2200096257,"7,091.00",,Site Works,,,,,,No
The Royal Borough of Kensington and Chelsea,RBKC,,Statutory Year End Accounting,Statutory Year End Accounting,,Ark Build Plc ,1231173,,,,06/04/2020,2200088198,"115,197.29",,Site Works,,,,,,No
The Royal Borough of Kensington and Chelsea,RBKC,,Statutory Year End Accounting,Statutory Year End Accounting,,Ark Build Plc ,1231173,,,,06/04/2020,2200088200,"249,474.80",,Site Works,,,,,,No
The Royal Borough of Kensington and Chelsea,RBKC,,Statutory Year End Accounting,Statutory Year End Accounting,,Ark Build Plc ,1231173,,,,06/04/2020,2200088246,"86,538.35",,Payments to main contractor,,,,,,No
The Royal Borough of Kensington and Chelsea,RBKC,,Statutory Year End Accounting,Statutory Year End Accounting,,Ark Build Plc ,1231173,,,,04/05/2020,2200093873,"26,299.30",,Site Works,,,,,,No
The Royal Borough of Kensington and Chelsea,RBKC,,Statutory Year End Accounting,Statutory Year End Accounting,,Ark Build Plc ,1231173,,,,06/05/2020,2200094645,"22,564.12",,Site Works,,,,,,No
The Royal Borough of Kensington and Chelsea,RBKC,,Statutory Year End Accounting,Statutory Year End Accounting,,Ark Build Plc ,1231173,,,,05/06/2020,2200100997,"18,773.06",,Site Works,,,,,,No
The Royal Borough of Kensington and Chelsea,RBKC,,Statutory Year End Accounting,Statutory Year End Accounting,,Ark Build Plc ,1231173,,,,17/06/2020,2200103310,"16,345.00",,Professional Fees : Non Legal,,,,,,No
The Royal Borough of Kensington and Chelsea,RBKC,,Statutory Year End Accounting,Statutory Year End Accounting,,Ark Build Plc ,1231173,,,,23/06/2020,2200104389,840,,Professional Fees : Non Legal,,,,,,No
The Royal Borough of Kensington and Chelsea,RBKC,,Statutory Year End Accounting,Statutory Year End Accounting,,Ark Build Plc ,1231173,,,,25/06/2020,2200104895,"25,349.00",,Professional Fees : Non Legal,,,,,,No
The Royal Borough of Kensington and Chelsea,RBKC,,Statutory Year End Accounting,Statutory Year End Accounting,,Ark Build Plc ,1231173,,,,25/06/2020,2200104896,"25,349.00",,Professional Fees : Non Legal,,,,,,No
The Royal Borough of Kensington and Chelsea,RBKC,,Statutory Year End Accounting,Statutory Year End Accounting,,Artelia Projects UK Ltd T/A Artelia UK,1232443,,,,01/04/2020,2200088192,"1,875.00",,Construction : enhancements,,,,,,No
The Royal Borough of Kensington and Chelsea,RBKC,,Statutory Year End Accounting,Statutory Year End Accounting,,Artelia Projects UK Ltd T/A Artelia UK,1232443,,,,04/05/2020,2200093861,"3,895.00",,Other Consultants,,,,,,No
The Royal Borough of Kensington and Chelsea,RBKC,,Statutory Year End Accounting,Statutory Year End Accounting,,Artelia Projects UK Ltd T/A Artelia UK,1232443,,,,04/05/2020,2200093862,"1,021.25",,Other Consultants,,,,,,No
The Royal Borough of Kensington and Chelsea,RBKC,,Statutory Year End Accounting,Statutory Year End Accounting,,Artelia Projects UK Ltd T/A Artelia UK,1232443,,,,03/06/2020,2200100479,522.5,,Other Consultants,,,,,,No
The Royal Borough of Kensington and Chelsea,RBKC,,Statutory Year End Accounting,Statutory Year End Accounting,,Ashburnham Community School ,1236058,,,,02/04/2020,2200087448,"4,919.00",,Payments to main contractor,,,,,,No
The Royal Borough of Kensington and Chelsea,RBKC,,Statutory Year End Accounting,Statutory Year End Accounting,,Ashburnham Community School ,1236058,,,,24/06/2020,2200104703,"21,678.00",,Payments to main contractor,,,,,,No
The Royal Borough of Kensington and Chelsea,RBKC,,Statutory Year End Accounting,Statutory Year End Accounting,,Ashfords Llp ,1232627,,,,06/04/2020,2200088261,522,,Other Consultants,,,,,,No
The Royal Borough of Kensington and Chelsea,RBKC,,Statutory Year End Accounting,Statutory Year End Accounting,,Ashfords Llp ,1232627,,,,21/04/2020,2200091114,"1,188.00",,Professional Fees : Non Legal,,,,,,No
The Royal Borough of Kensington and Chelsea,RBKC,,Statutory Year End Accounting,Statutory Year End Accounting,,Ashfords Llp ,1232627,,,,23/04/2020,2200091429,"1,088.00",,Construction : enhancements,,,,,,No
The Royal Borough of Kensington and Chelsea,RBKC,,Statutory Year End Accounting,Statutory Year End Accounting,,Ashfords Llp ,1232627,,,,04/05/2020,2200093853,"1,055.00",,Legal Fees & expenses,,,,,,No
The Royal Borough of Kensington and Chelsea,RBKC,,Statutory Year End Accounting,Statutory Year End Accounting,,Ashfords Llp ,1232627,,,,05/05/2020,2200094440,"1,262.50",,Other Consultants,,,,,,No
The Royal Borough of Kensington and Chelsea,RBKC,,Statutory Year End Accounting,Statutory Year End Accounting,,Ashfords Llp ,1232627,,,,11/05/2020,2200095570,"18,799.50",,Professional Fees : Non Legal,,,,,,No
The Royal Borough of Kensington and Chelsea,RBKC,,Statutory Year End Accounting,Statutory Year End Accounting,,Ashfords Llp ,1232627,,,,12/05/2020,2200095729,"1,394.40",,Site Works,,,,,,No
The Royal Borough of Kensington and Chelsea,RBKC,,Statutory Year End Accounting,Statutory Year End Accounting,,Ashfords Llp ,1232627,,,,27/05/2020,2200099113,"5,654.00",,Professional Fees : Non Legal,,,,,,No
The Royal Borough of Kensington and Chelsea,RBKC,,Statutory Year End Accounting,Statutory Year End Accounting,,Ashfords Llp ,1232627,,,,28/05/2020,2200099384,"3,271.50",,Legal Fees & expenses,,,,,,No
The Royal Borough of Kensington and Chelsea,RBKC,,Statutory Year End Accounting,Statutory Year End Accounting,,Ashfords Llp ,1232627,,,,28/05/2020,2200099385,698.5,,Legal Fees & expenses,,,,,,No
The Royal Borough of Kensington and Chelsea,RBKC,,Statutory Year End Accounting,Statutory Year End Accounting,,Ashfords Llp ,1232627,,,,03/06/2020,2200100529,"1,216.00",,Payments to main contractor,,,,,,No
The Royal Borough of Kensington and Chelsea,RBKC,,Statutory Year End Accounting,Statutory Year End Accounting,,Ashfords Llp ,1232627,,,,03/06/2020,2200100530,"2,422.00",,Payments to main contractor,,,,,,No
The Royal Borough of Kensington and Chelsea,RBKC,,Statutory Year End Accounting,Statutory Year End Accounting,,Axis Europe Plc,1232679,,,,30/06/2020,2200105846,"329,810.41",,Creditors Control : AP GRIR,,,,,,No
The Royal Borough of Kensington and Chelsea,RBKC,,Statutory Year End Accounting,Statutory Year End Accounting,,BT Global Services ,1233001,,,,27/04/2020,2200092119,"9,074.78",,Creditors Control : AP GRIR,,,,,,No
The Royal Borough of Kensington and Chelsea,RBKC,,Statutory Year End Accounting,Statutory Year End Accounting,,BT Global Services ,1233001,,,,27/04/2020,2200092128,"25,110.00",,Creditors Control : AP GRIR,,,,,,No
The Royal Borough of Kensington and Chelsea,RBKC,,Statutory Year End Accounting,Statutory Year End Accounting,,BT Global Services ,1233001,,,,04/06/2020,2200100741,"24,290.76",,Creditors Control : AP GRIR,,,,,,No
The Royal Borough of Kensington and Chelsea,RBKC,,Statutory Year End Accounting,Statutory Year End Accounting,,Baily Garner LLP ,1232685,,,,14/04/2020,2200089537,528.83,,Professional Fees : Non Legal,,,,,,No
The Royal Borough of Kensington and Chelsea,RBKC,,Statutory Year End Accounting,Statutory Year End Accounting,,Baily Garner LLP ,1232685,,,,14/04/2020,2200089540,"1,709.26",,Professional Fees : Non Legal,,,,,,No
The Royal Borough of Kensington and Chelsea,RBKC,,Statutory Year End Accounting,Statutory Year End Accounting,,Baily Garner LLP ,1232685,,,,15/04/2020,2200089984,"17,049.24",,Professional Fees : Non Legal,,,,,,No
The Royal Borough of Kensington and Chelsea,RBKC,,Statutory Year End Accounting,Statutory Year End Accounting,,Baily Garner LLP ,1232685,,,,27/04/2020,2200092110,"4,029.34",,Professional Fees : Non Legal,,,,,,No
The Royal Borough of Kensington and Chelsea,RBKC,,Statutory Year End Accounting,Statutory Year End Accounting,,Baily Garner LLP ,1232685,,,,23/06/2020,2200104425,"4,194.53",,Professional Fees : Non Legal,,,,,,No
The Royal Borough of Kensington and Chelsea,RBKC,,Statutory Year End Accounting,Statutory Year End Accounting,,Baily Garner LLP ,1232685,,,,23/06/2020,2200104426,617.15,,Professional Fees : Non Legal,,,,,,No
The Royal Borough of Kensington and Chelsea,RBKC,,Statutory Year End Accounting,Statutory Year End Accounting,,Baily Garner LLP ,1232685,,,,23/06/2020,2200104427,923.99,,Professional Fees : Non Legal,,,,,,No
The Royal Borough of Kensington and Chelsea,RBKC,,Statutory Year End Accounting,Statutory Year End Accounting,,Baily Garner LLP ,1232685,,,,25/06/2020,2200104889,"1,059.33",,Professional Fees : Non Legal,,,,,,No
The Royal Borough of Kensington and Chelsea,RBKC,,Statutory Year End Accounting,Statutory Year End Accounting,,Bibliotheca Ltd ,1232743,,,,04/06/2020,2200100791,"6,800.00",,Computer Equipment,,,,,,No
The Royal Borough of Kensington and Chelsea,RBKC,,Statutory Year End Accounting,Statutory Year End Accounting,,Bishop Creighton House Care & Repair Clients Account,1232751,,,,03/04/2020,2200087850,"3,996.95",,Payments to main contractor,,,,,,No
The Royal Borough of Kensington and Chelsea,RBKC,,Statutory Year End Accounting,Statutory Year End Accounting,,Bishop Creighton House Care & Repair Clients Account,1232751,,,,28/04/2020,2200092457,"30,000.00",,Payments to main contractor,,,,,,No
The Royal Borough of Kensington and Chelsea,RBKC,,Statutory Year End Accounting,Statutory Year End Accounting,,Bishop Creighton House Care & Repair Clients Account,1232751,,,,01/05/2020,2200093526,"6,456.80",,Payments to main contractor,,,,,,No
The Royal Borough of Kensington and Chelsea,RBKC,,Statutory Year End Accounting,Statutory Year End Accounting,,Bishop Creighton House Care & Repair Clients Account,1232751,,,,01/05/2020,2200093527,"6,937.50",,Payments to main contractor,,,,,,No
The Royal Borough of Kensington and Chelsea,RBKC,,Statutory Year End Accounting,Statutory Year End Accounting,,Bishop Creighton House Care & Repair Clients Account,1232751,,,,01/05/2020,2200093528,"7,616.00",,Payments to main contractor,,,,,,No
The Royal Borough of Kensington and Chelsea,RBKC,,Statutory Year End Accounting,Statutory Year End Accounting,,Black Box Network Services ,1231180,,,,01/04/2020,2200087255,703,,Creditors Control : AP GRIR,,,,,,No
The Royal Borough of Kensington and Chelsea,RBKC,,Statutory Year End Accounting,Statutory Year End Accounting,,Black Box Network Services ,1231180,,,,01/04/2020,2200087256,720,,Creditors Control : AP GRIR,,,,,,No
The Royal Borough of Kensington and Chelsea,RBKC,,Statutory Year End Accounting,Statutory Year End Accounting,,Blakedown Landscapes (SE) Ltd,1231181,,,,09/06/2020,2200101636,"46,400.29",,Creditors Control : AP GRIR,,,,,,No
The Royal Borough of Kensington and Chelsea,RBKC,,Statutory Year End Accounting,Statutory Year End Accounting,,Bousfield Primary School ,1236067,,,,25/06/2020,2200104893,"1,500.00",,Payments to main contractor,,,,,,No
The Royal Borough of Kensington and Chelsea,RBKC,,Statutory Year End Accounting,Statutory Year End Accounting,,Redact Details,1232986,,,,14/04/2020,2200089511,"17,437.50",,Professional Fees : Non Legal,,,,,,No
The Royal Borough of Kensington and Chelsea,RBKC,,Statutory Year End Accounting,Statutory Year End Accounting,,Redact Details,1232986,,,,22/06/2020,2200104173,"16,812.50",,Professional Fees : Non Legal,,,,,,No
The Royal Borough of Kensington and Chelsea,RBKC,,Statutory Year End Accounting,Statutory Year End Accounting,,Building Design Partnership Ltd ,1233009,,,,30/04/2020,2200093382,"52,243.00",,Other Consultants,,,,,,No
The Royal Borough of Kensington and Chelsea,RBKC,,Statutory Year End Accounting,Statutory Year End Accounting,,Building Design Partnership Ltd ,1233009,,,,01/06/2020,2200099778,"9,000.00",,Other Consultants,,,,,,No
The Royal Borough of Kensington and Chelsea,RBKC,,Statutory Year End Accounting,Statutory Year End Accounting,,CBS Maintenance Ltd ,1256122,,,,14/04/2020,2200089371,"81,904.82",,Payments to main contractor,,,,,,No
The Royal Borough of Kensington and Chelsea,RBKC,,Statutory Year End Accounting,Statutory Year End Accounting,,CBS Maintenance Ltd ,1256122,,,,14/04/2020,2200089372,"58,257.18",,Payments to main contractor,,,,,,No
The Royal Borough of Kensington and Chelsea,RBKC,,Statutory Year End Accounting,Statutory Year End Accounting,,CBS Maintenance Ltd ,1256122,,,,26/06/2020,2200105305,"9,125.00",,Payments to main contractor,,,,,,No
The Royal Borough of Kensington and Chelsea,RBKC,,Statutory Year End Accounting,Statutory Year End Accounting,,Calford Seadon (Health & Safety) Ltd,1233044,,,,28/04/2020,2200092517,"8,800.00",,Professional Fees : Non Legal,,,,,,No
The Royal Borough of Kensington and Chelsea,RBKC,,Statutory Year End Accounting,Statutory Year End Accounting,,Calford Seadon (Health & Safety) Ltd,1233044,,,,28/04/2020,2200092545,"3,150.00",,Professional Fees : Non Legal,,,,,,No
The Royal Borough of Kensington and Chelsea,RBKC,,Statutory Year End Accounting,Statutory Year End Accounting,,Calford Seadon (Health & Safety) Ltd,1233044,,,,28/04/2020,2200092546,"9,069.00",,Professional Fees : Non Legal,,,,,,No
The Royal Borough of Kensington and Chelsea,RBKC,,Statutory Year End Accounting,Statutory Year End Accounting,,Calford Seadon (Health & Safety) Ltd,1233044,,,,28/04/2020,2200092605,"8,480.77",,Professional Fees : Non Legal,,,,,,No
The Royal Borough of Kensington and Chelsea,RBKC,,Statutory Year End Accounting,Statutory Year End Accounting,,Calford Seadon (Health & Safety) Ltd,1233044,,,,29/04/2020,2200092768,"19,175.00",,Professional Fees : Non Legal,,,,,,No
The Royal Borough of Kensington and Chelsea,RBKC,,Statutory Year End Accounting,Statutory Year End Accounting,,Calford Seadon (Health & Safety) Ltd,1233044,,,,30/04/2020,2200093412,"3,760.00",,Professional Fees : Non Legal,,,,,,No
The Royal Borough of Kensington and Chelsea,RBKC,,Statutory Year End Accounting,Statutory Year End Accounting,,Calford Seadon (Health & Safety) Ltd,1233044,,,,30/04/2020,2200093414,"3,634.63",,Professional Fees : Non Legal,,,,,,No
The Royal Borough of Kensington and Chelsea,RBKC,,Statutory Year End Accounting,Statutory Year End Accounting,,Calford Seadon (Health & Safety) Ltd,1233044,,,,01/05/2020,2200093545,"1,921.30",,Professional Fees : Non Legal,,,,,,No
The Royal Borough of Kensington and Chelsea,RBKC,,Statutory Year End Accounting,Statutory Year End Accounting,,Capital Property & Construction ,1256857,,,,14/05/2020,2200096505,"5,000.00",,Professional Fees : Non Legal,,,,,,No
The Royal Borough of Kensington and Chelsea,RBKC,,Statutory Year End Accounting,Statutory Year End Accounting,,Cappagh Contractors Construction (London) Ltd,1233084,,,,21/04/2020,2200091037,"6,198.48",,Payments to main contractor,,,,,,No
The Royal Borough of Kensington and Chelsea,RBKC,,Statutory Year End Accounting,Statutory Year End Accounting,,Cavendish Construction LTD,1267193,,,,22/04/2020,2200091215,"41,860.43",,Special Maintenance,,,,,,No
The Royal Borough of Kensington and Chelsea,RBKC,,Statutory Year End Accounting,Statutory Year End Accounting,,Cavendish Construction LTD,1267193,,,,22/04/2020,2200091216,"41,923.43",,Special Maintenance,,,,,,No
The Royal Borough of Kensington and Chelsea,RBKC,,Statutory Year End Accounting,Statutory Year End Accounting,,Cavendish Construction LTD,1267193,,,,30/04/2020,2200093189,"24,900.92",,Special Maintenance,,,,,,No
The Royal Borough of Kensington and Chelsea,RBKC,,Statutory Year End Accounting,Statutory Year End Accounting,,Cemplas waterproofing and concrete,1259746,,,,02/04/2020,2200087628,"18,235.00",,Payments to main contractor,,,,,,No
The Royal Borough of Kensington and Chelsea,RBKC,,Statutory Year End Accounting,Statutory Year End Accounting,,Christ Church Ce Primary School ,1232796,,,,10/06/2020,2200102032,"21,667.00",,Payments to main contractor,,,,,,No
The Royal Borough of Kensington and Chelsea,RBKC,,Statutory Year End Accounting,Statutory Year End Accounting,,Redact Details,1259396,,,,28/05/2020,2200099383,"9,600.00",,Payments to main contractor,,,,,,No
The Royal Borough of Kensington and Chelsea,RBKC,,Statutory Year End Accounting,Statutory Year End Accounting,,City Electrical Factors,1263373,,,,22/05/2020,2200098108,"3,340.08",,Special Maintenance,,,,,,No
The Royal Borough of Kensington and Chelsea,RBKC,,Statutory Year End Accounting,Statutory Year End Accounting,,City Electrical Factors,1263373,,,,29/05/2020,2200099540,965.75,,Special Maintenance,,,,,,No
The Royal Borough of Kensington and Chelsea,RBKC,,Statutory Year End Accounting,Statutory Year End Accounting,,City Electrical Factors,1263373,,,,01/06/2020,2200099753,785.5,,Special Maintenance,,,,,,No
The Royal Borough of Kensington and Chelsea,RBKC,,Statutory Year End Accounting,Statutory Year End Accounting,,City Electrical Factors,1263373,,,,01/06/2020,2200099754,583.78,,Special Maintenance,,,,,,No
The Royal Borough of Kensington and Chelsea,RBKC,,Statutory Year End Accounting,Statutory Year End Accounting,,City Electrical Factors,1263373,,,,03/06/2020,2200100558,"3,719.05",,Special Maintenance,,,,,,No
The Royal Borough of Kensington and Chelsea,RBKC,,Statutory Year End Accounting,Statutory Year End Accounting,,City Electrical Factors,1263373,,,,03/06/2020,2200100559,"1,144.72",,Special Maintenance,,,,,,No
The Royal Borough of Kensington and Chelsea,RBKC,,Statutory Year End Accounting,Statutory Year End Accounting,,City Electrical Factors,1263373,,,,03/06/2020,2200100574,"5,286.22",,Purchase of Vehicles,,,,,,No
The Royal Borough of Kensington and Chelsea,RBKC,,Statutory Year End Accounting,Statutory Year End Accounting,,City Of Westminster ,1231771,,,,15/04/2020,2200089612,"2,860.00",,Creditors Control : AP GRIR,,,,,,No
The Royal Borough of Kensington and Chelsea,RBKC,,Statutory Year End Accounting,Statutory Year End Accounting,,Clean and Serene Ltd ,1233399,,,,28/04/2020,2200092547,"1,945.00",,Payments to main contractor,,,,,,No
The Royal Borough of Kensington and Chelsea,RBKC,,Statutory Year End Accounting,Statutory Year End Accounting,,Closomat Ltd ,1233412,,,,16/04/2020,2200090132,"3,855.00",,Payments to main contractor,,,,,,No
The Royal Borough of Kensington and Chelsea,RBKC,,Statutory Year End Accounting,Statutory Year End Accounting,,Cloud Booking Ltd ,1233413,,,,23/06/2020,2200104484,"21,600.00",,Construction : enhancements,,,,,,No
The Royal Borough of Kensington and Chelsea,RBKC,,Statutory Year End Accounting,Statutory Year End Accounting,,Cloud Booking Ltd ,1233413,,,,23/06/2020,2200104485,"4,590.00",,Construction : enhancements,,,,,,No
The Royal Borough of Kensington and Chelsea,RBKC,,Statutory Year End Accounting,Statutory Year End Accounting,,Cloud Booking Ltd ,1233413,,,,23/06/2020,2200104486,"1,620.00",,Construction : enhancements,,,,,,No
The Royal Borough of Kensington and Chelsea,RBKC,,Statutory Year End Accounting,Statutory Year End Accounting,,Coli Construction Ltd,1262703,,,,08/04/2020,2200088688,"3,573.83",,Payments to main contractor,,,,,,No
The Royal Borough of Kensington and Chelsea,RBKC,,Statutory Year End Accounting,Statutory Year End Accounting,,Coli Construction Ltd,1262703,,,,08/04/2020,2200088692,"17,314.65",,Payments to main contractor,,,,,,No
The Royal Borough of Kensington and Chelsea,RBKC,,Statutory Year End Accounting,Statutory Year End Accounting,,Conisbee ,1233655,,,,05/05/2020,2200094411,650,,Other Consultants,,,,,,No
The Royal Borough of Kensington and Chelsea,RBKC,,Statutory Year End Accounting,Statutory Year End Accounting,,Connected Response Limite,1265273,,,,12/05/2020,2200095723,"43,313.20",,Payments to main contractor,,,,,,No
The Royal Borough of Kensington and Chelsea,RBKC,,Statutory Year End Accounting,Statutory Year End Accounting,,Cupaz ,1233737,,,,29/06/2020,2200105699,"87,021.48",,Other Consultants,,,,,,No
The Royal Borough of Kensington and Chelsea,RBKC,,Statutory Year End Accounting,Statutory Year End Accounting,,Cupaz ,1233737,,,,29/06/2020,2200105701,"46,984.43",,Other Consultants,,,,,,No
The Royal Borough of Kensington and Chelsea,RBKC,,Statutory Year End Accounting,Statutory Year End Accounting,,Cupaz ,1233737,,,,29/06/2020,2200105702,"72,560.26",,Other Consultants,,,,,,No
The Royal Borough of Kensington and Chelsea,RBKC,,Statutory Year End Accounting,Statutory Year End Accounting,,Cupaz ,1233737,,,,29/06/2020,2200105705,"37,993.48",,Other Consultants,,,,,,No
The Royal Borough of Kensington and Chelsea,RBKC,,Statutory Year End Accounting,Statutory Year End Accounting,,Cupaz ,1233737,,,,29/06/2020,2200105706,"52,395.05",,Other Consultants,,,,,,No
The Royal Borough of Kensington and Chelsea,RBKC,,Statutory Year End Accounting,Statutory Year End Accounting,,Cupaz ,1233737,,,,29/06/2020,2200105707,"48,691.02",,Other Consultants,,,,,,No
The Royal Borough of Kensington and Chelsea,RBKC,,Statutory Year End Accounting,Statutory Year End Accounting,,Currie & Brown UK Ltd ,1233738,,,,22/04/2020,2200091243,"2,665.13",,Site Works,,,,,,No
The Royal Borough of Kensington and Chelsea,RBKC,,Statutory Year End Accounting,Statutory Year End Accounting,,Currie & Brown UK Ltd ,1233738,,,,22/05/2020,2200098066,"1,197.38",,Site Works,,,,,,No
The Royal Borough of Kensington and Chelsea,RBKC,,Statutory Year End Accounting,Statutory Year End Accounting,,Currie & Brown UK Ltd ,1233738,,,,24/06/2020,2200104566,"5,059.88",,Site Works,,,,,,No
The Royal Borough of Kensington and Chelsea,RBKC,,Statutory Year End Accounting,Statutory Year End Accounting,,Currie & Brown UK Ltd ,1233738,,,,25/06/2020,2200104852,"2,740.32",,Payments to main contractor,,,,,,No
The Royal Borough of Kensington and Chelsea,RBKC,,Statutory Year End Accounting,Statutory Year End Accounting,,Cushman & Wakefield LLP ,1233739,,,,03/06/2020,2200100480,"5,250.00",,Other Consultants,,,,,,No
The Royal Borough of Kensington and Chelsea,RBKC,,Statutory Year End Accounting,Statutory Year End Accounting,,Cushman & Wakefield LLP ,1233739,,,,25/06/2020,2200104894,"4,704.00",,Other Consultants,,,,,,No
The Royal Borough of Kensington and Chelsea,RBKC,,Statutory Year End Accounting,Statutory Year End Accounting,,D&B Facades UK Ltd ,1254414,,,,27/05/2020,2200099028,"52,418.23",,Payments to main contractor,,,,,,No
The Royal Borough of Kensington and Chelsea,RBKC,,Statutory Year End Accounting,Statutory Year End Accounting,,Danacom Ltd,1262818,,,,15/05/2020,2200096724,"35,000.00",,Special Maintenance,,,,,,No
The Royal Borough of Kensington and Chelsea,RBKC,,Statutory Year End Accounting,Statutory Year End Accounting,,Danacom Ltd,1262818,,,,10/06/2020,2200102154,"6,843.00",,Special Maintenance,,,,,,No
The Royal Borough of Kensington and Chelsea,RBKC,,Statutory Year End Accounting,Statutory Year End Accounting,,Daniel Connal Partnership ,1233757,,,,12/05/2020,2200095701,"3,960.00",,Payments to main contractor,,,,,,No
The Royal Borough of Kensington and Chelsea,RBKC,,Statutory Year End Accounting,Statutory Year End Accounting,,Daniel Connal Partnership ,1233757,,,,12/05/2020,2200095702,"4,400.00",,Payments to main contractor,,,,,,No
The Royal Borough of Kensington and Chelsea,RBKC,,Statutory Year End Accounting,Statutory Year End Accounting,,Daniel Connal Partnership ,1233757,,,,12/05/2020,2200095703,"3,300.00",,Payments to main contractor,,,,,,No
The Royal Borough of Kensington and Chelsea,RBKC,,Statutory Year End Accounting,Statutory Year End Accounting,,Redact Details,1232218,,,,15/05/2020,2200096768,912,,Legal Fees & expenses,,,,,,No
The Royal Borough of Kensington and Chelsea,RBKC,,Statutory Year End Accounting,Statutory Year End Accounting,,Dixon Jones Ltd ,1234010,,,,10/05/2020,2200095371,900,,Design Consultant,,,,,,No
The Royal Borough of Kensington and Chelsea,RBKC,,Statutory Year End Accounting,Statutory Year End Accounting,,Dixon Jones Ltd ,1234010,,,,11/05/2020,2200095473,500,,Design Consultant,,,,,,No
The Royal Borough of Kensington and Chelsea,RBKC,,Statutory Year End Accounting,Statutory Year End Accounting,,Dixon Jones Ltd ,1234010,,,,11/05/2020,2200095474,900,,Design Consultant,,,,,,No
The Royal Borough of Kensington and Chelsea,RBKC,,Statutory Year End Accounting,Statutory Year End Accounting,,Duck & Shed Design Consultancy Ltd,1268324,,,,16/06/2020,2200103063,"7,200.00",,Payments to main contractor,,,,,,No
The Royal Borough of Kensington and Chelsea,RBKC,,Statutory Year End Accounting,Statutory Year End Accounting,,Ductclean (Uk) Ltd,1231197,,,,17/06/2020,2200103406,"2,530.00",,Professional Fees : Non Legal,,,,,,No
The Royal Borough of Kensington and Chelsea,RBKC,,Statutory Year End Accounting,Statutory Year End Accounting,,ETEC Associates LTD,1269170,,,,12/05/2020,2200095841,"29,750.00",,Payments to main contractor,,,,,,No
The Royal Borough of Kensington and Chelsea,RBKC,,Statutory Year End Accounting,Statutory Year End Accounting,,ETEC Associates LTD,1269170,,,,04/06/2020,2200100822,"8,055.00",,Payments to main contractor,,,,,,No
The Royal Borough of Kensington and Chelsea,RBKC,,Statutory Year End Accounting,Statutory Year End Accounting,,ETEC Associates LTD,1269170,,,,04/06/2020,2200100823,"12,600.00",,Payments to main contractor,,,,,,No
The Royal Borough of Kensington and Chelsea,RBKC,,Statutory Year End Accounting,Statutory Year End Accounting,,Eight Associates Ltd,1234091,,,,30/06/2020,2200106098,"1,760.00",,Construction : enhancements,,,,,,No
The Royal Borough of Kensington and Chelsea,RBKC,,Statutory Year End Accounting,Statutory Year End Accounting,,Emisphere Ltd ,1231200,,,,01/04/2020,2200087319,"8,130.00",,Payments to main contractor,,,,,,No
The Royal Borough of Kensington and Chelsea,RBKC,,Statutory Year End Accounting,Statutory Year End Accounting,,Emisphere Ltd ,1231200,,,,01/04/2020,2200087320,"6,375.00",,Payments to main contractor,,,,,,No
The Royal Borough of Kensington and Chelsea,RBKC,,Statutory Year End Accounting,Statutory Year End Accounting,,Emisphere Ltd ,1231200,,,,06/04/2020,2200088178,"8,855.00",,Payments to main contractor,,,,,,No
The Royal Borough of Kensington and Chelsea,RBKC,,Statutory Year End Accounting,Statutory Year End Accounting,,Emisphere Ltd ,1231200,,,,21/04/2020,2200090862,"8,130.00",,Payments to main contractor,,,,,,No
The Royal Borough of Kensington and Chelsea,RBKC,,Statutory Year End Accounting,Statutory Year End Accounting,,Emisphere Ltd ,1231200,,,,21/04/2020,2200090864,"6,665.00",,Payments to main contractor,,,,,,No
The Royal Borough of Kensington and Chelsea,RBKC,,Statutory Year End Accounting,Statutory Year End Accounting,,Engie Regeneration Ltd ,1231201,,,,03/06/2020,2200100628,"4,048.11",,Payments to main contractor,,,,,,No
The Royal Borough of Kensington and Chelsea,RBKC,,Statutory Year End Accounting,Statutory Year End Accounting,,Engie Urban Energy Group Ltd ,1231202,,,,28/04/2020,2200092583,"11,702.40",,Payments to main contractor,,,,,,No
The Royal Borough of Kensington and Chelsea,RBKC,,Statutory Year End Accounting,Statutory Year End Accounting,,Engie Urban Energy Group Ltd ,1231202,,,,28/04/2020,2200092584,885.5,,Payments to main contractor,,,,,,No
The Royal Borough of Kensington and Chelsea,RBKC,,Statutory Year End Accounting,Statutory Year End Accounting,,Engie Urban Energy Group Ltd ,1231202,,,,28/04/2020,2200092585,"5,410.75",,Payments to main contractor,,,,,,No
The Royal Borough of Kensington and Chelsea,RBKC,,Statutory Year End Accounting,Statutory Year End Accounting,,Engie Urban Energy Group Ltd ,1231202,,,,28/04/2020,2200092586,"3,864.00",,Payments to main contractor,,,,,,No
The Royal Borough of Kensington and Chelsea,RBKC,,Statutory Year End Accounting,Statutory Year End Accounting,,Engie Urban Energy Group Ltd ,1231202,,,,28/04/2020,2200092587,"4,395.60",,Payments to main contractor,,,,,,No
The Royal Borough of Kensington and Chelsea,RBKC,,Statutory Year End Accounting,Statutory Year End Accounting,,Etude Consulting Limited,1269026,,,,02/06/2020,2200100416,"3,965.00",,Other Consultants,,,,,,No
The Royal Borough of Kensington and Chelsea,RBKC,,Statutory Year End Accounting,Statutory Year End Accounting,,F.M Conway Ltd ,1231208,,,,01/04/2020,2200088439,"30,000.00",,Payments to main contractor,,,,,,No
The Royal Borough of Kensington and Chelsea,RBKC,,Statutory Year End Accounting,Statutory Year End Accounting,,F.M Conway Ltd ,1231208,,,,01/04/2020,2200088440,"21,375.59",,Construction : enhancements,,,,,,No
The Royal Borough of Kensington and Chelsea,RBKC,,Statutory Year End Accounting,Statutory Year End Accounting,,F.M Conway Ltd ,1231208,,,,02/04/2020,2200087397,"74,273.58",,Construction : enhancements,,,,,,No
The Royal Borough of Kensington and Chelsea,RBKC,,Statutory Year End Accounting,Statutory Year End Accounting,,F.M Conway Ltd ,1231208,,,,02/04/2020,2200087401,934.57,,Construction : enhancements,,,,,,No
The Royal Borough of Kensington and Chelsea,RBKC,,Statutory Year End Accounting,Statutory Year End Accounting,,F.M Conway Ltd ,1231208,,,,02/04/2020,2200087630,"8,235.00",,Professional Fees : Non Legal,,,,,,No
The Royal Borough of Kensington and Chelsea,RBKC,,Statutory Year End Accounting,Statutory Year End Accounting,,F.M Conway Ltd ,1231208,,,,03/04/2020,2200087705,930.55,,Construction : enhancements,,,,,,No
The Royal Borough of Kensington and Chelsea,RBKC,,Statutory Year End Accounting,Statutory Year End Accounting,,F.M Conway Ltd ,1231208,,,,06/04/2020,2200088238,"117,645.13",,Site Works,,,,,,No
The Royal Borough of Kensington and Chelsea,RBKC,,Statutory Year End Accounting,Statutory Year End Accounting,,F.M Conway Ltd ,1231208,,,,07/04/2020,2200088447,"14,500.00",,Payments to main contractor,,,,,,No
The Royal Borough of Kensington and Chelsea,RBKC,,Statutory Year End Accounting,Statutory Year End Accounting,,F.M Conway Ltd ,1231208,,,,07/04/2020,2200088449,"84,032.01",,Payments to main contractor,,,,,,No
The Royal Borough of Kensington and Chelsea,RBKC,,Statutory Year End Accounting,Statutory Year End Accounting,,F.M Conway Ltd ,1231208,,,,07/04/2020,2200088600,"5,713.00",,Construction : enhancements,,,,,,No
The Royal Borough of Kensington and Chelsea,RBKC,,Statutory Year End Accounting,Statutory Year End Accounting,,F.M Conway Ltd ,1231208,,,,07/04/2020,2200088602,"1,121.00",,Construction : enhancements,,,,,,No
The Royal Borough of Kensington and Chelsea,RBKC,,Statutory Year End Accounting,Statutory Year End Accounting,,F.M Conway Ltd ,1231208,,,,07/04/2020,2200088603,"182,609.00",,Construction : enhancements,,,,,,No
The Royal Borough of Kensington and Chelsea,RBKC,,Statutory Year End Accounting,Statutory Year End Accounting,,F.M Conway Ltd ,1231208,,,,21/04/2020,2200091040,"4,273.42",,Payments to main contractor,,,,,,No
The Royal Borough of Kensington and Chelsea,RBKC,,Statutory Year End Accounting,Statutory Year End Accounting,,F.M Conway Ltd ,1231208,,,,21/04/2020,2200091042,"8,907.05",,Payments to main contractor,,,,,,No
The Royal Borough of Kensington and Chelsea,RBKC,,Statutory Year End Accounting,Statutory Year End Accounting,,F.M Conway Ltd ,1231208,,,,30/04/2020,2200093399,"1,894.45",,Construction : enhancements,,,,,,No
The Royal Borough of Kensington and Chelsea,RBKC,,Statutory Year End Accounting,Statutory Year End Accounting,,F.M Conway Ltd ,1231208,,,,30/04/2020,2200093401,"77,747.40",,Construction : enhancements,,,,,,No
The Royal Borough of Kensington and Chelsea,RBKC,,Statutory Year End Accounting,Statutory Year End Accounting,,F.M Conway Ltd ,1231208,,,,30/04/2020,2200093402,"4,970.70",,Construction : enhancements,,,,,,No
The Royal Borough of Kensington and Chelsea,RBKC,,Statutory Year End Accounting,Statutory Year End Accounting,,F.M Conway Ltd ,1231208,,,,01/05/2020,2200093541,808.93,,Construction : enhancements,,,,,,No
The Royal Borough of Kensington and Chelsea,RBKC,,Statutory Year End Accounting,Statutory Year End Accounting,,F.M Conway Ltd ,1231208,,,,01/05/2020,2200093542,"13,668.74",,Construction : enhancements,,,,,,No
The Royal Borough of Kensington and Chelsea,RBKC,,Statutory Year End Accounting,Statutory Year End Accounting,,F.M Conway Ltd ,1231208,,,,01/05/2020,2200093747,"70,000.00",,Payments to main contractor,,,,,,No
The Royal Borough of Kensington and Chelsea,RBKC,,Statutory Year End Accounting,Statutory Year End Accounting,,F.M Conway Ltd ,1231208,,,,06/05/2020,2200094738,719.94,,Construction : enhancements,,,,,,No
The Royal Borough of Kensington and Chelsea,RBKC,,Statutory Year End Accounting,Statutory Year End Accounting,,F.M Conway Ltd ,1231208,,,,27/05/2020,2200099118,"2,287.20",,Construction : enhancements,,,,,,No
The Royal Borough of Kensington and Chelsea,RBKC,,Statutory Year End Accounting,Statutory Year End Accounting,,F.M Conway Ltd ,1231208,,,,27/05/2020,2200099119,820.81,,Construction : enhancements,,,,,,No
The Royal Borough of Kensington and Chelsea,RBKC,,Statutory Year End Accounting,Statutory Year End Accounting,,F.M Conway Ltd ,1231208,,,,27/05/2020,2200099128,574.45,,Construction : enhancements,,,,,,No
The Royal Borough of Kensington and Chelsea,RBKC,,Statutory Year End Accounting,Statutory Year End Accounting,,F.M Conway Ltd ,1231208,,,,28/05/2020,2200099392,"49,874.14",,Construction : enhancements,,,,,,No
The Royal Borough of Kensington and Chelsea,RBKC,,Statutory Year End Accounting,Statutory Year End Accounting,,F.M Conway Ltd ,1231208,,,,01/06/2020,2200099766,"4,108.36",,Construction : enhancements,,,,,,No
The Royal Borough of Kensington and Chelsea,RBKC,,Statutory Year End Accounting,Statutory Year End Accounting,,F.M Conway Ltd ,1231208,,,,01/06/2020,2200099773,"71,439.68",,Payments to main contractor,,,,,,No
The Royal Borough of Kensington and Chelsea,RBKC,,Statutory Year End Accounting,Statutory Year End Accounting,,F.M Conway Ltd ,1231208,,,,04/06/2020,2200100742,"1,122.12",,Construction : enhancements,,,,,,No
The Royal Borough of Kensington and Chelsea,RBKC,,Statutory Year End Accounting,Statutory Year End Accounting,,F.M Conway Ltd ,1231208,,,,05/06/2020,2200101082,"15,550.24",,Payments to main contractor,,,,,,No
The Royal Borough of Kensington and Chelsea,RBKC,,Statutory Year End Accounting,Statutory Year End Accounting,,F.M Conway Ltd ,1231208,,,,23/06/2020,2200104415,"69,102.28",,Payments to main contractor,,,,,,No
The Royal Borough of Kensington and Chelsea,RBKC,,Statutory Year End Accounting,Statutory Year End Accounting,,F.M Conway Ltd ,1231208,,,,29/06/2020,2200105598,"3,471.21",,Construction : enhancements,,,,,,No
The Royal Borough of Kensington and Chelsea,RBKC,,Statutory Year End Accounting,Statutory Year End Accounting,,F.M Conway Ltd ,1231208,,,,30/06/2020,2200105877,"25,155.90",,Construction : enhancements,,,,,,No
The Royal Borough of Kensington and Chelsea,RBKC,,Statutory Year End Accounting,Statutory Year End Accounting,,F.M Conway Ltd ,1231208,,,,30/06/2020,2200105879,"64,265.67",,Construction : enhancements,,,,,,No
The Royal Borough of Kensington and Chelsea,RBKC,,Statutory Year End Accounting,Statutory Year End Accounting,,F.M Conway Ltd ,1231208,,,,30/06/2020,2200105880,"9,437.03",,Construction : enhancements,,,,,,No
The Royal Borough of Kensington and Chelsea,RBKC,,Statutory Year End Accounting,Statutory Year End Accounting,,F.M Conway Ltd ,1231208,,,,30/06/2020,2200105951,"21,555.18",,Payments to main contractor,,,,,,No
The Royal Borough of Kensington and Chelsea,RBKC,,Statutory Year End Accounting,Statutory Year End Accounting,,F.M Conway Ltd ,1231208,,,,30/06/2020,2200105975,"6,900.00",,Construction : enhancements,,,,,,No
The Royal Borough of Kensington and Chelsea,RBKC,,Statutory Year End Accounting,Statutory Year End Accounting,,F.M Conway Ltd ,1231208,,,,30/06/2020,2200106010,"1,237.82",,Payments to main contractor,,,,,,No
The Royal Borough of Kensington and Chelsea,RBKC,,Statutory Year End Accounting,Statutory Year End Accounting,,F3Develop Limited,1259433,,,,21/04/2020,2200091150,"4,450.00",,Other Consultants,,,,,,No
The Royal Borough of Kensington and Chelsea,RBKC,,Statutory Year End Accounting,Statutory Year End Accounting,,F3Develop Limited,1259433,,,,03/06/2020,2200100552,"1,590.00",,Professional Fees : Non Legal,,,,,,No
The Royal Borough of Kensington and Chelsea,RBKC,,Statutory Year End Accounting,Statutory Year End Accounting,,Faithful and Gould Limited,1234387,,,,01/04/2020,2200087847,"6,902.00",,Professional Fees : Non Legal,,,,,,No
The Royal Borough of Kensington and Chelsea,RBKC,,Statutory Year End Accounting,Statutory Year End Accounting,,Faithful and Gould Limited,1234387,,,,01/04/2020,2200087848,"4,752.00",,Professional Fees : Non Legal,,,,,,No
The Royal Borough of Kensington and Chelsea,RBKC,,Statutory Year End Accounting,Statutory Year End Accounting,,Faithful and Gould Limited,1234387,,,,07/04/2020,2200088366,"24,192.00",,Professional Fees : Non Legal,,,,,,No
The Royal Borough of Kensington and Chelsea,RBKC,,Statutory Year End Accounting,Statutory Year End Accounting,,Faithful and Gould Limited,1234387,,,,20/04/2020,2200090783,"18,241.00",,Professional Fees : Non Legal,,,,,,No
The Royal Borough of Kensington and Chelsea,RBKC,,Statutory Year End Accounting,Statutory Year End Accounting,,Faithful and Gould Limited,1234387,,,,22/05/2020,2200098100,"1,337.50",,Professional Fees : Non Legal,,,,,,No
The Royal Borough of Kensington and Chelsea,RBKC,,Statutory Year End Accounting,Statutory Year End Accounting,,Faithful and Gould Limited,1234387,,,,22/05/2020,2200098102,"3,461.00",,Professional Fees : Non Legal,,,,,,No
The Royal Borough of Kensington and Chelsea,RBKC,,Statutory Year End Accounting,Statutory Year End Accounting,,Fluid Design Ltd ,1234437,,,,23/06/2020,2200104375,"4,500.00",,Payments to main contractor,,,,,,No
The Royal Borough of Kensington and Chelsea,RBKC,,Statutory Year End Accounting,Statutory Year End Accounting,,Frankham Consultancy Group Ltd ,1234583,,,,28/04/2020,2200092432,"2,310.00",,Payments to main contractor,,,,,,No
The Royal Borough of Kensington and Chelsea,RBKC,,Statutory Year End Accounting,Statutory Year End Accounting,,Frankham Consultancy Group Ltd ,1234583,,,,01/05/2020,2200093606,"9,180.00",,Payments to main contractor,,,,,,No
The Royal Borough of Kensington and Chelsea,RBKC,,Statutory Year End Accounting,Statutory Year End Accounting,,Frankham Consultancy Group Ltd ,1234583,,,,28/05/2020,2200099371,"4,955.00",,Payments to main contractor,,,,,,No
The Royal Borough of Kensington and Chelsea,RBKC,,Statutory Year End Accounting,Statutory Year End Accounting,,Frankham Consultancy Group Ltd ,1234583,,,,29/05/2020,2200099512,"2,310.00",,Payments to main contractor,,,,,,No
The Royal Borough of Kensington and Chelsea,RBKC,,Statutory Year End Accounting,Statutory Year End Accounting,,Frankham Consultancy Group Ltd ,1234583,,,,04/06/2020,2200100846,750,,Payments to main contractor,,,,,,No
The Royal Borough of Kensington and Chelsea,RBKC,,Statutory Year End Accounting,Statutory Year End Accounting,,Frankham Consultancy Group Ltd ,1234583,,,,04/06/2020,2200100848,"2,930.00",,Payments to main contractor,,,,,,No
The Royal Borough of Kensington and Chelsea,RBKC,,Statutory Year End Accounting,Statutory Year End Accounting,,Frankham Consultancy Group Ltd ,1234583,,,,04/06/2020,2200100849,"2,752.00",,Payments to main contractor,,,,,,No
The Royal Borough of Kensington and Chelsea,RBKC,,Statutory Year End Accounting,Statutory Year End Accounting,,Frankham Consultancy Group Ltd ,1234583,,,,04/06/2020,2200100850,"3,002.00",,Payments to main contractor,,,,,,No
The Royal Borough of Kensington and Chelsea,RBKC,,Statutory Year End Accounting,Statutory Year End Accounting,,Frankham Consultancy Group Ltd ,1234583,,,,04/06/2020,2200100851,"2,288.00",,Payments to main contractor,,,,,,No
The Royal Borough of Kensington and Chelsea,RBKC,,Statutory Year End Accounting,Statutory Year End Accounting,,Frankham Consultancy Group Ltd ,1234583,,,,24/06/2020,2200104743,"2,120.00",,Payments to main contractor,,,,,,No
The Royal Borough of Kensington and Chelsea,RBKC,,Statutory Year End Accounting,Statutory Year End Accounting,,Frankham Consultancy Group Ltd ,1234583,,,,24/06/2020,2200104746,"2,942.00",,Payments to main contractor,,,,,,No
The Royal Borough of Kensington and Chelsea,RBKC,,Statutory Year End Accounting,Statutory Year End Accounting,,Frankham Consultancy Group Ltd ,1234583,,,,24/06/2020,2200104747,"1,370.00",,Payments to main contractor,,,,,,No
The Royal Borough of Kensington and Chelsea,RBKC,,Statutory Year End Accounting,Statutory Year End Accounting,,Frankham Consultancy Group Ltd ,1234583,,,,26/06/2020,2200105199,"2,120.00",,Payments to main contractor,,,,,,No
The Royal Borough of Kensington and Chelsea,RBKC,,Statutory Year End Accounting,Statutory Year End Accounting,,Freeway Lift Services Ltd ,1231213,,,,03/04/2020,2200087837,"7,428.00",,Payments to main contractor,,,,,,No
The Royal Borough of Kensington and Chelsea,RBKC,,Statutory Year End Accounting,Statutory Year End Accounting,,Freeway Lift Services Ltd ,1231213,,,,10/06/2020,2200101990,"5,765.00",,Payments to main contractor,,,,,,No
The Royal Borough of Kensington and Chelsea,RBKC,,Statutory Year End Accounting,Statutory Year End Accounting,,Freeway Lift Services Ltd ,1231213,,,,10/06/2020,2200101991,"10,425.00",,Payments to main contractor,,,,,,No
The Royal Borough of Kensington and Chelsea,RBKC,,Statutory Year End Accounting,Statutory Year End Accounting,,Freeway Lift Services Ltd ,1231213,,,,19/06/2020,2200103768,"7,770.00",,Payments to main contractor,,,,,,No
The Royal Borough of Kensington and Chelsea,RBKC,,Statutory Year End Accounting,Statutory Year End Accounting,,Fusion Project Management Ltd,1268369,,,,06/05/2020,2200094716,"181,815.00",,Payments to main contractor,,,,,,No
The Royal Borough of Kensington and Chelsea,RBKC,,Statutory Year End Accounting,Statutory Year End Accounting,,Fusion Project Management Ltd,1268369,,,,26/05/2020,2200098890,"2,310.00",,Payments to main contractor,,,,,,No
The Royal Borough of Kensington and Chelsea,RBKC,,Statutory Year End Accounting,Statutory Year End Accounting,,Fusion Project Management Ltd,1268369,,,,26/05/2020,2200098907,"3,000.00",,Payments to main contractor,,,,,,No
The Royal Borough of Kensington and Chelsea,RBKC,,Statutory Year End Accounting,Statutory Year End Accounting,,LDN Conveyancing Ltd,D000000023,,,,12/06/2020,3110197513,"170,474.00",,Acquisition of Land & Buildings,,,,,,No
The Royal Borough of Kensington and Chelsea,RBKC,,Statutory Year End Accounting,Statutory Year End Accounting,,Gardiner & Theobald LLP ,1234613,,,,06/04/2020,2200088216,"10,000.00",,Other Consultants,,,,,,No
The Royal Borough of Kensington and Chelsea,RBKC,,Statutory Year End Accounting,Statutory Year End Accounting,,Gardiner & Theobald LLP ,1234613,,,,08/04/2020,2200088742,"4,500.00",,Other Consultants,,,,,,No
The Royal Borough of Kensington and Chelsea,RBKC,,Statutory Year End Accounting,Statutory Year End Accounting,,Gardiner & Theobald LLP ,1234613,,,,06/05/2020,2200094740,"7,000.00",,Other Consultants,,,,,,No
The Royal Borough of Kensington and Chelsea,RBKC,,Statutory Year End Accounting,Statutory Year End Accounting,,Gardiner & Theobald LLP ,1234613,,,,19/05/2020,2200097062,"10,400.00",,Other Consultants,,,,,,No
The Royal Borough of Kensington and Chelsea,RBKC,,Statutory Year End Accounting,Statutory Year End Accounting,,Gardiner & Theobald LLP ,1234613,,,,04/06/2020,2200100790,"4,500.00",,Other Consultants,,,,,,No
The Royal Borough of Kensington and Chelsea,RBKC,,Statutory Year End Accounting,Statutory Year End Accounting,,Garvey Bros Builders ,1234614,,,,02/04/2020,2200087612,"13,867.00",,Payments to main contractor,,,,,,No
The Royal Borough of Kensington and Chelsea,RBKC,,Statutory Year End Accounting,Statutory Year End Accounting,,Garvey Bros Builders ,1234614,,,,06/04/2020,2200088176,"9,175.00",,Payments to main contractor,,,,,,No
The Royal Borough of Kensington and Chelsea,RBKC,,Statutory Year End Accounting,Statutory Year End Accounting,,Garvey Bros Builders ,1234614,,,,06/04/2020,2200088177,"12,377.00",,Payments to main contractor,,,,,,No
The Royal Borough of Kensington and Chelsea,RBKC,,Statutory Year End Accounting,Statutory Year End Accounting,,Gerda Security Products Ltd ,1234642,,,,02/04/2020,2200087509,"61,220.91",,Payments to main contractor,,,,,,No
The Royal Borough of Kensington and Chelsea,RBKC,,Statutory Year End Accounting,Statutory Year End Accounting,,Gerda Security Products Ltd ,1234642,,,,02/04/2020,2200087510,"40,221.03",,Payments to main contractor,,,,,,No
The Royal Borough of Kensington and Chelsea,RBKC,,Statutory Year End Accounting,Statutory Year End Accounting,,Gerda Security Products Ltd ,1234642,,,,02/04/2020,2200087511,"126,972.65",,Payments to main contractor,,,,,,No
The Royal Borough of Kensington and Chelsea,RBKC,,Statutory Year End Accounting,Statutory Year End Accounting,,Gerda Security Products Ltd ,1234642,,,,02/04/2020,2200087512,"41,843.11",,Payments to main contractor,,,,,,No
The Royal Borough of Kensington and Chelsea,RBKC,,Statutory Year End Accounting,Statutory Year End Accounting,,Gerda Security Products Ltd ,1234642,,,,02/04/2020,2200087513,"38,605.91",,Payments to main contractor,,,,,,No
The Royal Borough of Kensington and Chelsea,RBKC,,Statutory Year End Accounting,Statutory Year End Accounting,,Gerda Security Products Ltd ,1234642,,,,02/04/2020,2200087514,"22,927.72",,Payments to main contractor,,,,,,No
The Royal Borough of Kensington and Chelsea,RBKC,,Statutory Year End Accounting,Statutory Year End Accounting,,Gerda Security Products Ltd ,1234642,,,,02/04/2020,2200087515,"21,244.44",,Payments to main contractor,,,,,,No
The Royal Borough of Kensington and Chelsea,RBKC,,Statutory Year End Accounting,Statutory Year End Accounting,,Gerda Security Products Ltd ,1234642,,,,02/04/2020,2200087516,"21,933.30",,Payments to main contractor,,,,,,No
The Royal Borough of Kensington and Chelsea,RBKC,,Statutory Year End Accounting,Statutory Year End Accounting,,Gerda Security Products Ltd ,1234642,,,,02/04/2020,2200087517,"23,148.81",,Payments to main contractor,,,,,,No
The Royal Borough of Kensington and Chelsea,RBKC,,Statutory Year End Accounting,Statutory Year End Accounting,,Gerda Security Products Ltd ,1234642,,,,02/04/2020,2200087518,"20,716.75",,Payments to main contractor,,,,,,No
The Royal Borough of Kensington and Chelsea,RBKC,,Statutory Year End Accounting,Statutory Year End Accounting,,Gerda Security Products Ltd ,1234642,,,,02/04/2020,2200087519,"42,447.78",,Payments to main contractor,,,,,,No
The Royal Borough of Kensington and Chelsea,RBKC,,Statutory Year End Accounting,Statutory Year End Accounting,,Gerda Security Products Ltd ,1234642,,,,02/04/2020,2200087520,"28,012.89",,Payments to main contractor,,,,,,No
The Royal Borough of Kensington and Chelsea,RBKC,,Statutory Year End Accounting,Statutory Year End Accounting,,Gerda Security Products Ltd ,1234642,,,,02/04/2020,2200087521,"20,257.84",,Payments to main contractor,,,,,,No
The Royal Borough of Kensington and Chelsea,RBKC,,Statutory Year End Accounting,Statutory Year End Accounting,,Gerda Security Products Ltd ,1234642,,,,02/04/2020,2200087522,"32,457.04",,Payments to main contractor,,,,,,No
The Royal Borough of Kensington and Chelsea,RBKC,,Statutory Year End Accounting,Statutory Year End Accounting,,Gerda Security Products Ltd ,1234642,,,,03/04/2020,2200087743,"9,450.00",,Payments to main contractor,,,,,,No
The Royal Borough of Kensington and Chelsea,RBKC,,Statutory Year End Accounting,Statutory Year End Accounting,,Gerda Security Products Ltd ,1234642,,,,08/04/2020,2200088749,"7,000.00",,Payments to main contractor,,,,,,No
The Royal Borough of Kensington and Chelsea,RBKC,,Statutory Year End Accounting,Statutory Year End Accounting,,Gerda Security Products Ltd ,1234642,,,,15/04/2020,2200089604,"2,450.00",,Payments to main contractor,,,,,,No
The Royal Borough of Kensington and Chelsea,RBKC,,Statutory Year End Accounting,Statutory Year End Accounting,,Gerda Security Products Ltd ,1234642,,,,15/04/2020,2200089605,"9,540.64",,Payments to main contractor,,,,,,No
The Royal Borough of Kensington and Chelsea,RBKC,,Statutory Year End Accounting,Statutory Year End Accounting,,Gerda Security Products Ltd ,1234642,,,,20/04/2020,2200090677,"6,650.00",,Payments to main contractor,,,,,,No
The Royal Borough of Kensington and Chelsea,RBKC,,Statutory Year End Accounting,Statutory Year End Accounting,,Gerda Security Products Ltd ,1234642,,,,23/04/2020,2200091529,"5,950.00",,Payments to main contractor,,,,,,No
The Royal Borough of Kensington and Chelsea,RBKC,,Statutory Year End Accounting,Statutory Year End Accounting,,Gerda Security Products Ltd ,1234642,,,,23/04/2020,2200091553,"5,250.00",,Payments to main contractor,,,,,,No
The Royal Borough of Kensington and Chelsea,RBKC,,Statutory Year End Accounting,Statutory Year End Accounting,,Gerda Security Products Ltd ,1234642,,,,05/05/2020,2200094558,"4,200.00",,Payments to main contractor,,,,,,No
The Royal Borough of Kensington and Chelsea,RBKC,,Statutory Year End Accounting,Statutory Year End Accounting,,Gerda Security Products Ltd ,1234642,,,,05/05/2020,2200094559,"1,400.00",,Payments to main contractor,,,,,,No
The Royal Borough of Kensington and Chelsea,RBKC,,Statutory Year End Accounting,Statutory Year End Accounting,,Gerda Security Products Ltd ,1234642,,,,05/05/2020,2200094560,"1,050.00",,Payments to main contractor,,,,,,No
The Royal Borough of Kensington and Chelsea,RBKC,,Statutory Year End Accounting,Statutory Year End Accounting,,Gerda Security Products Ltd ,1234642,,,,05/05/2020,2200094561,"4,900.00",,Payments to main contractor,,,,,,No
The Royal Borough of Kensington and Chelsea,RBKC,,Statutory Year End Accounting,Statutory Year End Accounting,,Gerda Security Products Ltd ,1234642,,,,05/05/2020,2200094562,700,,Payments to main contractor,,,,,,No
The Royal Borough of Kensington and Chelsea,RBKC,,Statutory Year End Accounting,Statutory Year End Accounting,,Gerda Security Products Ltd ,1234642,,,,05/05/2020,2200094563,"5,950.00",,Payments to main contractor,,,,,,No
The Royal Borough of Kensington and Chelsea,RBKC,,Statutory Year End Accounting,Statutory Year End Accounting,,Gerda Security Products Ltd ,1234642,,,,05/05/2020,2200094565,"3,525.00",,Payments to main contractor,,,,,,No
The Royal Borough of Kensington and Chelsea,RBKC,,Statutory Year End Accounting,Statutory Year End Accounting,,Gerda Security Products Ltd ,1234642,,,,05/05/2020,2200094566,"13,262.20",,Payments to main contractor,,,,,,No
The Royal Borough of Kensington and Chelsea,RBKC,,Statutory Year End Accounting,Statutory Year End Accounting,,Gerda Security Products Ltd ,1234642,,,,06/05/2020,2200094824,736.36,,Payments to main contractor,,,,,,No
The Royal Borough of Kensington and Chelsea,RBKC,,Statutory Year End Accounting,Statutory Year End Accounting,,Gerda Security Products Ltd ,1234642,,,,12/05/2020,2200095704,"2,862.76",,Payments to main contractor,,,,,,No
The Royal Borough of Kensington and Chelsea,RBKC,,Statutory Year End Accounting,Statutory Year End Accounting,,Gerda Security Products Ltd ,1234642,,,,14/05/2020,2200096448,"5,250.00",,Payments to main contractor,,,,,,No
The Royal Borough of Kensington and Chelsea,RBKC,,Statutory Year End Accounting,Statutory Year End Accounting,,Gerda Security Products Ltd ,1234642,,,,21/05/2020,2200097835,"32,174.56",,Payments to main contractor,,,,,,No
The Royal Borough of Kensington and Chelsea,RBKC,,Statutory Year End Accounting,Statutory Year End Accounting,,Gerda Security Products Ltd ,1234642,,,,26/05/2020,2200098861,"22,406.79",,Payments to main contractor,,,,,,No
The Royal Borough of Kensington and Chelsea,RBKC,,Statutory Year End Accounting,Statutory Year End Accounting,,Gerda Security Products Ltd ,1234642,,,,09/06/2020,2200101703,"5,950.00",,Payments to main contractor,,,,,,No
The Royal Borough of Kensington and Chelsea,RBKC,,Statutory Year End Accounting,Statutory Year End Accounting,,Gerda Security Products Ltd ,1234642,,,,09/06/2020,2200101793,"19,737.92",,Payments to main contractor,,,,,,No
The Royal Borough of Kensington and Chelsea,RBKC,,Statutory Year End Accounting,Statutory Year End Accounting,,Gerda Security Products Ltd ,1234642,,,,15/06/2020,2200102911,"1,695.70",,Payments to main contractor,,,,,,No
The Royal Borough of Kensington and Chelsea,RBKC,,Statutory Year End Accounting,Statutory Year End Accounting,,Gerda Security Products Ltd ,1234642,,,,15/06/2020,2200102912,"22,943.82",,Payments to main contractor,,,,,,No
The Royal Borough of Kensington and Chelsea,RBKC,,Statutory Year End Accounting,Statutory Year End Accounting,,Gerda Security Products Ltd ,1234642,,,,16/06/2020,2200103032,"16,100.00",,Payments to main contractor,,,,,,No
The Royal Borough of Kensington and Chelsea,RBKC,,Statutory Year End Accounting,Statutory Year End Accounting,,Gerda Security Products Ltd ,1234642,,,,16/06/2020,2200103083,"5,575.00",,Payments to main contractor,,,,,,No
The Royal Borough of Kensington and Chelsea,RBKC,,Statutory Year End Accounting,Statutory Year End Accounting,,Gerda Security Products Ltd ,1234642,,,,16/06/2020,2200103145,"6,650.00",,Payments to main contractor,,,,,,No
The Royal Borough of Kensington and Chelsea,RBKC,,Statutory Year End Accounting,Statutory Year End Accounting,,Gerda Security Products Ltd ,1234642,,,,16/06/2020,2200103146,"6,650.00",,Payments to main contractor,,,,,,No
The Royal Borough of Kensington and Chelsea,RBKC,,Statutory Year End Accounting,Statutory Year End Accounting,,Gerda Security Products Ltd ,1234642,,,,16/06/2020,2200103147,"1,750.00",,Payments to main contractor,,,,,,No
The Royal Borough of Kensington and Chelsea,RBKC,,Statutory Year End Accounting,Statutory Year End Accounting,,Gerda Security Products Ltd ,1234642,,,,16/06/2020,2200103149,"9,450.00",,Payments to main contractor,,,,,,No
The Royal Borough of Kensington and Chelsea,RBKC,,Statutory Year End Accounting,Statutory Year End Accounting,,Gerda Security Products Ltd ,1234642,,,,16/06/2020,2200103150,"2,450.00",,Payments to main contractor,,,,,,No
The Royal Borough of Kensington and Chelsea,RBKC,,Statutory Year End Accounting,Statutory Year End Accounting,,Gerda Security Products Ltd ,1234642,,,,16/06/2020,2200103152,"2,800.00",,Payments to main contractor,,,,,,No
The Royal Borough of Kensington and Chelsea,RBKC,,Statutory Year End Accounting,Statutory Year End Accounting,,Gerda Security Products Ltd ,1234642,,,,16/06/2020,2200103153,"6,300.00",,Payments to main contractor,,,,,,No
The Royal Borough of Kensington and Chelsea,RBKC,,Statutory Year End Accounting,Statutory Year End Accounting,,Gerda Security Products Ltd ,1234642,,,,16/06/2020,2200103156,"5,927.03",,Payments to main contractor,,,,,,No
The Royal Borough of Kensington and Chelsea,RBKC,,Statutory Year End Accounting,Statutory Year End Accounting,,Gerda Security Products Ltd ,1234642,,,,16/06/2020,2200103157,"1,545.69",,Payments to main contractor,,,,,,No
The Royal Borough of Kensington and Chelsea,RBKC,,Statutory Year End Accounting,Statutory Year End Accounting,,Gerda Security Products Ltd ,1234642,,,,24/06/2020,2200104648,"26,059.02",,Payments to main contractor,,,,,,No
The Royal Borough of Kensington and Chelsea,RBKC,,Statutory Year End Accounting,Statutory Year End Accounting,,Gerda Security Products Ltd ,1234642,,,,24/06/2020,2200104649,"7,194.22",,Payments to main contractor,,,,,,No
The Royal Borough of Kensington and Chelsea,RBKC,,Statutory Year End Accounting,Statutory Year End Accounting,,Green Building Design Consultants L,1256002,,,,30/04/2020,2200093288,"1,772.50",,Payments to main contractor,,,,,,No
The Royal Borough of Kensington and Chelsea,RBKC,,Statutory Year End Accounting,Statutory Year End Accounting,,Greenacre Recruitment,1258089,,,,07/04/2020,2200088403,"2,625.00",,Capitalised salaries,,,,,,No
The Royal Borough of Kensington and Chelsea,RBKC,,Statutory Year End Accounting,Statutory Year End Accounting,,Greenacre Recruitment,1258089,,,,09/04/2020,2200089133,"2,625.00",,Capitalised salaries,,,,,,No
The Royal Borough of Kensington and Chelsea,RBKC,,Statutory Year End Accounting,Statutory Year End Accounting,,Greenacre Recruitment,1258089,,,,17/04/2020,2200090333,"2,100.00",,Capitalised salaries,,,,,,No
The Royal Borough of Kensington and Chelsea,RBKC,,Statutory Year End Accounting,Statutory Year End Accounting,,Greenacre Recruitment,1258089,,,,22/04/2020,2200091355,"2,750.00",,Capitalised salaries,,,,,,No
The Royal Borough of Kensington and Chelsea,RBKC,,Statutory Year End Accounting,Statutory Year End Accounting,,Greenacre Recruitment,1258089,,,,22/04/2020,2200091356,"2,200.00",,Capitalised salaries,,,,,,No
The Royal Borough of Kensington and Chelsea,RBKC,,Statutory Year End Accounting,Statutory Year End Accounting,,Greenacre Recruitment,1258089,,,,22/04/2020,2200091357,"2,200.00",,Capitalised salaries,,,,,,No
The Royal Borough of Kensington and Chelsea,RBKC,,Statutory Year End Accounting,Statutory Year End Accounting,,Greenacre Recruitment,1258089,,,,22/04/2020,2200091359,"2,200.00",,Capitalised salaries,,,,,,No
The Royal Borough of Kensington and Chelsea,RBKC,,Statutory Year End Accounting,Statutory Year End Accounting,,Greenacre Recruitment,1258089,,,,23/04/2020,2200091527,"2,100.00",,Capitalised salaries,,,,,,No
The Royal Borough of Kensington and Chelsea,RBKC,,Statutory Year End Accounting,Statutory Year End Accounting,,Greenacre Recruitment,1258089,,,,05/05/2020,2200094387,"2,625.00",,Capitalised salaries,,,,,,No
The Royal Borough of Kensington and Chelsea,RBKC,,Statutory Year End Accounting,Statutory Year End Accounting,,Greenacre Recruitment,1258089,,,,11/05/2020,2200095568,"2,362.50",,Capitalised salaries,,,,,,No
The Royal Borough of Kensington and Chelsea,RBKC,,Statutory Year End Accounting,Statutory Year End Accounting,,Greenacre Recruitment,1258089,,,,14/05/2020,2200096525,"2,100.00",,Capitalised salaries,,,,,,No
The Royal Borough of Kensington and Chelsea,RBKC,,Statutory Year End Accounting,Statutory Year End Accounting,,Greenacre Recruitment,1258089,,,,28/05/2020,2200099325,"2,625.00",,Capitalised salaries,,,,,,No
The Royal Borough of Kensington and Chelsea,RBKC,,Statutory Year End Accounting,Statutory Year End Accounting,,Greenacre Recruitment,1258089,,,,01/06/2020,2200099775,"2,625.00",,Capitalised salaries,,,,,,No
The Royal Borough of Kensington and Chelsea,RBKC,,Statutory Year End Accounting,Statutory Year End Accounting,,Greenacre Recruitment,1258089,,,,05/06/2020,2200101121,"2,100.00",,Capitalised salaries,,,,,,No
The Royal Borough of Kensington and Chelsea,RBKC,,Statutory Year End Accounting,Statutory Year End Accounting,,Greenacre Recruitment,1258089,,,,10/06/2020,2200101914,"2,625.00",,Capitalised salaries,,,,,,No
The Royal Borough of Kensington and Chelsea,RBKC,,Statutory Year End Accounting,Statutory Year End Accounting,,Greenacre Recruitment,1258089,,,,10/06/2020,2200101915,"2,625.00",,Capitalised salaries,,,,,,No
The Royal Borough of Kensington and Chelsea,RBKC,,Statutory Year End Accounting,Statutory Year End Accounting,,Greenacre Recruitment,1258089,,,,12/06/2020,2200102438,"2,625.00",,Capitalised salaries,,,,,,No
The Royal Borough of Kensington and Chelsea,RBKC,,Statutory Year End Accounting,Statutory Year End Accounting,,Greenacre Recruitment,1258089,,,,19/06/2020,2200103874,"2,625.00",,Capitalised salaries,,,,,,No
The Royal Borough of Kensington and Chelsea,RBKC,,Statutory Year End Accounting,Statutory Year End Accounting,,Greenacre Recruitment,1258089,,,,29/06/2020,2200105770,"2,625.00",,Capitalised salaries,,,,,,No
The Royal Borough of Kensington and Chelsea,RBKC,,Statutory Year End Accounting,Statutory Year End Accounting,,Greenwich Leisure Ltd (Gll) ,1234678,,,,15/04/2020,2200089900,"225,601.00",,Creditors Control : AP GRIR,,,,,,No
The Royal Borough of Kensington and Chelsea,RBKC,,Statutory Year End Accounting,Statutory Year End Accounting,,Greenwich Leisure Ltd (Gll) ,1234678,,,,27/04/2020,2200092352,"63,937.00",,Payments to main contractor,,,,,,No
The Royal Borough of Kensington and Chelsea,RBKC,,Statutory Year End Accounting,Statutory Year End Accounting,,Greenwich Leisure Ltd (Gll) ,1234678,,,,27/04/2020,2200092353,"96,960.00",,Payments to main contractor,,,,,,No
The Royal Borough of Kensington and Chelsea,RBKC,,Statutory Year End Accounting,Statutory Year End Accounting,,Guarding UK Ltd ,1230372,,,,17/04/2020,2200090435,"11,858.83",,Creditors Control : AP GRIR,,,,,,No
The Royal Borough of Kensington and Chelsea,RBKC,,Statutory Year End Accounting,Statutory Year End Accounting,,Guarding UK Ltd ,1230372,,,,12/05/2020,2200095993,"12,249.60",,Creditors Control : AP GRIR,,,,,,No
The Royal Borough of Kensington and Chelsea,RBKC,,Statutory Year End Accounting,Statutory Year End Accounting,,Guarding UK Ltd ,1230372,,,,15/06/2020,2200102776,"12,632.40",,Creditors Control : AP GRIR,,,,,,No
The Royal Borough of Kensington and Chelsea,RBKC,,Statutory Year End Accounting,Statutory Year End Accounting,,Guarding UK Ltd ,1230372,,,,19/06/2020,2200103749,"2,834.00",,Site Works,,,,,,No
The Royal Borough of Kensington and Chelsea,RBKC,,Statutory Year End Accounting,Statutory Year End Accounting,,Guideline Lift Services Ltd ,1231219,,,,17/06/2020,2200103404,"37,635.42",,Payments to main contractor,,,,,,No
The Royal Borough of Kensington and Chelsea,RBKC,,Statutory Year End Accounting,Statutory Year End Accounting,,Guideline Lift Services Ltd ,1231219,,,,17/06/2020,2200103405,"28,846.17",,Payments to main contractor,,,,,,No
The Royal Borough of Kensington and Chelsea,RBKC,,Statutory Year End Accounting,Statutory Year End Accounting,,HeliDrone Surveys,1268307,,,,09/04/2020,2200089116,"3,600.00",,Payments to main contractor,,,,,,No
The Royal Borough of Kensington and Chelsea,RBKC,,Statutory Year End Accounting,Statutory Year End Accounting,,HeliDrone Surveys,1268307,,,,27/05/2020,2200099027,"10,980.00",,Payments to main contractor,,,,,,No
The Royal Borough of Kensington and Chelsea,RBKC,,Statutory Year End Accounting,Statutory Year End Accounting,,Henry Riley LLP ,1230402,,,,30/04/2020,2200093339,"5,100.00",,Other Consultants,,,,,,No
The Royal Borough of Kensington and Chelsea,RBKC,,Statutory Year End Accounting,Statutory Year End Accounting,,Henry Riley LLP ,1230402,,,,28/05/2020,2200099390,"5,100.00",,Other Consultants,,,,,,No
The Royal Borough of Kensington and Chelsea,RBKC,,Statutory Year End Accounting,Statutory Year End Accounting,,Henry Riley LLP ,1230402,,,,30/06/2020,2200105941,"5,100.00",,Other Consultants,,,,,,No
The Royal Borough of Kensington and Chelsea,RBKC,,Statutory Year End Accounting,Statutory Year End Accounting,,Holy Trinity School ,1236081,,,,16/06/2020,2200103064,"42,700.00",,Payments to main contractor,,,,,,No
The Royal Borough of Kensington and Chelsea,RBKC,,Statutory Year End Accounting,Statutory Year End Accounting,,Hunters and Partners Ltd ,1254860,,,,20/04/2020,2200090760,"11,261.68",,Payments to main contractor,,,,,,No
The Royal Borough of Kensington and Chelsea,RBKC,,Statutory Year End Accounting,Statutory Year End Accounting,,Hunters and Partners Ltd ,1254860,,,,30/04/2020,2200093155,"9,500.00",,Payments to main contractor,,,,,,No
The Royal Borough of Kensington and Chelsea,RBKC,,Statutory Year End Accounting,Statutory Year End Accounting,,Hunters and Partners Ltd ,1254860,,,,28/05/2020,2200099388,"19,568.60",,Other Consultants,,,,,,No
The Royal Borough of Kensington and Chelsea,RBKC,,Statutory Year End Accounting,Statutory Year End Accounting,,Hunters and Partners Ltd ,1254860,,,,03/06/2020,2200100526,"23,175.00",,Other Consultants,,,,,,No
The Royal Borough of Kensington and Chelsea,RBKC,,Statutory Year End Accounting,Statutory Year End Accounting,,ITS Fire & Security Ltd ,1234802,,,,16/06/2020,2200103062,931.52,,Payments to main contractor,,,,,,No
The Royal Borough of Kensington and Chelsea,RBKC,,Statutory Year End Accounting,Statutory Year End Accounting,,Ian Mcnicol Partnerships Ltd ,1230445,,,,09/06/2020,2200101629,"2,056.30",,Creditors Control : AP GRIR,,,,,,No
The Royal Borough of Kensington and Chelsea,RBKC,,Statutory Year End Accounting,Statutory Year End Accounting,,Idverde Ltd ,1231380,,,,20/05/2020,2200097640,"146,072.53",,Construction : enhancements,,,,,,No
The Royal Borough of Kensington and Chelsea,RBKC,,Statutory Year End Accounting,Statutory Year End Accounting,,Image Playgrounds Ltd,1267749,,,,15/06/2020,2200102789,"5,805.00",,Payments to main contractor,,,,,,No
The Royal Borough of Kensington and Chelsea,RBKC,,Statutory Year End Accounting,Statutory Year End Accounting,,Ingleton Wood ,1234783,,,,01/04/2020,2200087387,"2,412.72",,Other Consultants,,,,,,No
The Royal Borough of Kensington and Chelsea,RBKC,,Statutory Year End Accounting,Statutory Year End Accounting,,Ingleton Wood ,1234783,,,,22/05/2020,2200098089,"2,412.72",,Other Consultants,,,,,,No
The Royal Borough of Kensington and Chelsea,RBKC,,Statutory Year End Accounting,Statutory Year End Accounting,,Ingleton Wood ,1234783,,,,05/06/2020,2200100947,810,,Other Consultants,,,,,,No
The Royal Borough of Kensington and Chelsea,RBKC,,Statutory Year End Accounting,Statutory Year End Accounting,,Insight Direct (Uk) Ltd ,1234788,,,,12/06/2020,2200102566,957,,Creditors Control : AP GRIR,,,,,,No
The Royal Borough of Kensington and Chelsea,RBKC,,Statutory Year End Accounting,Statutory Year End Accounting,,JH Crawford Security Ltd ,1234817,,,,16/04/2020,2200090068,"1,433.00",,Creditors Control : AP GRIR,,,,,,No
The Royal Borough of Kensington and Chelsea,RBKC,,Statutory Year End Accounting,Statutory Year End Accounting,,JH Crawford Security Ltd ,1234817,,,,12/06/2020,2200102575,"2,940.00",,Creditors Control : AP GRIR,,,,,,No
The Royal Borough of Kensington and Chelsea,RBKC,,Statutory Year End Accounting,Statutory Year End Accounting,,Jackson Coles LLP ,1230491,,,,30/06/2020,2200106110,"3,189.00",,Other Consultants,,,,,,No
The Royal Borough of Kensington and Chelsea,RBKC,,Statutory Year End Accounting,Statutory Year End Accounting,,K & T Heating Services Ltd ,1231384,,,,03/04/2020,2200087718,"48,048.00",,Payments to main contractor,,,,,,No
The Royal Borough of Kensington and Chelsea,RBKC,,Statutory Year End Accounting,Statutory Year End Accounting,,K & T Heating Services Ltd ,1231384,,,,03/04/2020,2200087719,"224,582.00",,Payments to main contractor,,,,,,No
The Royal Borough of Kensington and Chelsea,RBKC,,Statutory Year End Accounting,Statutory Year End Accounting,,K & T Heating Services Ltd ,1231384,,,,21/05/2020,2200097839,"74,146.00",,Payments to main contractor,,,,,,No
The Royal Borough of Kensington and Chelsea,RBKC,,Statutory Year End Accounting,Statutory Year End Accounting,,K & T Heating Services Ltd ,1231384,,,,21/05/2020,2200097840,"51,438.00",,Payments to main contractor,,,,,,No
The Royal Borough of Kensington and Chelsea,RBKC,,Statutory Year End Accounting,Statutory Year End Accounting,,K & T Heating Services Ltd ,1231384,,,,09/06/2020,2200101745,"5,874.00",,Payments to main contractor,,,,,,No
The Royal Borough of Kensington and Chelsea,RBKC,,Statutory Year End Accounting,Statutory Year End Accounting,,Landrock Phillips Ltd ,1230566,,,,01/04/2020,2200090713,"3,250.00",,Construction : enhancements,,,,,,No
The Royal Borough of Kensington and Chelsea,RBKC,,Statutory Year End Accounting,Statutory Year End Accounting,,Landrock Phillips Ltd ,1230566,,,,29/06/2020,2200105729,900,,Payments to main contractor,,,,,,No
The Royal Borough of Kensington and Chelsea,RBKC,,Statutory Year End Accounting,Statutory Year End Accounting,,Lend Lease Consulting (Emea) Ltd ,1234899,,,,06/04/2020,2200088221,"8,687.00",,Construction : enhancements,,,,,,No
The Royal Borough of Kensington and Chelsea,RBKC,,Statutory Year End Accounting,Statutory Year End Accounting,,Lend Lease Consulting (Emea) Ltd ,1234899,,,,30/04/2020,2200093381,"8,687.00",,Construction : enhancements,,,,,,No
The Royal Borough of Kensington and Chelsea,RBKC,,Statutory Year End Accounting,Statutory Year End Accounting,,Lend Lease Consulting (Emea) Ltd ,1234899,,,,25/06/2020,2200104814,"8,687.00",,Construction : enhancements,,,,,,No
The Royal Borough of Kensington and Chelsea,RBKC,,Statutory Year End Accounting,Statutory Year End Accounting,,Lexden Consultancy Ltd,1261556,,,,20/04/2020,2200090699,"1,764.00",,Professional Fees : Non Legal,,,,,,No
The Royal Borough of Kensington and Chelsea,RBKC,,Statutory Year End Accounting,Statutory Year End Accounting,,Lexden Consultancy Ltd,1261556,,,,05/05/2020,2200094557,588,,Professional Fees : Non Legal,,,,,,No
The Royal Borough of Kensington and Chelsea,RBKC,,Statutory Year End Accounting,Statutory Year End Accounting,,London Fire Solutions LLP ,1231392,,,,13/04/2020,2200089326,"43,588.61",,Payments to main contractor,,,,,,No
The Royal Borough of Kensington and Chelsea,RBKC,,Statutory Year End Accounting,Statutory Year End Accounting,,London Fire Solutions LLP ,1231392,,,,20/04/2020,2200090621,"6,676.46",,Payments to main contractor,,,,,,No
The Royal Borough of Kensington and Chelsea,RBKC,,Statutory Year End Accounting,Statutory Year End Accounting,,Redact Details,1231393,,,,07/04/2020,2200088452,"1,710.00",,Construction : enhancements,,,,,,No
The Royal Borough of Kensington and Chelsea,RBKC,,Statutory Year End Accounting,Statutory Year End Accounting,,M Clark Limited t/aClark Consulting,1268506,,,,17/04/2020,2200090401,820,,Other Consultants,,,,,,No
The Royal Borough of Kensington and Chelsea,RBKC,,Statutory Year End Accounting,Statutory Year End Accounting,,MA Cost Consulting Ltd,1230640,,,,09/06/2020,2200101764,"3,660.00",,Other Consultants,,,,,,No
The Royal Borough of Kensington and Chelsea,RBKC,,Statutory Year End Accounting,Statutory Year End Accounting,,MDA Consulting Limited ,1234989,,,,01/04/2020,2200087528,528,,Professional Fees : Non Legal,,,,,,No
The Royal Borough of Kensington and Chelsea,RBKC,,Statutory Year End Accounting,Statutory Year End Accounting,,MDA Consulting Limited ,1234989,,,,01/04/2020,2200088194,528,,Site Works,,,,,,No
The Royal Borough of Kensington and Chelsea,RBKC,,Statutory Year End Accounting,Statutory Year End Accounting,,MDA Consulting Limited ,1234989,,,,01/04/2020,2200088195,"3,696.00",,Other Consultants,,,,,,No
The Royal Borough of Kensington and Chelsea,RBKC,,Statutory Year End Accounting,Statutory Year End Accounting,,MDA Consulting Limited ,1234989,,,,08/04/2020,2200088766,880,,Other Consultants,,,,,,No
The Royal Borough of Kensington and Chelsea,RBKC,,Statutory Year End Accounting,Statutory Year End Accounting,,MDA Consulting Limited ,1234989,,,,28/05/2020,2200099389,748,,Other Consultants,,,,,,No
The Royal Borough of Kensington and Chelsea,RBKC,,Statutory Year End Accounting,Statutory Year End Accounting,,MDA Consulting Limited ,1234989,,,,04/06/2020,2200100797,880,,Other Consultants,,,,,,No
The Royal Borough of Kensington and Chelsea,RBKC,,Statutory Year End Accounting,Statutory Year End Accounting,,MDA Consulting Limited ,1234989,,,,09/06/2020,2200101643,880,,Professional Fees : Non Legal,,,,,,No
The Royal Borough of Kensington and Chelsea,RBKC,,Statutory Year End Accounting,Statutory Year End Accounting,,MMM Architects Ltd,1259041,,,,16/04/2020,2200090104,"1,500.00",,Payments to main contractor,,,,,,No
The Royal Borough of Kensington and Chelsea,RBKC,,Statutory Year End Accounting,Statutory Year End Accounting,,MMM Architects Ltd,1259041,,,,30/04/2020,2200093327,"1,500.00",,Payments to main contractor,,,,,,No
The Royal Borough of Kensington and Chelsea,RBKC,,Statutory Year End Accounting,Statutory Year End Accounting,,MMM Architects Ltd,1259041,,,,03/06/2020,2200100527,"1,500.00",,Payments to main contractor,,,,,,No
The Royal Borough of Kensington and Chelsea,RBKC,,Statutory Year End Accounting,Statutory Year End Accounting,,MPS Housing Ltd ,1253367,,,,01/04/2020,2200087304,"54,017.20",,Creditors Control : AP GRIR,,,,,,No
The Royal Borough of Kensington and Chelsea,RBKC,,Statutory Year End Accounting,Statutory Year End Accounting,,MPS Housing Ltd ,1253367,,,,02/04/2020,2200087481,"126,487.90",,Creditors Control : AP GRIR,,,,,,No
The Royal Borough of Kensington and Chelsea,RBKC,,Statutory Year End Accounting,Statutory Year End Accounting,,Maccreanor Lavington Ltd,1262735,,,,21/04/2020,2200091036,"7,801.00",,Site Works,,,,,,No
The Royal Borough of Kensington and Chelsea,RBKC,,Statutory Year End Accounting,Statutory Year End Accounting,,Maccreanor Lavington Ltd,1262735,,,,12/05/2020,2200095842,"28,022.90",,Site Works,,,,,,No
The Royal Borough of Kensington and Chelsea,RBKC,,Statutory Year End Accounting,Statutory Year End Accounting,,Maccreanor Lavington Ltd,1262735,,,,03/06/2020,2200100481,"14,000.00",,Site Works,,,,,,No
The Royal Borough of Kensington and Chelsea,RBKC,,Statutory Year End Accounting,Statutory Year End Accounting,,Mace Limited ,1230643,,,,07/04/2020,2200088395,"1,169,456.00",,Construction : enhancements,,,,,,No
The Royal Borough of Kensington and Chelsea,RBKC,,Statutory Year End Accounting,Statutory Year End Accounting,,Mace Limited ,1230643,,,,07/05/2020,2200095145,"418,226.95",,Construction : enhancements,,,,,,No
The Royal Borough of Kensington and Chelsea,RBKC,,Statutory Year End Accounting,Statutory Year End Accounting,,Mace Limited ,1230643,,,,08/06/2020,2200101330,"50,225.00",,Construction : enhancements,,,,,,No
The Royal Borough of Kensington and Chelsea,RBKC,,Statutory Year End Accounting,Statutory Year End Accounting,,Mace Limited ,1230643,,,,09/06/2020,2200101642,"827,827.36",,Construction : enhancements,,,,,,No
The Royal Borough of Kensington and Chelsea,RBKC,,Statutory Year End Accounting,Statutory Year End Accounting,,Master Locking Systems Ltd,1262396,,,,18/06/2020,2200103599,"2,323.51",,Creditors Control : AP GRIR,,,,,,No
The Royal Borough of Kensington and Chelsea,RBKC,,Statutory Year End Accounting,Statutory Year End Accounting,,Michael Page International Recruitment Ltd,1235002,,,,07/04/2020,2200088425,547.26,,Capitalised salaries,,,,,,No
The Royal Borough of Kensington and Chelsea,RBKC,,Statutory Year End Accounting,Statutory Year End Accounting,,Michael Page International Recruitment Ltd,1235002,,,,14/04/2020,2200089522,521.2,,Capitalised salaries,,,,,,No
The Royal Borough of Kensington and Chelsea,RBKC,,Statutory Year End Accounting,Statutory Year End Accounting,,Michael Page International Recruitment Ltd,1235002,,,,04/05/2020,2200094161,781.8,,Capitalised salaries,,,,,,No
The Royal Borough of Kensington and Chelsea,RBKC,,Statutory Year End Accounting,Statutory Year End Accounting,,Michael Page International Recruitment Ltd,1235002,,,,05/05/2020,2200094461,781.8,,Payments to main contractor,,,,,,No
The Royal Borough of Kensington and Chelsea,RBKC,,Statutory Year End Accounting,Statutory Year End Accounting,,Michael Page International Recruitment Ltd,1235002,,,,05/05/2020,2200094466,781.8,,Payments to main contractor,,,,,,No
The Royal Borough of Kensington and Chelsea,RBKC,,Statutory Year End Accounting,Statutory Year End Accounting,,Michael Page International Recruitment Ltd,1235002,,,,12/05/2020,2200096019,625.44,,Payments to main contractor,,,,,,No
The Royal Borough of Kensington and Chelsea,RBKC,,Statutory Year End Accounting,Statutory Year End Accounting,,Michael Page International Recruitment Ltd,1235002,,,,20/05/2020,2200097636,755.74,,Payments to main contractor,,,,,,No
The Royal Borough of Kensington and Chelsea,RBKC,,Statutory Year End Accounting,Statutory Year End Accounting,,Michael Page International Recruitment Ltd,1235002,,,,27/05/2020,2200099110,781.8,,Payments to main contractor,,,,,,No
The Royal Borough of Kensington and Chelsea,RBKC,,Statutory Year End Accounting,Statutory Year End Accounting,,Michael Page International Recruitment Ltd,1235002,,,,03/06/2020,2200100560,729.68,,Payments to main contractor,,,,,,No
The Royal Borough of Kensington and Chelsea,RBKC,,Statutory Year End Accounting,Statutory Year End Accounting,,Michael Page International Recruitment Ltd,1235002,,,,10/06/2020,2200101910,703.62,,Payments to main contractor,,,,,,No
The Royal Borough of Kensington and Chelsea,RBKC,,Statutory Year End Accounting,Statutory Year End Accounting,,Michael Page International Recruitment Ltd,1235002,,,,15/06/2020,2200102916,781.8,,Payments to main contractor,,,,,,No
The Royal Borough of Kensington and Chelsea,RBKC,,Statutory Year End Accounting,Statutory Year End Accounting,,Michael Page International Recruitment Ltd,1235002,,,,24/06/2020,2200104619,938.16,,Payments to main contractor,,,,,,No
The Royal Borough of Kensington and Chelsea,RBKC,,Statutory Year End Accounting,Statutory Year End Accounting,,Millane Contract Services Ltd,1269394,,,,05/06/2020,2200101083,"2,140.83",,Payments to main contractor,,,,,,No
The Royal Borough of Kensington and Chelsea,RBKC,,Statutory Year End Accounting,Statutory Year End Accounting,,Mitie Property Services (UK) Ltd ,1230701,,,,28/05/2020,2200099342,"472,250.94",,Acquisition of Land & Buildings,,,,,,No
The Royal Borough of Kensington and Chelsea,RBKC,,Statutory Year End Accounting,Statutory Year End Accounting,,Montagu Evans LLP ,1230713,,,,17/04/2020,2200090457,"4,291.51",,Other Consultants,,,,,,No
The Royal Borough of Kensington and Chelsea,RBKC,,Statutory Year End Accounting,Statutory Year End Accounting,,Morgan Sindall Construction,1260362,,,,23/04/2020,2200091427,"149,247.86",,Other Consultants,,,,,,No
The Royal Borough of Kensington and Chelsea,RBKC,,Statutory Year End Accounting,Statutory Year End Accounting,,Morgan Sindall Construction,1260362,,,,22/05/2020,2200097944,"194,940.14",,Other Consultants,,,,,,No
The Royal Borough of Kensington and Chelsea,RBKC,,Statutory Year End Accounting,Statutory Year End Accounting,,Mulalley & Company Ltd ,1231403,,,,07/04/2020,2200088367,"211,426.80",,Payments to main contractor,,,,,,No
The Royal Borough of Kensington and Chelsea,RBKC,,Statutory Year End Accounting,Statutory Year End Accounting,,Mulalley & Company Ltd ,1231403,,,,20/04/2020,2200090683,"2,836.04",,Payments to main contractor,,,,,,No
The Royal Borough of Kensington and Chelsea,RBKC,,Statutory Year End Accounting,Statutory Year End Accounting,,Mulalley & Company Ltd ,1231403,,,,05/05/2020,2200094399,"127,147.49",,Payments to main contractor,,,,,,No
The Royal Borough of Kensington and Chelsea,RBKC,,Statutory Year End Accounting,Statutory Year End Accounting,,NPS Property Consultants Ltd ,1235087,,,,01/04/2020,2200088202,"3,753.00",,Site Works,,,,,,No
The Royal Borough of Kensington and Chelsea,RBKC,,Statutory Year End Accounting,Statutory Year End Accounting,,NPS Property Consultants Ltd ,1235087,,,,05/06/2020,2200101070,"1,750.00",,Site Works,,,,,,No
The Royal Borough of Kensington and Chelsea,RBKC,,Statutory Year End Accounting,Statutory Year End Accounting,,Nathaniel Lichfields and Partners,1265397,,,,12/05/2020,2200095727,"1,393.05",,Professional Fees : Non Legal,,,,,,No
The Royal Borough of Kensington and Chelsea,RBKC,,Statutory Year End Accounting,Statutory Year End Accounting,,Nathaniel Lichfields and Partners,1265397,,,,21/05/2020,2200097836,"5,004.65",,Professional Fees : Non Legal,,,,,,No
The Royal Borough of Kensington and Chelsea,RBKC,,Statutory Year End Accounting,Statutory Year End Accounting,,New Square Chambers Ltd ,1252408,,,,07/05/2020,2200095150,"1,350.00",,Acquisition of Land & Buildings,,,,,,No
The Royal Borough of Kensington and Chelsea,RBKC,,Statutory Year End Accounting,Statutory Year End Accounting,,New Square Chambers Ltd ,1252408,,,,27/05/2020,2200099111,"3,960.00",,Legal Fees & expenses,,,,,,No
The Royal Borough of Kensington and Chelsea,RBKC,,Statutory Year End Accounting,Statutory Year End Accounting,,Belmont Estate Limited,1270117,,,,23/06/2020,2200104398,900,,Professional Fees : Non Legal,,,,,,No
The Royal Borough of Kensington and Chelsea,RBKC,,Statutory Year End Accounting,Statutory Year End Accounting,,Nsl Limited ,1235090,,,,08/04/2020,2200088846,"137,311.00",,Other capital equipment,,,,,,No
The Royal Borough of Kensington and Chelsea,RBKC,,Statutory Year End Accounting,Statutory Year End Accounting,,OMEGA RED GROUP LTD,1265141,,,,01/04/2020,2200087301,"36,770.00",,Payments to main contractor,,,,,,No
The Royal Borough of Kensington and Chelsea,RBKC,,Statutory Year End Accounting,Statutory Year End Accounting,,OMEGA RED GROUP LTD,1265141,,,,06/05/2020,2200094634,"30,402.95",,Payments to main contractor,,,,,,No
The Royal Borough of Kensington and Chelsea,RBKC,,Statutory Year End Accounting,Statutory Year End Accounting,,OMEGA RED GROUP LTD,1265141,,,,06/05/2020,2200094637,"12,340.00",,Payments to main contractor,,,,,,No
The Royal Borough of Kensington and Chelsea,RBKC,,Statutory Year End Accounting,Statutory Year End Accounting,,Oakleaf Surveying Ltd ,1230946,,,,01/04/2020,2200087845,"16,328.00",,Professional Fees : Non Legal,,,,,,No
The Royal Borough of Kensington and Chelsea,RBKC,,Statutory Year End Accounting,Statutory Year End Accounting,,Oakleaf Surveying Ltd ,1230946,,,,01/04/2020,2200087846,"15,815.00",,Professional Fees : Non Legal,,,,,,No
The Royal Borough of Kensington and Chelsea,RBKC,,Statutory Year End Accounting,Statutory Year End Accounting,,Oakleaf Surveying Ltd ,1230946,,,,05/06/2020,2200101035,"31,464.00",,Professional Fees : Non Legal,,,,,,No
The Royal Borough of Kensington and Chelsea,RBKC,,Statutory Year End Accounting,Statutory Year End Accounting,,Openview Security Solutions Ltd ,1231414,,,,13/05/2020,2200096315,"43,809.37",,Payments to main contractor,,,,,,No
The Royal Borough of Kensington and Chelsea,RBKC,,Statutory Year End Accounting,Statutory Year End Accounting,,Openview Security Solutions Ltd ,1231414,,,,21/05/2020,2200097838,"35,259.39",,Payments to main contractor,,,,,,No
The Royal Borough of Kensington and Chelsea,RBKC,,Statutory Year End Accounting,Statutory Year End Accounting,,Openview Security Solutions Ltd ,1231414,,,,12/06/2020,2200102559,"36,203.51",,Payments to main contractor,,,,,,No
The Royal Borough of Kensington and Chelsea,RBKC,,Statutory Year End Accounting,Statutory Year End Accounting,,Osborn Associates Ltd,1262963,,,,07/04/2020,2200088411,"18,200.00",,Other Consultants,,,,,,No
The Royal Borough of Kensington and Chelsea,RBKC,,Statutory Year End Accounting,Statutory Year End Accounting,,Osborn Associates Ltd,1262963,,,,08/04/2020,2200088803,"24,505.00",,Other Consultants,,,,,,No
The Royal Borough of Kensington and Chelsea,RBKC,,Statutory Year End Accounting,Statutory Year End Accounting,,Osborn Associates Ltd,1262963,,,,30/04/2020,2200093370,"2,100.00",,Construction : enhancements,,,,,,No
The Royal Borough of Kensington and Chelsea,RBKC,,Statutory Year End Accounting,Statutory Year End Accounting,,Osborn Associates Ltd,1262963,,,,07/05/2020,2200095165,"1,800.00",,Other Consultants,,,,,,No
The Royal Borough of Kensington and Chelsea,RBKC,,Statutory Year End Accounting,Statutory Year End Accounting,,Osborn Associates Ltd,1262963,,,,22/05/2020,2200097967,"9,800.00",,Other Consultants,,,,,,No
The Royal Borough of Kensington and Chelsea,RBKC,,Statutory Year End Accounting,Statutory Year End Accounting,,Osborn Associates Ltd,1262963,,,,22/05/2020,2200097968,"9,800.00",,Other Consultants,,,,,,No
The Royal Borough of Kensington and Chelsea,RBKC,,Statutory Year End Accounting,Statutory Year End Accounting,,Osborn Associates Ltd,1262963,,,,22/05/2020,2200097969,"9,800.00",,Other Consultants,,,,,,No
The Royal Borough of Kensington and Chelsea,RBKC,,Statutory Year End Accounting,Statutory Year End Accounting,,Osborn Associates Ltd,1262963,,,,03/06/2020,2200100486,"7,700.00",,Construction : enhancements,,,,,,No
The Royal Borough of Kensington and Chelsea,RBKC,,Statutory Year End Accounting,Statutory Year End Accounting,,Osborn Associates Ltd,1262963,,,,03/06/2020,2200100503,"17,500.00",,Other Consultants,,,,,,No
The Royal Borough of Kensington and Chelsea,RBKC,,Statutory Year End Accounting,Statutory Year End Accounting,,Osborn Associates Ltd,1262963,,,,17/06/2020,2200103309,"4,900.00",,Construction : enhancements,,,,,,No
The Royal Borough of Kensington and Chelsea,RBKC,,Statutory Year End Accounting,Statutory Year End Accounting,,Osborn Associates Ltd,1262963,,,,29/06/2020,2200105703,"3,500.00",,Other Consultants,,,,,,No
The Royal Borough of Kensington and Chelsea,RBKC,,Statutory Year End Accounting,Statutory Year End Accounting,,Osborn Associates Ltd,1262963,,,,30/06/2020,2200106038,"3,500.00",,Construction : enhancements,,,,,,No
The Royal Borough of Kensington and Chelsea,RBKC,,Statutory Year End Accounting,Statutory Year End Accounting,,Osborn Associates Ltd,1262963,,,,30/06/2020,2200106040,"5,600.00",,Construction : enhancements,,,,,,No
The Royal Borough of Kensington and Chelsea,RBKC,,Statutory Year End Accounting,Statutory Year End Accounting,,Osei Design Associated Ltd,1266059,,,,22/05/2020,2200097963,"1,200.00",,Professional Fees : Non Legal,,,,,,No
The Royal Borough of Kensington and Chelsea,RBKC,,Statutory Year End Accounting,Statutory Year End Accounting,,Paragon Building Consultancy Ltd ,1230988,,,,21/04/2020,2200090930,500,,Creditors Control : AP GRIR,,,,,,No
The Royal Borough of Kensington and Chelsea,RBKC,,Statutory Year End Accounting,Statutory Year End Accounting,,Pelliings LLP,1269041,,,,06/05/2020,2200094836,"2,880.00",,Professional Fees : Non Legal,,,,,,No
The Royal Borough of Kensington and Chelsea,RBKC,,Statutory Year End Accounting,Statutory Year End Accounting,,Pelliings LLP,1269041,,,,12/05/2020,2200095831,"20,160.00",,Professional Fees : Non Legal,,,,,,No
The Royal Borough of Kensington and Chelsea,RBKC,,Statutory Year End Accounting,Statutory Year End Accounting,,Pelliings LLP,1269041,,,,09/06/2020,2200101789,"14,573.00",,Professional Fees : Non Legal,,,,,,No
The Royal Borough of Kensington and Chelsea,RBKC,,Statutory Year End Accounting,Statutory Year End Accounting,,Perkins & Will UK Limited,1265496,,,,08/04/2020,2200088739,"1,300.00",,Payments to main contractor,,,,,,No
The Royal Borough of Kensington and Chelsea,RBKC,,Statutory Year End Accounting,Statutory Year End Accounting,,Perkins & Will UK Limited,1265496,,,,30/04/2020,2200093156,"2,510.00",,Payments to main contractor,,,,,,No
The Royal Borough of Kensington and Chelsea,RBKC,,Statutory Year End Accounting,Statutory Year End Accounting,,Perkins & Will UK Limited,1265496,,,,30/04/2020,2200093157,"2,240.00",,Payments to main contractor,,,,,,No
The Royal Borough of Kensington and Chelsea,RBKC,,Statutory Year End Accounting,Statutory Year End Accounting,,Perkins & Will UK Limited,1265496,,,,22/05/2020,2200098068,"10,466.00",,Payments to main contractor,,,,,,No
The Royal Borough of Kensington and Chelsea,RBKC,,Statutory Year End Accounting,Statutory Year End Accounting,,Perkins & Will UK Limited,1265496,,,,22/05/2020,2200098069,"10,466.00",,Payments to main contractor,,,,,,No
The Royal Borough of Kensington and Chelsea,RBKC,,Statutory Year End Accounting,Statutory Year End Accounting,,Perkins & Will UK Limited,1265496,,,,05/06/2020,2200100966,"10,467.00",,Payments to main contractor,,,,,,No
The Royal Borough of Kensington and Chelsea,RBKC,,Statutory Year End Accounting,Statutory Year End Accounting,,Plowman Craven Ltd ,1235174,,,,07/04/2020,2200088553,"2,950.00",,Other Consultants,,,,,,No
The Royal Borough of Kensington and Chelsea,RBKC,,Statutory Year End Accounting,Statutory Year End Accounting,,Potter Raper Partnership,1235188,,,,06/04/2020,2200088125,"9,620.00",,Payments to main contractor,,,,,,No
The Royal Borough of Kensington and Chelsea,RBKC,,Statutory Year End Accounting,Statutory Year End Accounting,,Project Centre ,1235205,,,,07/04/2020,2200088592,975,,Construction : enhancements,,,,,,No
The Royal Borough of Kensington and Chelsea,RBKC,,Statutory Year End Accounting,Statutory Year End Accounting,,Project Centre ,1235205,,,,07/04/2020,2200088593,975,,Construction : enhancements,,,,,,No
The Royal Borough of Kensington and Chelsea,RBKC,,Statutory Year End Accounting,Statutory Year End Accounting,,Project Centre ,1235205,,,,07/04/2020,2200088594,"8,649.85",,Other Consultants,,,,,,No
The Royal Borough of Kensington and Chelsea,RBKC,,Statutory Year End Accounting,Statutory Year End Accounting,,Project Centre ,1235205,,,,20/04/2020,2200090733,"1,750.00",,Construction : enhancements,,,,,,No
The Royal Borough of Kensington and Chelsea,RBKC,,Statutory Year End Accounting,Statutory Year End Accounting,,Project Centre ,1235205,,,,30/04/2020,2200093291,"3,900.00",,Engineering Consultancy Fees,,,,,,No
The Royal Borough of Kensington and Chelsea,RBKC,,Statutory Year End Accounting,Statutory Year End Accounting,,Project Centre ,1235205,,,,05/05/2020,2200094464,"6,355.80",,Other Consultants,,,,,,No
The Royal Borough of Kensington and Chelsea,RBKC,,Statutory Year End Accounting,Statutory Year End Accounting,,Project Centre ,1235205,,,,01/06/2020,2200099890,"2,510.60",,Other Consultants,,,,,,No
The Royal Borough of Kensington and Chelsea,RBKC,,Statutory Year End Accounting,Statutory Year End Accounting,,Project Centre ,1235205,,,,08/06/2020,2200101364,"8,472.87",,Engineering Consultancy Fees,,,,,,No
The Royal Borough of Kensington and Chelsea,RBKC,,Statutory Year End Accounting,Statutory Year End Accounting,,Project Centre ,1235205,,,,10/06/2020,2200101984,"1,100.00",,Engineering Consultancy Fees,,,,,,No
The Royal Borough of Kensington and Chelsea,RBKC,,Statutory Year End Accounting,Statutory Year End Accounting,,Project Centre ,1235205,,,,25/06/2020,2200104834,750,,Creditors Control : AP GRIR,,,,,,No
The Royal Borough of Kensington and Chelsea,RBKC,,Statutory Year End Accounting,Statutory Year End Accounting,,Prp Architects Llp ,1235213,,,,06/04/2020,2200088217,"2,150.00",,Construction : enhancements,,,,,,No
The Royal Borough of Kensington and Chelsea,RBKC,,Statutory Year End Accounting,Statutory Year End Accounting,,Prp Architects Llp ,1235213,,,,06/04/2020,2200088218,"3,569.00",,Construction : enhancements,,,,,,No
The Royal Borough of Kensington and Chelsea,RBKC,,Statutory Year End Accounting,Statutory Year End Accounting,,Prp Architects Llp ,1235213,,,,06/04/2020,2200088220,"1,451.25",,Construction : enhancements,,,,,,No
The Royal Borough of Kensington and Chelsea,RBKC,,Statutory Year End Accounting,Statutory Year End Accounting,,Prp Architects Llp ,1235213,,,,06/04/2020,2200088222,"6,945.15",,Construction : enhancements,,,,,,No
The Royal Borough of Kensington and Chelsea,RBKC,,Statutory Year End Accounting,Statutory Year End Accounting,,Prp Architects Llp ,1235213,,,,07/04/2020,2200088461,"9,203.01",,Construction : enhancements,,,,,,No
The Royal Borough of Kensington and Chelsea,RBKC,,Statutory Year End Accounting,Statutory Year End Accounting,,Prp Architects Llp ,1235213,,,,12/06/2020,2200102472,"37,558.00",,Construction : enhancements,,,,,,No
The Royal Borough of Kensington and Chelsea,RBKC,,Statutory Year End Accounting,Statutory Year End Accounting,,Prp Architects Llp ,1235213,,,,12/06/2020,2200102473,"15,240.00",,Construction : enhancements,,,,,,No
The Royal Borough of Kensington and Chelsea,RBKC,,Statutory Year End Accounting,Statutory Year End Accounting,,Quadron Services Ltd T/A Idverde ,1231423,,,,21/04/2020,2200090886,"7,829.16",,Creditors Control : AP GRIR,,,,,,No
The Royal Borough of Kensington and Chelsea,RBKC,,Statutory Year End Accounting,Statutory Year End Accounting,,Quadron Services Ltd T/A Idverde ,1231423,,,,21/04/2020,2200090887,"1,463.32",,Creditors Control : AP GRIR,,,,,,No
The Royal Borough of Kensington and Chelsea,RBKC,,Statutory Year End Accounting,Statutory Year End Accounting,,Quinn London Ltd,1235230,,,,15/04/2020,2200089922,"141,790.72",,Other Consultants,,,,,,No
The Royal Borough of Kensington and Chelsea,RBKC,,Statutory Year End Accounting,Statutory Year End Accounting,,Quinn London Ltd,1235230,,,,05/06/2020,2200100967,"46,778.05",,Other Consultants,,,,,,No
The Royal Borough of Kensington and Chelsea,RBKC,,Statutory Year End Accounting,Statutory Year End Accounting,,Quinn London Ltd,1235230,,,,10/06/2020,2200101998,"109,941.71",,Other Consultants,,,,,,No
The Royal Borough of Kensington and Chelsea,RBKC,,Statutory Year End Accounting,Statutory Year End Accounting,,R Benson Property Mainten,1266216,,,,13/05/2020,2200096313,"8,556.06",,Payments to main contractor,,,,,,No
The Royal Borough of Kensington and Chelsea,RBKC,,Statutory Year End Accounting,Statutory Year End Accounting,,RNB ENGINEERING,1256083,,,,18/06/2020,2200103618,"1,595.00",,Payments to main contractor,,,,,,No
The Royal Borough of Kensington and Chelsea,RBKC,,Statutory Year End Accounting,Statutory Year End Accounting,,RNB ENGINEERING,1256083,,,,18/06/2020,2200103619,"1,595.00",,Payments to main contractor,,,,,,No
The Royal Borough of Kensington and Chelsea,RBKC,,Statutory Year End Accounting,Statutory Year End Accounting,,RNB ENGINEERING,1256083,,,,18/06/2020,2200103620,"1,595.00",,Payments to main contractor,,,,,,No
The Royal Borough of Kensington and Chelsea,RBKC,,Statutory Year End Accounting,Statutory Year End Accounting,,RNB ENGINEERING,1256083,,,,18/06/2020,2200103622,"1,595.00",,Payments to main contractor,,,,,,No
The Royal Borough of Kensington and Chelsea,RBKC,,Statutory Year End Accounting,Statutory Year End Accounting,,RNB ENGINEERING,1256083,,,,18/06/2020,2200103623,"1,595.00",,Payments to main contractor,,,,,,No
The Royal Borough of Kensington and Chelsea,RBKC,,Statutory Year End Accounting,Statutory Year End Accounting,,Resourcing Group ,1235269,,,,21/04/2020,2200091074,927.36,,Capitalised salaries,,,,,,No
The Royal Borough of Kensington and Chelsea,RBKC,,Statutory Year End Accounting,Statutory Year End Accounting,,Resourcing Group ,1235269,,,,21/04/2020,2200091075,824.32,,Capitalised salaries,,,,,,No
The Royal Borough of Kensington and Chelsea,RBKC,,Statutory Year End Accounting,Statutory Year End Accounting,,Resourcing Group ,1235269,,,,21/04/2020,2200091076,"1,030.40",,Capitalised salaries,,,,,,No
The Royal Borough of Kensington and Chelsea,RBKC,,Statutory Year End Accounting,Statutory Year End Accounting,,Resourcing Group ,1235269,,,,21/04/2020,2200091077,"1,030.40",,Capitalised salaries,,,,,,No
The Royal Borough of Kensington and Chelsea,RBKC,,Statutory Year End Accounting,Statutory Year End Accounting,,Resourcing Group ,1235269,,,,21/04/2020,2200091083,"1,030.40",,Capitalised salaries,,,,,,No
The Royal Borough of Kensington and Chelsea,RBKC,,Statutory Year End Accounting,Statutory Year End Accounting,,Resourcing Group ,1235269,,,,21/04/2020,2200091085,"1,030.40",,Capitalised salaries,,,,,,No
The Royal Borough of Kensington and Chelsea,RBKC,,Statutory Year End Accounting,Statutory Year End Accounting,,Resourcing Group ,1235269,,,,21/04/2020,2200091086,"1,030.40",,Capitalised salaries,,,,,,No
The Royal Borough of Kensington and Chelsea,RBKC,,Statutory Year End Accounting,Statutory Year End Accounting,,Resourcing Group ,1235269,,,,21/04/2020,2200091087,"1,030.40",,Capitalised salaries,,,,,,No
The Royal Borough of Kensington and Chelsea,RBKC,,Statutory Year End Accounting,Statutory Year End Accounting,,Resourcing Group ,1235269,,,,24/04/2020,2200091761,927.36,,Capitalised salaries,,,,,,No
The Royal Borough of Kensington and Chelsea,RBKC,,Statutory Year End Accounting,Statutory Year End Accounting,,Resourcing Group ,1235269,,,,24/04/2020,2200091772,824.32,,Capitalised salaries,,,,,,No
The Royal Borough of Kensington and Chelsea,RBKC,,Statutory Year End Accounting,Statutory Year End Accounting,,Resourcing Group ,1235269,,,,28/04/2020,2200092569,"1,030.40",,Capitalised salaries,,,,,,No
The Royal Borough of Kensington and Chelsea,RBKC,,Statutory Year End Accounting,Statutory Year End Accounting,,Resourcing Group ,1235269,,,,28/04/2020,2200092571,824.32,,Capitalised salaries,,,,,,No
The Royal Borough of Kensington and Chelsea,RBKC,,Statutory Year End Accounting,Statutory Year End Accounting,,Resourcing Group ,1235269,,,,28/04/2020,2200092572,747.04,,Capitalised salaries,,,,,,No
The Royal Borough of Kensington and Chelsea,RBKC,,Statutory Year End Accounting,Statutory Year End Accounting,,Resourcing Group ,1235269,,,,29/04/2020,2200092765,747.04,,Capitalised salaries,,,,,,No
The Royal Borough of Kensington and Chelsea,RBKC,,Statutory Year End Accounting,Statutory Year End Accounting,,Resourcing Group ,1235269,,,,13/05/2020,2200096138,721.28,,Capitalised salaries,,,,,,No
The Royal Borough of Kensington and Chelsea,RBKC,,Statutory Year End Accounting,Statutory Year End Accounting,,Resourcing Group ,1235269,,,,20/05/2020,2200097592,747.04,,Capitalised salaries,,,,,,No
The Royal Borough of Kensington and Chelsea,RBKC,,Statutory Year End Accounting,Statutory Year End Accounting,,Resourcing Group ,1235269,,,,20/05/2020,2200097597,927.36,,Capitalised salaries,,,,,,No
The Royal Borough of Kensington and Chelsea,RBKC,,Statutory Year End Accounting,Statutory Year End Accounting,,Resourcing Group ,1235269,,,,20/05/2020,2200097608,927.36,,Capitalised salaries,,,,,,No
The Royal Borough of Kensington and Chelsea,RBKC,,Statutory Year End Accounting,Statutory Year End Accounting,,Resourcing Group ,1235269,,,,26/05/2020,2200098820,927.36,,Capitalised salaries,,,,,,No
The Royal Borough of Kensington and Chelsea,RBKC,,Statutory Year End Accounting,Statutory Year End Accounting,,Resourcing Group ,1235269,,,,19/06/2020,2200103766,927.36,,Capitalised salaries,,,,,,No
The Royal Borough of Kensington and Chelsea,RBKC,,Statutory Year End Accounting,Statutory Year End Accounting,,Resourcing Group ,1235269,,,,19/06/2020,2200103801,721.28,,Capitalised salaries,,,,,,No
The Royal Borough of Kensington and Chelsea,RBKC,,Statutory Year End Accounting,Statutory Year End Accounting,,Resourcing Group ,1235269,,,,19/06/2020,2200103807,927.36,,Capitalised salaries,,,,,,No
The Royal Borough of Kensington and Chelsea,RBKC,,Statutory Year End Accounting,Statutory Year End Accounting,,Resourcing Group ,1235269,,,,19/06/2020,2200103819,927.36,,Capitalised salaries,,,,,,No
The Royal Borough of Kensington and Chelsea,RBKC,,Statutory Year End Accounting,Statutory Year End Accounting,,Restore Harrow Green Limi,1266104,,,,22/04/2020,2200091276,600,,Other Consultants,,,,,,No
The Royal Borough of Kensington and Chelsea,RBKC,,Statutory Year End Accounting,Statutory Year End Accounting,,Restore Harrow Green Limi,1266104,,,,22/04/2020,2200091277,600,,Other Consultants,,,,,,No
The Royal Borough of Kensington and Chelsea,RBKC,,Statutory Year End Accounting,Statutory Year End Accounting,,Ridge And Partners LLP ,1231273,,,,17/04/2020,2200090363,"1,920.00",,Professional Fees : Non Legal,,,,,,No
The Royal Borough of Kensington and Chelsea,RBKC,,Statutory Year End Accounting,Statutory Year End Accounting,,Ridge And Partners LLP ,1231273,,,,16/06/2020,2200103061,"4,480.00",,Professional Fees : Non Legal,,,,,,No
The Royal Borough of Kensington and Chelsea,RBKC,,Statutory Year End Accounting,Statutory Year End Accounting,,S W Security Ltd ,1235300,,,,05/06/2020,2200100972,"4,466.00",,Payments to main contractor,,,,,,No
The Royal Borough of Kensington and Chelsea,RBKC,,Statutory Year End Accounting,Statutory Year End Accounting,,SMARTCOMM LIMITED,1268105,,,,20/05/2020,2200097555,"10,481.42",,Creditors Control : AP GRIR,,,,,,No
The Royal Borough of Kensington and Chelsea,RBKC,,Statutory Year End Accounting,Statutory Year End Accounting,,SMARTCOMM LIMITED,1268105,,,,20/05/2020,2200097555,"6,714.22",,Creditors Control : AP GRIR,,,,,,No
The Royal Borough of Kensington and Chelsea,RBKC,,Statutory Year End Accounting,Statutory Year End Accounting,,Say Property Consulting LLP,1235315,,,,11/05/2020,2200095591,"5,100.00",,Creditors Control : AP GRIR,,,,,,No
The Royal Borough of Kensington and Chelsea,RBKC,,Statutory Year End Accounting,Statutory Year End Accounting,,Sharpe Pritchard ,1235336,,,,12/05/2020,2200095719,792,,Other Consultants,,,,,,No
The Royal Borough of Kensington and Chelsea,RBKC,,Statutory Year End Accounting,Statutory Year End Accounting,,Skilled Careers Limited,1265647,,,,02/04/2020,2200087490,"1,048.00",,Planned Maintenance (CM),,,,,,No
The Royal Borough of Kensington and Chelsea,RBKC,,Statutory Year End Accounting,Statutory Year End Accounting,,Skilled Careers Limited,1265647,,,,09/04/2020,2200089009,943.2,,Planned Maintenance (CM),,,,,,No
The Royal Borough of Kensington and Chelsea,RBKC,,Statutory Year End Accounting,Statutory Year End Accounting,,Skilled Careers Limited,1265647,,,,16/04/2020,2200090094,759.8,,Planned Maintenance (CM),,,,,,No
The Royal Borough of Kensington and Chelsea,RBKC,,Statutory Year End Accounting,Statutory Year End Accounting,,Skilled Careers Limited,1265647,,,,28/04/2020,2200092593,733.6,,Planned Maintenance (CM),,,,,,No
The Royal Borough of Kensington and Chelsea,RBKC,,Statutory Year End Accounting,Statutory Year End Accounting,,Skilled Careers Limited,1265647,,,,05/05/2020,2200094429,943.2,,Planned Maintenance (CM),,,,,,No
The Royal Borough of Kensington and Chelsea,RBKC,,Statutory Year End Accounting,Statutory Year End Accounting,,Skilled Careers Limited,1265647,,,,07/05/2020,2200094984,943.2,,Planned Maintenance (CM),,,,,,No
The Royal Borough of Kensington and Chelsea,RBKC,,Statutory Year End Accounting,Statutory Year End Accounting,,Skilled Careers Limited,1265647,,,,15/05/2020,2200096777,759.8,,Planned Maintenance (CM),,,,,,No
The Royal Borough of Kensington and Chelsea,RBKC,,Statutory Year End Accounting,Statutory Year End Accounting,,Skilled Careers Limited,1265647,,,,21/05/2020,2200097790,943.2,,Planned Maintenance (CM),,,,,,No
The Royal Borough of Kensington and Chelsea,RBKC,,Statutory Year End Accounting,Statutory Year End Accounting,,Skilled Careers Limited,1265647,,,,02/06/2020,2200100235,759.8,,Planned Maintenance (CM),,,,,,No
The Royal Borough of Kensington and Chelsea,RBKC,,Statutory Year End Accounting,Statutory Year End Accounting,,Skilled Careers Limited,1265647,,,,04/06/2020,2200100756,733.6,,Planned Maintenance (CM),,,,,,No
The Royal Borough of Kensington and Chelsea,RBKC,,Statutory Year End Accounting,Statutory Year End Accounting,,Skilled Careers Limited,1265647,,,,11/06/2020,2200102246,759.8,,Planned Maintenance (CM),,,,,,No
The Royal Borough of Kensington and Chelsea,RBKC,,Statutory Year End Accounting,Statutory Year End Accounting,,Skilled Careers Limited,1265647,,,,19/06/2020,2200103857,943.2,,Planned Maintenance (CM),,,,,,No
The Royal Borough of Kensington and Chelsea,RBKC,,Statutory Year End Accounting,Statutory Year End Accounting,,St Clement & St James Ce Primary School,1232831,,,,09/04/2020,2200089063,"49,000.00",,Payments to main contractor,,,,,,No
The Royal Borough of Kensington and Chelsea,RBKC,,Statutory Year End Accounting,Statutory Year End Accounting,,Stannah Lift Services Ltd ,1231434,,,,24/04/2020,2200091890,820,,Creditors Control : AP GRIR,,,,,,No
The Royal Borough of Kensington and Chelsea,RBKC,,Statutory Year End Accounting,Statutory Year End Accounting,,Streetmaster (South Wales) Ltd,1231577,,,,09/06/2020,2200101746,"13,725.00",,Payments to main contractor,,,,,,No
The Royal Borough of Kensington and Chelsea,RBKC,,Statutory Year End Accounting,Statutory Year End Accounting,,Suez Recycling and Recovery UK Ltd ,1235441,,,,05/06/2020,2200101031,"175,500.00",,Purchase of Vehicles,,,,,,No
The Royal Borough of Kensington and Chelsea,RBKC,,Statutory Year End Accounting,Statutory Year End Accounting,,Surefire Services Limited,1263781,,,,02/04/2020,2200087496,"1,595.00",,Payments to main contractor,,,,,,No
The Royal Borough of Kensington and Chelsea,RBKC,,Statutory Year End Accounting,Statutory Year End Accounting,,Surefire Services Limited,1263781,,,,02/04/2020,2200087497,"1,595.00",,Payments to main contractor,,,,,,No
The Royal Borough of Kensington and Chelsea,RBKC,,Statutory Year End Accounting,Statutory Year End Accounting,,Surefire Services Limited,1263781,,,,02/04/2020,2200087498,"1,595.00",,Payments to main contractor,,,,,,No
The Royal Borough of Kensington and Chelsea,RBKC,,Statutory Year End Accounting,Statutory Year End Accounting,,Surefire Services Limited,1263781,,,,02/04/2020,2200087499,"1,595.00",,Payments to main contractor,,,,,,No
The Royal Borough of Kensington and Chelsea,RBKC,,Statutory Year End Accounting,Statutory Year End Accounting,,Surefire Services Limited,1263781,,,,02/04/2020,2200087500,"1,595.00",,Payments to main contractor,,,,,,No
The Royal Borough of Kensington and Chelsea,RBKC,,Statutory Year End Accounting,Statutory Year End Accounting,,Surefire Services Limited,1263781,,,,02/04/2020,2200087501,"1,595.00",,Payments to main contractor,,,,,,No
The Royal Borough of Kensington and Chelsea,RBKC,,Statutory Year End Accounting,Statutory Year End Accounting,,Surefire Services Limited,1263781,,,,02/04/2020,2200087502,"1,595.00",,Payments to main contractor,,,,,,No
The Royal Borough of Kensington and Chelsea,RBKC,,Statutory Year End Accounting,Statutory Year End Accounting,,Surefire Services Limited,1263781,,,,02/04/2020,2200087503,"1,595.00",,Payments to main contractor,,,,,,No
The Royal Borough of Kensington and Chelsea,RBKC,,Statutory Year End Accounting,Statutory Year End Accounting,,Surefire Services Limited,1263781,,,,02/04/2020,2200087504,"1,595.00",,Payments to main contractor,,,,,,No
The Royal Borough of Kensington and Chelsea,RBKC,,Statutory Year End Accounting,Statutory Year End Accounting,,Surefire Services Limited,1263781,,,,02/04/2020,2200087505,"1,595.00",,Payments to main contractor,,,,,,No
The Royal Borough of Kensington and Chelsea,RBKC,,Statutory Year End Accounting,Statutory Year End Accounting,,Surefire Services Limited,1263781,,,,02/04/2020,2200087506,"1,595.00",,Payments to main contractor,,,,,,No
The Royal Borough of Kensington and Chelsea,RBKC,,Statutory Year End Accounting,Statutory Year End Accounting,,Surefire Services Limited,1263781,,,,02/04/2020,2200087507,"1,595.00",,Payments to main contractor,,,,,,No
The Royal Borough of Kensington and Chelsea,RBKC,,Statutory Year End Accounting,Statutory Year End Accounting,,T Loughman and Co Ltd,1260777,,,,20/04/2020,2200090702,"41,303.73",,Construction : enhancements,,,,,,No
The Royal Borough of Kensington and Chelsea,RBKC,,Statutory Year End Accounting,Statutory Year End Accounting,,TBRE Associates Ltd,1269736,,,,15/06/2020,2200102807,"1,963.00",,Surveyors,,,,,,No
The Royal Borough of Kensington and Chelsea,RBKC,,Statutory Year End Accounting,Statutory Year End Accounting,,Tenos Ltd ,1235469,,,,17/04/2020,2200090456,900,,Other Consultants,,,,,,No
The Royal Borough of Kensington and Chelsea,RBKC,,Statutory Year End Accounting,Statutory Year End Accounting,,Tenos Ltd ,1235469,,,,17/04/2020,2200090459,"1,460.25",,Other Consultants,,,,,,No
The Royal Borough of Kensington and Chelsea,RBKC,,Statutory Year End Accounting,Statutory Year End Accounting,,Tenos Ltd ,1235469,,,,17/04/2020,2200090460,"2,500.00",,Other Consultants,,,,,,No
The Royal Borough of Kensington and Chelsea,RBKC,,Statutory Year End Accounting,Statutory Year End Accounting,,Tenos Ltd ,1235469,,,,17/04/2020,2200090462,"2,248.00",,Other Consultants,,,,,,No
The Royal Borough of Kensington and Chelsea,RBKC,,Statutory Year End Accounting,Statutory Year End Accounting,,Tenos Ltd ,1235469,,,,29/05/2020,2200099516,"3,539.75",,Other Consultants,,,,,,No
The Royal Borough of Kensington and Chelsea,RBKC,,Statutory Year End Accounting,Statutory Year End Accounting,,Texo Scaffolding & Construction Ltd,1266685,,,,17/06/2020,2200103269,"9,273.44",,Payments to main contractor,,,,,,No
The Royal Borough of Kensington and Chelsea,RBKC,,Statutory Year End Accounting,Statutory Year End Accounting,,The Bowen Partnership,1268610,,,,20/04/2020,2200090617,"3,100.00",,Other Consultants,,,,,,No
The Royal Borough of Kensington and Chelsea,RBKC,,Statutory Year End Accounting,Statutory Year End Accounting,,The Fox Primary School ,1236123,,,,01/04/2020,2200087454,"15,000.00",,Payments to main contractor,,,,,,No
The Royal Borough of Kensington and Chelsea,RBKC,,Statutory Year End Accounting,Statutory Year End Accounting,,The Fox Primary School ,1236123,,,,01/04/2020,2200087455,"32,000.00",,Payments to main contractor,,,,,,No
The Royal Borough of Kensington and Chelsea,RBKC,,Statutory Year End Accounting,Statutory Year End Accounting,,Traffic Survey Partners Ltd ,1235572,,,,21/04/2020,2200091047,"1,315.00",,Construction : enhancements,,,,,,No
The Royal Borough of Kensington and Chelsea,RBKC,,Statutory Year End Accounting,Statutory Year End Accounting,,Transport For London,1231876,,,,01/06/2020,2200099771,684,,Design Consultant,,,,,,No
The Royal Borough of Kensington and Chelsea,RBKC,,Statutory Year End Accounting,Statutory Year End Accounting,,Uk Power Networks(Operations) Ltd ,1231441,,,,06/04/2020,2200088131,"2,730.00",,Construction : enhancements,,,,,,No
The Royal Borough of Kensington and Chelsea,RBKC,,Statutory Year End Accounting,Statutory Year End Accounting,,Uk Power Networks(Operations) Ltd ,1231441,,,,08/04/2020,2200088859,"1,236.00",,Construction : enhancements,,,,,,No
The Royal Borough of Kensington and Chelsea,RBKC,,Statutory Year End Accounting,Statutory Year End Accounting,,VIKFIX LTD,1258701,,,,14/05/2020,2200096489,"40,918.00",,Special Maintenance,,,,,,No
The Royal Borough of Kensington and Chelsea,RBKC,,Statutory Year End Accounting,Statutory Year End Accounting,,VIKFIX LTD,1258701,,,,14/05/2020,2200096490,"36,675.00",,Special Maintenance,,,,,,No
The Royal Borough of Kensington and Chelsea,RBKC,,Statutory Year End Accounting,Statutory Year End Accounting,,VIKFIX LTD,1258701,,,,14/05/2020,2200096491,"41,393.00",,Special Maintenance,,,,,,No
The Royal Borough of Kensington and Chelsea,RBKC,,Statutory Year End Accounting,Statutory Year End Accounting,,VIKFIX LTD,1258701,,,,14/05/2020,2200096498,"41,746.00",,Special Maintenance,,,,,,No
The Royal Borough of Kensington and Chelsea,RBKC,,Statutory Year End Accounting,Statutory Year End Accounting,,VIKFIX LTD,1258701,,,,14/05/2020,2200096499,"40,905.00",,Special Maintenance,,,,,,No
The Royal Borough of Kensington and Chelsea,RBKC,,Statutory Year End Accounting,Statutory Year End Accounting,,VIKFIX LTD,1258701,,,,14/05/2020,2200096500,"40,236.00",,Special Maintenance,,,,,,No
The Royal Borough of Kensington and Chelsea,RBKC,,Statutory Year End Accounting,Statutory Year End Accounting,,VIKFIX LTD,1258701,,,,15/05/2020,2200096747,"43,997.00",,Special Maintenance,,,,,,No
The Royal Borough of Kensington and Chelsea,RBKC,,Statutory Year End Accounting,Statutory Year End Accounting,,VIKFIX LTD,1258701,,,,26/06/2020,2200105209,"3,144.00",,Special Maintenance,,,,,,No
The Royal Borough of Kensington and Chelsea,RBKC,,Statutory Year End Accounting,Statutory Year End Accounting,,VIKFIX LTD,1258701,,,,26/06/2020,2200105212,"2,337.00",,Special Maintenance,,,,,,No
The Royal Borough of Kensington and Chelsea,RBKC,,Statutory Year End Accounting,Statutory Year End Accounting,,VIKFIX LTD,1258701,,,,26/06/2020,2200105214,"3,388.00",,Special Maintenance,,,,,,No
The Royal Borough of Kensington and Chelsea,RBKC,,Statutory Year End Accounting,Statutory Year End Accounting,,VIKFIX LTD,1258701,,,,26/06/2020,2200105215,"5,749.00",,Special Maintenance,,,,,,No
The Royal Borough of Kensington and Chelsea,RBKC,,Statutory Year End Accounting,Statutory Year End Accounting,,VIKFIX LTD,1258701,,,,26/06/2020,2200105216,"1,451.00",,Special Maintenance,,,,,,No
The Royal Borough of Kensington and Chelsea,RBKC,,Statutory Year End Accounting,Statutory Year End Accounting,,VIKFIX LTD,1258701,,,,30/06/2020,2200105948,"36,571.09",,Special Maintenance,,,,,,No
The Royal Borough of Kensington and Chelsea,RBKC,,Statutory Year End Accounting,Statutory Year End Accounting,,VIKFIX LTD,1258701,,,,30/06/2020,2200105954,"40,903.45",,Special Maintenance,,,,,,No
The Royal Borough of Kensington and Chelsea,RBKC,,Statutory Year End Accounting,Statutory Year End Accounting,,Venn Group Ltd ,1231925,,,,07/04/2020,2200088590,"2,090.00",,Capitalised salaries,,,,,,No
The Royal Borough of Kensington and Chelsea,RBKC,,Statutory Year End Accounting,Statutory Year End Accounting,,Venn Group Ltd ,1231925,,,,14/04/2020,2200089487,"2,090.00",,Capitalised salaries,,,,,,No
The Royal Borough of Kensington and Chelsea,RBKC,,Statutory Year End Accounting,Statutory Year End Accounting,,Venn Group Ltd ,1231925,,,,21/04/2020,2200090925,"2,090.00",,Capitalised salaries,,,,,,No
The Royal Borough of Kensington and Chelsea,RBKC,,Statutory Year End Accounting,Statutory Year End Accounting,,Venn Group Ltd ,1231925,,,,27/04/2020,2200092332,"1,567.50",,Capitalised salaries,,,,,,No
The Royal Borough of Kensington and Chelsea,RBKC,,Statutory Year End Accounting,Statutory Year End Accounting,,Venn Group Ltd ,1231925,,,,06/05/2020,2200094692,"2,090.00",,Capitalised salaries,,,,,,No
The Royal Borough of Kensington and Chelsea,RBKC,,Statutory Year End Accounting,Statutory Year End Accounting,,Venn Group Ltd ,1231925,,,,27/05/2020,2200099076,"2,090.00",,Capitalised salaries,,,,,,No
The Royal Borough of Kensington and Chelsea,RBKC,,Statutory Year End Accounting,Statutory Year End Accounting,,Venn Group Ltd ,1231925,,,,27/05/2020,2200099081,"2,090.00",,Capitalised salaries,,,,,,No
The Royal Borough of Kensington and Chelsea,RBKC,,Statutory Year End Accounting,Statutory Year End Accounting,,Venn Group Ltd ,1231925,,,,27/05/2020,2200099125,"2,090.00",,Capitalised salaries,,,,,,No
The Royal Borough of Kensington and Chelsea,RBKC,,Statutory Year End Accounting,Statutory Year End Accounting,,Venn Group Ltd ,1231925,,,,23/06/2020,2200104268,"2,090.00",,Capitalised salaries,,,,,,No
The Royal Borough of Kensington and Chelsea,RBKC,,Statutory Year End Accounting,Statutory Year End Accounting,,Venn Group Ltd ,1231925,,,,23/06/2020,2200104272,"2,090.00",,Capitalised salaries,,,,,,No
The Royal Borough of Kensington and Chelsea,RBKC,,Statutory Year End Accounting,Statutory Year End Accounting,,Venn Group Ltd ,1231925,,,,23/06/2020,2200104274,"2,090.00",,Capitalised salaries,,,,,,No
The Royal Borough of Kensington and Chelsea,RBKC,,Statutory Year End Accounting,Statutory Year End Accounting,,Venn Group Ltd ,1231925,,,,23/06/2020,2200104276,"2,090.00",,Capitalised salaries,,,,,,No
The Royal Borough of Kensington and Chelsea,RBKC,,Statutory Year End Accounting,Statutory Year End Accounting,,Warm Company SW Limited,1268878,,,,22/05/2020,2200098071,"1,407.90",,Site Works,,,,,,No
The Royal Borough of Kensington and Chelsea,RBKC,,Statutory Year End Accounting,Statutory Year End Accounting,,Wates Construction Ltd ,1235637,,,,17/04/2020,2200090361,"50,710.75",,Payments to main contractor,,,,,,No
The Royal Borough of Kensington and Chelsea,RBKC,,Statutory Year End Accounting,Statutory Year End Accounting,,Wates Construction Ltd ,1235637,,,,28/04/2020,2200092440,"105,961.62",,Payments to main contractor,,,,,,No
The Royal Borough of Kensington and Chelsea,RBKC,,Statutory Year End Accounting,Statutory Year End Accounting,,Wates Construction Ltd ,1235637,,,,28/04/2020,2200092441,"3,069.62",,Payments to main contractor,,,,,,No
The Royal Borough of Kensington and Chelsea,RBKC,,Statutory Year End Accounting,Statutory Year End Accounting,,Wates Construction Ltd ,1235637,,,,12/05/2020,2200095724,"27,586.80",,Payments to main contractor,,,,,,No
The Royal Borough of Kensington and Chelsea,RBKC,,Resources & Assets,Financial Management,,Addison Gardens Garden Committee ,1232325,,,,11/05/2020,3110186671,"39,690.00",,Levies,,,,,,No
The Royal Borough of Kensington and Chelsea,RBKC,,Resources & Assets,Financial Management,,Arundel & Elgin Gardens Management Com,1232446,,,,11/05/2020,3110186675,"70,000.00",,Levies,,,,,,No
The Royal Borough of Kensington and Chelsea,RBKC,,Resources & Assets,Financial Management,,Arundel & Elgin Gardens Management Com,1232446,,,,29/05/2020,3110193266,"70,000.00",,Levies,,,,,,No
The Royal Borough of Kensington and Chelsea,RBKC,,Resources & Assets,Financial Management,,Arundel & Ladbroke Gardens Committee,1232447,,,,11/05/2020,3110186672,"85,000.00",,Levies,,,,,,No
The Royal Borough of Kensington and Chelsea,RBKC,,Resources & Assets,Financial Management,,Avondale Park Garden Cttee ,1232675,,,,11/05/2020,3110186684,"1,800.00",,Levies,,,,,,No
The Royal Borough of Kensington and Chelsea,RBKC,,Resources & Assets,Financial Management,,Barkston Gardens Garden Committee ,1232695,,,,11/05/2020,3110186685,"50,000.00",,Levies,,,,,,No
The Royal Borough of Kensington and Chelsea,RBKC,,Resources & Assets,Financial Management,,Bina Gardens West Garden Committee ,1232747,,,,11/05/2020,3110186686,"27,500.00",,Levies,,,,,,No
The Royal Borough of Kensington and Chelsea,RBKC,,Resources & Assets,Financial Management,,Blenheim & Elgin Crescent Gdn Committee,1232761,,,,11/05/2020,3110186676,"70,000.00",,Levies,,,,,,No
The Royal Borough of Kensington and Chelsea,RBKC,,Resources & Assets,Financial Management,,Bolton Gardens Garden Committee ,1232945,,,,11/05/2020,3110186687,"44,500.00",,Levies,,,,,,No
The Royal Borough of Kensington and Chelsea,RBKC,,Resources & Assets,Financial Management,,Bramham Gardens Management Committee,1232959,,,,11/05/2020,3110186688,"41,000.00",,Levies,,,,,,No
The Royal Borough of Kensington and Chelsea,RBKC,,Resources & Assets,Financial Management,,Brompton Square Garden Committee ,1232988,,,,11/05/2020,3110186689,"28,000.00",,Levies,,,,,,No
The Royal Borough of Kensington and Chelsea,RBKC,,Resources & Assets,Financial Management,,Campden Hill Square Garden Committee,1233061,,,,11/05/2020,3110186690,"35,000.00",,Levies,,,,,,No
The Royal Borough of Kensington and Chelsea,RBKC,,Resources & Assets,Financial Management,,Campden House Court Garden Committee,1233062,,,,11/05/2020,3110186691,"28,000.00",,Levies,,,,,,No
The Royal Borough of Kensington and Chelsea,RBKC,,Resources & Assets,Financial Management,,Clarendon & Lansdowne Rd Garden Committee,1233396,,,,11/05/2020,3110186692,"17,500.00",,Levies,,,,,,No
The Royal Borough of Kensington and Chelsea,RBKC,,Resources & Assets,Financial Management,,Collingham Gardens Garden Committee,1233626,,,,11/05/2020,3110186693,"34,000.00",,Levies,,,,,,No
The Royal Borough of Kensington and Chelsea,RBKC,,Resources & Assets,Financial Management,,Cornwall Gardens Management Committee,1233688,,,,11/05/2020,3110186694,"72,500.00",,Levies,,,,,,No
The Royal Borough of Kensington and Chelsea,RBKC,,Resources & Assets,Financial Management,,Courtfield Gardens (East) Garden Committ,1233696,,,,11/05/2020,3110186695,"21,000.00",,Levies,,,,,,No
The Royal Borough of Kensington and Chelsea,RBKC,,Resources & Assets,Financial Management,,Courtfield Gardens (West) Garden Cmttee,1233697,,,,11/05/2020,3110186696,"70,000.00",,Levies,,,,,,No
The Royal Borough of Kensington and Chelsea,RBKC,,Resources & Assets,Financial Management,,Earls Court Square Gardens MGT Committee,1234057,,,,11/05/2020,3110186697,"25,000.00",,Levies,,,,,,No
The Royal Borough of Kensington and Chelsea,RBKC,,Resources & Assets,Financial Management,,Edwardes Square Garden Committee ,1234086,,,,11/05/2020,3110186698,"71,831.38",,Levies,,,,,,No
The Royal Borough of Kensington and Chelsea,RBKC,,Resources & Assets,Financial Management,,Emperors Gate Garden Committee ,1234309,,,,11/05/2020,3110186677,"9,750.00",,Levies,,,,,,No
The Royal Borough of Kensington and Chelsea,RBKC,,Resources & Assets,Financial Management,,Environment Agency ,1230799,,,,28/04/2020,3110184641,"55,749.00",,Levies,,,,,,No
The Royal Borough of Kensington and Chelsea,RBKC,,Resources & Assets,Financial Management,,Gledhow Gardens Garden Committee ,1234655,,,,11/05/2020,3110186699,"55,000.00",,Levies,,,,,,No
The Royal Borough of Kensington and Chelsea,RBKC,,Resources & Assets,Financial Management,,Greater London Authority (Levy Payments Only) ,1231779,,,,09/04/2020,3110179048,"139,468.40",,Levies,,,,,,No
The Royal Borough of Kensington and Chelsea,RBKC,,Resources & Assets,Financial Management,,Greater London Authority (Levy Payments Only) ,1231779,,,,19/05/2020,3110190211,"139,468.40",,Levies,,,,,,No
The Royal Borough of Kensington and Chelsea,RBKC,,Resources & Assets,Financial Management,,Hanover Gardens Committee ,1234693,,,,11/05/2020,3110186681,"29,250.00",,Levies,,,,,,No
The Royal Borough of Kensington and Chelsea,RBKC,,Resources & Assets,Financial Management,,Hereford Square Garden Committee ,1230404,,,,11/05/2020,3110186700,"24,000.00",,Levies,,,,,,No
The Royal Borough of Kensington and Chelsea,RBKC,,Resources & Assets,Financial Management,,Holland & Russell Rd Ornamental Garden Com,1230418,,,,11/05/2020,3110186701,"28,862.54",,Levies,,,,,,No
The Royal Borough of Kensington and Chelsea,RBKC,,Resources & Assets,Financial Management,,Hornton St & Holland St Gdn Cttee ,1234742,,,,11/05/2020,3110186702,"20,000.00",,Levies,,,,,,No
The Royal Borough of Kensington and Chelsea,RBKC,,Resources & Assets,Financial Management,,Iverna Court Garden Committee ,1234804,,,,11/05/2020,3110186703,"12,000.00",,Levies,,,,,,No
The Royal Borough of Kensington and Chelsea,RBKC,,Resources & Assets,Financial Management,,Kensington Square Garden Committee ,1230537,,,,11/05/2020,3110186704,"30,000.00",,Levies,,,,,,No
The Royal Borough of Kensington and Chelsea,RBKC,,Resources & Assets,Financial Management,,Ladbroke Grove Garden Committee ,1234876,,,,11/05/2020,3110186678,"6,000.00",,Levies,,,,,,No
The Royal Borough of Kensington and Chelsea,RBKC,,Resources & Assets,Financial Management,,Lansdowne Gardens Garden Committee ,1230573,,,,11/05/2020,3110186680,"36,000.00",,Levies,,,,,,No
The Royal Borough of Kensington and Chelsea,RBKC,,Resources & Assets,Financial Management,,Lexham Gardens Garden Committee ,1234904,,,,11/05/2020,3110186705,"47,000.00",,Levies,,,,,,No
The Royal Borough of Kensington and Chelsea,RBKC,,Resources & Assets,Financial Management,,London Councils ,1231827,,,,19/05/2020,2200097150,"51,821.00",,Levies,,,,,,No
The Royal Borough of Kensington and Chelsea,RBKC,,Resources & Assets,Financial Management,,Montpelier Gardens Garden Committee,1235017,,,,11/05/2020,3110186682,"45,000.00",,Levies,,,,,,No
The Royal Borough of Kensington and Chelsea,RBKC,,Resources & Assets,Financial Management,,Moreton & Cresswell Gardens Committee,1235020,,,,11/05/2020,3110186706,"28,550.00",,Levies,,,,,,No
The Royal Borough of Kensington and Chelsea,RBKC,,Resources & Assets,Financial Management,,Nevern Square Garden Committee ,1230766,,,,11/05/2020,3110186707,"40,700.00",,Levies,,,,,,No
The Royal Borough of Kensington and Chelsea,RBKC,,Resources & Assets,Financial Management,,Norland Square Garden Committee ,1230776,,,,11/05/2020,3110186708,"26,400.00",,Levies,,,,,,No
The Royal Borough of Kensington and Chelsea,RBKC,,Resources & Assets,Financial Management,,Notting Hill Gardens Garden Committee,1235075,,,,11/05/2020,3110186683,"10,000.00",,Levies,,,,,,No
The Royal Borough of Kensington and Chelsea,RBKC,,Resources & Assets,Financial Management,,Ovington Square Garden Committee ,1235125,,,,11/05/2020,3110186709,"30,000.00",,Levies,,,,,,No
The Royal Borough of Kensington and Chelsea,RBKC,,Resources & Assets,Financial Management,,Pembridge Square Garden Committee ,1231005,,,,11/05/2020,3110186710,"36,000.00",,Levies,,,,,,No
The Royal Borough of Kensington and Chelsea,RBKC,,Resources & Assets,Financial Management,,Philbeach Gardens Garden Committee ,1231029,,,,11/05/2020,3110186711,"72,000.00",,Levies,,,,,,No
The Royal Borough of Kensington and Chelsea,RBKC,,Resources & Assets,Financial Management,,Rosmead Garden Committee ,1235294,,,,11/05/2020,3110186679,"56,650.00",,Levies,,,,,,No
The Royal Borough of Kensington and Chelsea,RBKC,,Resources & Assets,Financial Management,,Royal Crescent Garden Committee ,1231285,,,,11/05/2020,3110186712,"54,000.00",,Levies,,,,,,No
The Royal Borough of Kensington and Chelsea,RBKC,,Resources & Assets,Financial Management,,St Jamess Gardens Garden Committee,1235405,,,,11/05/2020,3110186713,"27,591.00",,Levies,,,,,,No
The Royal Borough of Kensington and Chelsea,RBKC,,Resources & Assets,Financial Management,,Stanley Crescent Garden Committee ,1235409,,,,11/05/2020,3110186714,"42,000.00",,Levies,,,,,,No
The Royal Borough of Kensington and Chelsea,RBKC,,Resources & Assets,Financial Management,,Stanley Gardens (North) Garden Comm ,1235410,,,,11/05/2020,3110186715,"45,000.00",,Levies,,,,,,No
The Royal Borough of Kensington and Chelsea,RBKC,,Resources & Assets,Financial Management,,Stanley Gardens (South) Garden Committee,1235411,,,,11/05/2020,3110186716,"50,000.00",,Levies,,,,,,No
The Royal Borough of Kensington and Chelsea,RBKC,,Resources & Assets,Financial Management,,Sunningdale Gardens Garden Committee,1235445,,,,11/05/2020,3110186673,"4,000.00",,Levies,,,,,,No
The Royal Borough of Kensington and Chelsea,RBKC,,Resources & Assets,Financial Management,,Transport For London ,1231875,,,,12/05/2020,3110189114,"2,094,070.00",,Levies,,,,,,No
The Royal Borough of Kensington and Chelsea,RBKC,,Resources & Assets,Financial Management,,Wetherby Gardens Garden Committee ,1235655,,,,11/05/2020,3110186674,"77,000.00",,Levies,,,,,,No
The Royal Borough of Kensington and Chelsea,RBKC,,Grenfell Team,Director for Grenfell,,Campbell Tickell Ltd ,1233060,,,,05/06/2020,2200101003,"3,750.00",,Creditors Control : AP GRIR,,,,,,No
The Royal Borough of Kensington and Chelsea,RBKC,,Grenfell Team,Director for Grenfell,,City Of Westminster ,1231771,,,,11/05/2020,2200095586,"39,178.76",,Creditors Control : AP GRIR,,,,,,No
The Royal Borough of Kensington and Chelsea,RBKC,,Grenfell Team,Director for Grenfell,,Redact Details,D000000023,,,,28/04/2020,3110184629,"2,375.00",,Pupil / Client Travel Reimbursement,,,,,,No
The Royal Borough of Kensington and Chelsea,RBKC,,Grenfell Team,Director for Grenfell,,Redact Details,D000000023,,,,24/06/2020,3110201193,900,,Pupil / Client Travel Reimbursement,,,,,,No
The Royal Borough of Kensington and Chelsea,RBKC,,Grenfell Team,Director for Resources and Assets,,Penna Plc ,1231010,,,,03/04/2020,2200087761,"7,475.00",,Creditors Control : AP GRIR,,,,,,No
The Royal Borough of Kensington and Chelsea,RBKC,,Grenfell Team,Director for Resources and Assets,,Penna Plc ,1231010,,,,06/04/2020,2200088141,"10,867.50",,Creditors Control : AP GRIR,,,,,,No
The Royal Borough of Kensington and Chelsea,RBKC,,Grenfell Team,Director for Resources and Assets,,Penna Plc ,1231010,,,,06/04/2020,2200088151,"13,200.00",,Agency Staff,,,,,,No
The Royal Borough of Kensington and Chelsea,RBKC,,Grenfell Team,Director for Resources and Assets,,Penna Plc ,1231010,,,,06/04/2020,2200088153,"7,101.25",,Creditors Control : AP GRIR,,,,,,No
The Royal Borough of Kensington and Chelsea,RBKC,,Grenfell Team,Director for Resources and Assets,,Penna Plc ,1231010,,,,06/04/2020,2200088154,"12,500.00",,Creditors Control : AP GRIR,,,,,,No
The Royal Borough of Kensington and Chelsea,RBKC,,Grenfell Team,Director for Resources and Assets,,Penna Plc ,1231010,,,,11/05/2020,2200095403,"4,200.00",,Agency Staff,,,,,,No
The Royal Borough of Kensington and Chelsea,RBKC,,Grenfell Team,Director for Resources and Assets,,Penna Plc ,1231010,,,,27/05/2020,2200099014,"10,350.00",,Agency Staff,,,,,,No
The Royal Borough of Kensington and Chelsea,RBKC,,Grenfell Team,Director for Resources and Assets,,Penna Plc ,1231010,,,,27/05/2020,2200099015,"12,500.00",,Agency Staff,,,,,,No
The Royal Borough of Kensington and Chelsea,RBKC,,Grenfell Team,Director for Resources and Assets,,Penna Plc ,1231010,,,,03/06/2020,2200100634,"7,101.25",,Agency Staff,,,,,,No
The Royal Borough of Kensington and Chelsea,RBKC,,Grenfell Team,Director for Resources and Assets,,Penna Plc ,1231010,,,,03/06/2020,2200100636,"9,832.50",,Agency Staff,,,,,,No
The Royal Borough of Kensington and Chelsea,RBKC,,Grenfell Team,Director for Resources and Assets,,Penna Plc ,1231010,,,,03/06/2020,2200100637,"12,500.00",,Agency Staff,,,,,,No
The Royal Borough of Kensington and Chelsea,RBKC,,Grenfell Team,Director for Resources and Assets,,Penna Plc ,1231010,,,,25/06/2020,2200104996,"19,200.00",,Agency Staff,,,,,,No
The Royal Borough of Kensington and Chelsea,RBKC,,Grenfell Team,Director for Resources and Assets,,Vivandex Ltd,1258860,,,,04/06/2020,2200100818,"7,142.07",,Agency Staff,,,,,,No
The Royal Borough of Kensington and Chelsea,RBKC,,Grenfell Team,Head of Comms and Community Engage,,London Letterbox Marketing ,1234938,,,,16/06/2020,2200103087,"4,059.00",,Postage and Delivery,,,,,,No
The Royal Borough of Kensington and Chelsea,RBKC,,Grenfell Team,Head of Comms and Community Engage,,Fox Managed Solutions Ltd,1268550,,,,16/04/2020,2200090265,"2,712.00",,Printing,,,,,,No
The Royal Borough of Kensington and Chelsea,RBKC,,Grenfell Team,Head of Comms and Community Engage,,24 Hearts CIC ,1232071,,,,30/06/2020,2200106060,"12,000.00",,Grant Aid and Donations,,,,,,No
The Royal Borough of Kensington and Chelsea,RBKC,,Grenfell Team,Head of Comms and Community Engage,,Babajani Ltd,1263023,,,,27/04/2020,2200092146,672,,Creditors Control : AP GRIR,,,,,,No
The Royal Borough of Kensington and Chelsea,RBKC,,Grenfell Team,Head of Comms and Community Engage,,Fluid Design Ltd ,1234437,,,,12/05/2020,2200095714,"4,640.00",,Creditors Control : AP GRIR,,,,,,No
The Royal Borough of Kensington and Chelsea,RBKC,,Grenfell Team,Head of Comms and Community Engage,,Fluid Design Ltd ,1234437,,,,19/05/2020,2200097063,"5,000.00",,Creditors Control : AP GRIR,,,,,,No
The Royal Borough of Kensington and Chelsea,RBKC,,Grenfell Team,Head of Comms and Community Engage,,"Ministry of Housing, Communities and Local Government",1230812,,,,21/05/2020,2200097737,"15,377.10",,Creditors Control : AP GRIR,,,,,,No
The Royal Borough of Kensington and Chelsea,RBKC,,Grenfell Team,Head of Comms and Community Engage,,MutualGain Ltd,1260929,,,,19/06/2020,2200103845,"2,880.00",,Creditors Control : AP GRIR,,,,,,No
The Royal Borough of Kensington and Chelsea,RBKC,,Grenfell Team,Head of Comms and Community Engage,,Portobello Business Centre Ltd ,1231045,,,,25/06/2020,2200104803,"1,600.00",,Creditors Control : AP GRIR,,,,,,No
The Royal Borough of Kensington and Chelsea,RBKC,,Grenfell Team,Head of Comms and Community Engage,,Westway Trust ,1235654,,,,29/04/2020,2200092986,522.72,,Creditors Control : AP GRIR,,,,,,No
The Royal Borough of Kensington and Chelsea,RBKC,,Grenfell Team,Director for Resources and Assets,,Yes Events Ltd ,1232135,,,,26/06/2020,2200105178,"3,325.00",,"Publicity, Promotions and Advertisement",,,,,,No
The Royal Borough of Kensington and Chelsea,RBKC,,Grenfell Team,Director for Resources and Assets,,Yes Events Ltd ,1232135,,,,26/06/2020,2200105179,"1,760.00",,Security Costs,,,,,,No
The Royal Borough of Kensington and Chelsea,RBKC,,Grenfell Team,Director for Grenfell,,The Arvon Foundation,1231621,,,,04/06/2020,2200100787,759,,Creditors Control : AP GRIR,,,,,,No
The Royal Borough of Kensington and Chelsea,RBKC,,Grenfell Team,Director for Grenfell,,Francor Limited,1265970,,,,16/04/2020,2200090050,"2,633.34",,Creditors Control : AP GRIR,,,,,,No
The Royal Borough of Kensington and Chelsea,RBKC,,Grenfell Team,Director for Grenfell,,Prepaid Financial Services,D000000023,,,,29/06/2020,3110201489,"100,000.00",,Hired and Contracted Services,,,,,,No
The Royal Borough of Kensington and Chelsea,RBKC,,Grenfell Team,Director for Grenfell,,Prepaid Financial Services Ltd,1231051,,,,28/05/2020,3110192768,"100,000.00",,Fees,,,,,,No
The Royal Borough of Kensington and Chelsea,RBKC,,Grenfell Team,Director for Grenfell,,Action For Children Services Ltd,1232313,,,,02/04/2020,2200087640,"158,119.75",,Hired and Contracted Services,,,,,,No
The Royal Borough of Kensington and Chelsea,RBKC,,Grenfell Team,Director for Grenfell,,BT Global Services ,1233001,,,,19/05/2020,2200097168,630,,Telephone : Rentals,,,,,,No
The Royal Borough of Kensington and Chelsea,RBKC,,Grenfell Team,Director for Grenfell,,BT Global Services ,1233001,,,,15/06/2020,2200102850,630,,Telephone : Rentals,,,,,,No
The Royal Borough of Kensington and Chelsea,RBKC,,Grenfell Team,Director for Grenfell,,Khoo Teck Puat UK Foundation ,1230545,,,,17/06/2020,3110198512,"53,460.00",,Premises Rent,,,,,,No
The Royal Borough of Kensington and Chelsea,RBKC,,Grenfell Team,Director for Grenfell,,Khoo Teck Puat UK Foundation ,1230545,,,,17/06/2020,3110198512,"6,764.10",,Service Charges : Premises,,,,,,No
The Royal Borough of Kensington and Chelsea,RBKC,,Grenfell Team,Director for Grenfell,,Khoo Teck Puat UK Foundation ,1230545,,,,17/06/2020,3110198513,"6,611.10",,Service Charges : Premises,,,,,,No
The Royal Borough of Kensington and Chelsea,RBKC,,Grenfell Team,Director for Grenfell,,Khoo Teck Puat UK Foundation ,1230545,,,,17/06/2020,3110198513,"51,366.00",,Premises Rent,,,,,,No
The Royal Borough of Kensington and Chelsea,RBKC,,Grenfell Team,Director for Grenfell,,DA Languages Ltd ,1233749,,,,07/04/2020,2200088538,864.59,,Interpreters Fees,,,,,,No
The Royal Borough of Kensington and Chelsea,RBKC,,Grenfell Team,Director for Grenfell,,DA Languages Ltd ,1233749,,,,11/05/2020,2200095442,862.44,,Interpreters Fees,,,,,,No
The Royal Borough of Kensington and Chelsea,RBKC,,Grenfell Team,Director for Grenfell,,DA Languages Ltd ,1233749,,,,08/06/2020,2200101463,"2,383.60",,Interpreters Fees,,,,,,No
The Royal Borough of Kensington and Chelsea,RBKC,,Grenfell Team,Director for Grenfell,,Redact Details,1268474,,,,19/05/2020,2200097247,523,,Creditors Control : AP GRIR,,,,,,No
The Royal Borough of Kensington and Chelsea,RBKC,,Grenfell Team,Director for Grenfell,,Netcall Telecom Ltd ,1230760,,,,23/04/2020,2200091465,"1,495.00",,Creditors Control : AP GRIR,,,,,,No
The Royal Borough of Kensington and Chelsea,RBKC,,Grenfell Team,Director for Grenfell,,Odgers Interim T/A Irg Advisors Llp,1235093,,,,20/04/2020,2200090752,"10,857.22",,Agency Staff,,,,,,No
The Royal Borough of Kensington and Chelsea,RBKC,,Grenfell Team,Director for Grenfell,,Odgers Interim T/A Irg Advisors Llp,1235093,,,,22/05/2020,2200098103,"9,870.20",,Agency Staff,,,,,,No
The Royal Borough of Kensington and Chelsea,RBKC,,Grenfell Team,Director for Grenfell,,Odgers Interim T/A Irg Advisors Llp,1235093,,,,25/06/2020,2200104844,"9,376.69",,Agency Staff,,,,,,No
The Royal Borough of Kensington and Chelsea,RBKC,,Grenfell Team,Director for Grenfell,,The City Literature Insti,1263294,,,,15/04/2020,2200089850,956,,Education Support,,,,,,No
The Royal Borough of Kensington and Chelsea,RBKC,,Grenfell Team,Director for Resources and Assets,,Redact Details,1263079,,,,03/04/2020,2200087750,"1,900.00",,Creditors Control : AP GRIR,,,,,,No
The Royal Borough of Kensington and Chelsea,RBKC,,Grenfell Team,Director for Resources and Assets,,Public Intelligence Ltd,1263415,,,,01/04/2020,2200088012,"12,660.00",,Fees,,,,,,No
The Royal Borough of Kensington and Chelsea,RBKC,,Grenfell Team,Director for Grenfell,,18 Saint Quintin Avenue Limited ,1257806,,,,23/06/2020,2200104252,600,,Service Charges : Premises,,,,,,No
The Royal Borough of Kensington and Chelsea,RBKC,,Grenfell Team,Director for Grenfell,,26 Edith Grove Management Company,1232072,,,,03/04/2020,3110177284,800,,Service Charges : Premises,,,,,,No
The Royal Borough of Kensington and Chelsea,RBKC,,Grenfell Team,Director for Grenfell,,Association of Freeholders T/A,1232651,,,,14/05/2020,3110189285,"1,800.00",,Service Charges : Premises,,,,,,No
The Royal Borough of Kensington and Chelsea,RBKC,,Grenfell Team,Director for Grenfell,,Best Gapp & Cassells ,1232732,,,,03/06/2020,2200100640,646.1,,Service Charges : Premises,,,,,,No
The Royal Borough of Kensington and Chelsea,RBKC,,Grenfell Team,Director for Grenfell,,Carter Jonas Llp ,1233297,,,,03/04/2020,2200087759,"2,250.00",,Creditors Control : AP GRIR,,,,,,No
The Royal Borough of Kensington and Chelsea,RBKC,,Grenfell Team,Director for Grenfell,,Bamptons - Courtleigh,D000000023,,,,03/04/2020,3110177247,"2,416.81",,Service Charges : Premises,,,,,,No
The Royal Borough of Kensington and Chelsea,RBKC,,Grenfell Team,Director for Grenfell,,Redact Details,D000000023,,,,03/04/2020,3110177254,"1,793.60",,Service Charges : Premises,,,,,,No
The Royal Borough of Kensington and Chelsea,RBKC,,Grenfell Team,Director for Grenfell,,208 Ladbroke Grove Management Compa,D000000023,,,,07/04/2020,3110178110,"2,295.00",,Service Charges : Premises,,,,,,No
The Royal Borough of Kensington and Chelsea,RBKC,,Grenfell Team,Director for Grenfell,,274 Ladbroke Grove Client Account,D000000023,,,,22/04/2020,3110182263,"1,740.92",,Service Charges : Premises,,,,,,No
The Royal Borough of Kensington and Chelsea,RBKC,,Grenfell Team,Director for Grenfell,,Cordrose Management Ltd,D000000023,,,,22/04/2020,3110182264,"2,290.96",,Service Charges : Premises,,,,,,No
The Royal Borough of Kensington and Chelsea,RBKC,,Grenfell Team,Director for Grenfell,,Winckworth Sherwood LLP,D000000023,,,,14/05/2020,3110189276,"1,200.00",,Service Charges : Premises,,,,,,No
The Royal Borough of Kensington and Chelsea,RBKC,,Grenfell Team,Director for Grenfell,,Arthur J. Gallagher Insurance Broke,D000000023,,,,03/06/2020,3110193943,530.52,,Service Charges : Premises,,,,,,No
The Royal Borough of Kensington and Chelsea,RBKC,,Grenfell Team,Director for Grenfell,,G & H Z Limited: Re Barness Court,D000000023,,,,03/06/2020,3110193951,"1,867.18",,Service Charges : Premises,,,,,,No
The Royal Borough of Kensington and Chelsea,RBKC,,Grenfell Team,Director for Grenfell,,Redact Details,D000000023,,,,08/06/2020,3110194894,"1,613.80",,Service Charges : Premises,,,,,,No
The Royal Borough of Kensington and Chelsea,RBKC,,Grenfell Team,Director for Grenfell,,224 Ladbroke Grove Client Ac,D000000023,,,,08/06/2020,3110194899,816.24,,Service Charges : Premises,,,,,,No
The Royal Borough of Kensington and Chelsea,RBKC,,Grenfell Team,Director for Grenfell,,RMG London - Central & Metropolitan,D000000023,,,,10/06/2020,3110196942,885.59,,Service Charges : Premises,,,,,,No
The Royal Borough of Kensington and Chelsea,RBKC,,Grenfell Team,Director for Grenfell,,RMG London - Central & Metropolitan,D000000023,,,,10/06/2020,3110196943,731.68,,Service Charges : Premises,,,,,,No
The Royal Borough of Kensington and Chelsea,RBKC,,Grenfell Team,Director for Grenfell,,RMG London - Central & Metropolitan,D000000023,,,,10/06/2020,3110196944,939.84,,Service Charges : Premises,,,,,,No
The Royal Borough of Kensington and Chelsea,RBKC,,Grenfell Team,Director for Grenfell,,Cameret Court,D000000023,,,,10/06/2020,3110196955,"2,263.89",,Service Charges : Premises,,,,,,No
The Royal Borough of Kensington and Chelsea,RBKC,,Grenfell Team,Director for Grenfell,,Southern Land Securities Limited,D000000023,,,,10/06/2020,3110196956,650,,Licences,,,,,,No
The Royal Borough of Kensington and Chelsea,RBKC,,Grenfell Team,Director for Grenfell,,Estmanco (Porchester Triangle) Ltd,D000000023,,,,24/06/2020,3110201191,"1,739.63",,Service Charges : Premises,,,,,,No
The Royal Borough of Kensington and Chelsea,RBKC,,Grenfell Team,Director for Grenfell,,Lee Baron Ltd,1258909,,,,05/06/2020,2200101038,"2,595.34",,Service Charges : Premises,,,,,,No
The Royal Borough of Kensington and Chelsea,RBKC,,Grenfell Team,Director for Grenfell,,Peters Court RTM Company Ltd,1258207,,,,17/06/2020,2200103265,"1,824.19",,Creditors Control : AP GRIR,,,,,,No
The Royal Borough of Kensington and Chelsea,RBKC,,Grenfell Team,Director for Grenfell,,Principia Estate & Asset Management,1231058,,,,03/06/2020,2200100638,"1,117.52",,Service Charges : Premises,,,,,,No
The Royal Borough of Kensington and Chelsea,RBKC,,Grenfell Team,Director for Grenfell,,Principia Estate & Asset Management,1231058,,,,05/06/2020,2200101036,"1,117.52",,Service Charges : Premises,,,,,,No
The Royal Borough of Kensington and Chelsea,RBKC,,Grenfell Team,Director for Grenfell,,ROOFPRO LONDON LIMITED,1269812,,,,15/06/2020,2200102837,"1,270.00",,Creditors Control : AP GRIR,,,,,,No
The Royal Borough of Kensington and Chelsea,RBKC,,Grenfell Team,Director for Grenfell,,Remus Management Ltd,1235262,,,,05/06/2020,2200101040,"1,422.54",,Service Charges : Premises,,,,,,No
The Royal Borough of Kensington and Chelsea,RBKC,,Grenfell Team,Director for Grenfell,,TPS Estates (Management) Ltd ,1235565,,,,24/06/2020,3110201196,681,,Service Charges : Premises,,,,,,No
The Royal Borough of Kensington and Chelsea,RBKC,,Grenfell Team,Director for Grenfell,,Tempus Facilities Management Ltd ,1235468,,,,07/04/2020,2200088356,"1,458.00",,Reactive repairs and maintenance : Buildings,,,,,,No
The Royal Borough of Kensington and Chelsea,RBKC,,Grenfell Team,Director for Grenfell,,Tempus Facilities Management Ltd ,1235468,,,,20/04/2020,2200090627,580.77,,Reactive repairs and maintenance : Buildings,,,,,,No
The Royal Borough of Kensington and Chelsea,RBKC,,Grenfell Team,Director for Grenfell,,Tempus Facilities Management Ltd ,1235468,,,,27/04/2020,2200092156,"1,124.88",,Reactive repairs and maintenance : Buildings,,,,,,No
The Royal Borough of Kensington and Chelsea,RBKC,,Grenfell Team,Director for Grenfell,,Tempus Facilities Management Ltd ,1235468,,,,27/04/2020,2200092158,"1,000.08",,Reactive repairs and maintenance : Buildings,,,,,,No
The Royal Borough of Kensington and Chelsea,RBKC,,Grenfell Team,Director for Grenfell,,Tempus Facilities Management Ltd ,1235468,,,,27/04/2020,2200092161,877.5,,Reactive repairs and maintenance : Buildings,,,,,,No
The Royal Borough of Kensington and Chelsea,RBKC,,Grenfell Team,Director for Grenfell,,Tempus Facilities Management Ltd ,1235468,,,,27/04/2020,2200092162,"1,110.42",,Reactive repairs and maintenance : Buildings,,,,,,No
The Royal Borough of Kensington and Chelsea,RBKC,,Grenfell Team,Director for Grenfell,,Tempus Facilities Management Ltd ,1235468,,,,27/04/2020,2200092164,"1,012.50",,Reactive repairs and maintenance : Buildings,,,,,,No
The Royal Borough of Kensington and Chelsea,RBKC,,Grenfell Team,Director for Grenfell,,Tempus Facilities Management Ltd ,1235468,,,,30/04/2020,2200093398,833.75,,Reactive repairs and maintenance : Buildings,,,,,,No
The Royal Borough of Kensington and Chelsea,RBKC,,Grenfell Team,Director for Grenfell,,Tempus Facilities Management Ltd ,1235468,,,,04/05/2020,2200094064,924.75,,Reactive repairs and maintenance : Buildings,,,,,,No
The Royal Borough of Kensington and Chelsea,RBKC,,Grenfell Team,Director for Grenfell,,Tempus Facilities Management Ltd ,1235468,,,,04/05/2020,2200094072,515.85,,Reactive repairs and maintenance : Buildings,,,,,,No
The Royal Borough of Kensington and Chelsea,RBKC,,Grenfell Team,Director for Grenfell,,Tempus Facilities Management Ltd ,1235468,,,,04/05/2020,2200094073,"1,188.00",,Reactive repairs and maintenance : Buildings,,,,,,No
The Royal Borough of Kensington and Chelsea,RBKC,,Grenfell Team,Director for Grenfell,,Tempus Facilities Management Ltd ,1235468,,,,04/05/2020,2200094074,891,,Reactive repairs and maintenance : Buildings,,,,,,No
The Royal Borough of Kensington and Chelsea,RBKC,,Grenfell Team,Director for Grenfell,,Tempus Facilities Management Ltd ,1235468,,,,04/05/2020,2200094076,981.45,,Reactive repairs and maintenance : Buildings,,,,,,No
The Royal Borough of Kensington and Chelsea,RBKC,,Grenfell Team,Director for Grenfell,,Tempus Facilities Management Ltd ,1235468,,,,04/05/2020,2200094078,"2,130.30",,Reactive repairs and maintenance : Buildings,,,,,,No
The Royal Borough of Kensington and Chelsea,RBKC,,Grenfell Team,Director for Grenfell,,The Residents Management Company,1231836,,,,11/06/2020,3110197098,"5,372.33",,Service Charges : Premises,,,,,,No
The Royal Borough of Kensington and Chelsea,RBKC,,Grenfell Team,Director for Grenfell,,The Residents Management Company,1231836,,,,19/06/2020,3110198686,"10,338.52",,Service Charges : Premises,,,,,,No
The Royal Borough of Kensington and Chelsea,RBKC,,Grenfell Team,Director for Grenfell,,Willmotts (Ealing) Ltd ,1231967,,,,14/05/2020,3110189287,"3,426.68",,Service Charges : Premises,,,,,,No
The Royal Borough of Kensington and Chelsea,RBKC,,Grenfell Team,Director for Resources and Assets,,Bhatt Murphy Ltd,1232741,,,,13/05/2020,3110189157,"1,684.50",,Fees,,,,,,No
The Royal Borough of Kensington and Chelsea,RBKC,,Grenfell Team,Director for Resources and Assets,,Dwf Llp ,1234046,,,,23/04/2020,2200091467,"6,535.00",,Creditors Control : AP GRIR,,,,,,No
The Royal Borough of Kensington and Chelsea,RBKC,,Grenfell Team,Director for Resources and Assets,,Dwf Llp ,1234046,,,,25/06/2020,2200104898,"2,145.00",,Creditors Control : AP GRIR,,,,,,No
The Royal Borough of Kensington and Chelsea,RBKC,,Grenfell Team,Director for Resources and Assets,,Redact Details,D000000026,,,,03/04/2020,3110177179,"1,100.00",,Fees,,,,,,No
The Royal Borough of Kensington and Chelsea,RBKC,,Grenfell Team,Director for Resources and Assets,,Redact Details,D000000026,,,,07/04/2020,3110178144,"2,339.70",,Fees,,,,,,No
The Royal Borough of Kensington and Chelsea,RBKC,,Grenfell Team,Director for Resources and Assets,,Redact Details,D000000026,,,,10/04/2020,3110179080,"1,170.00",,Fees,,,,,,No
The Royal Borough of Kensington and Chelsea,RBKC,,Grenfell Team,Director for Resources and Assets,,Redact Details,D000000026,,,,15/04/2020,3110181043,"40,000.00",,Fees,,,,,,No
The Royal Borough of Kensington and Chelsea,RBKC,,Grenfell Team,Director for Resources and Assets,,Redact Details,D000000026,,,,20/04/2020,3110181402,"2,000.51",,Fees,,,,,,No
The Royal Borough of Kensington and Chelsea,RBKC,,Grenfell Team,Director for Resources and Assets,,Redact Details,D000000026,,,,21/04/2020,3110182224,"10,000.00",,Fees,,,,,,No
The Royal Borough of Kensington and Chelsea,RBKC,,Grenfell Team,Director for Resources and Assets,,Redact Details,D000000026,,,,21/04/2020,3110182225,"10,000.00",,Fees,,,,,,No
The Royal Borough of Kensington and Chelsea,RBKC,,Grenfell Team,Director for Resources and Assets,,Redact Details,D000000026,,,,22/04/2020,3110182267,"10,000.00",,Fees,,,,,,No
The Royal Borough of Kensington and Chelsea,RBKC,,Grenfell Team,Director for Resources and Assets,,Redact Details,D000000026,,,,23/04/2020,3110182401,"21,818.44",,Insurance Claim Settlements,,,,,,No
The Royal Borough of Kensington and Chelsea,RBKC,,Grenfell Team,Director for Resources and Assets,,Redact Details,D000000026,,,,23/04/2020,3110182402,960,,Fees,,,,,,No
The Royal Borough of Kensington and Chelsea,RBKC,,Grenfell Team,Director for Resources and Assets,,Redact Details,D000000026,,,,23/04/2020,3110182403,960,,Fees,,,,,,No
The Royal Borough of Kensington and Chelsea,RBKC,,Grenfell Team,Director for Resources and Assets,,Redact Details,D000000026,,,,23/04/2020,3110182404,563.59,,Fees,,,,,,No
The Royal Borough of Kensington and Chelsea,RBKC,,Grenfell Team,Director for Resources and Assets,,Redact Details,D000000026,,,,23/04/2020,3110182404,792.27,,Fees,,,,,,No
The Royal Borough of Kensington and Chelsea,RBKC,,Grenfell Team,Director for Resources and Assets,,Redact Details,D000000026,,,,23/04/2020,3110182405,960,,Fees,,,,,,No
The Royal Borough of Kensington and Chelsea,RBKC,,Grenfell Team,Director for Resources and Assets,,Redact Details,D000000026,,,,23/04/2020,3110182406,"10,000.00",,Fees,,,,,,No
The Royal Borough of Kensington and Chelsea,RBKC,,Grenfell Team,Director for Resources and Assets,,Redact Details,D000000026,,,,24/04/2020,3110182544,577.31,,Insurance Claim Settlements,,,,,,No
The Royal Borough of Kensington and Chelsea,RBKC,,Grenfell Team,Director for Resources and Assets,,Redact Details,D000000026,,,,24/04/2020,3110182544,686.91,,Insurance Claim Settlements,,,,,,No
The Royal Borough of Kensington and Chelsea,RBKC,,Grenfell Team,Director for Resources and Assets,,Redact Details,D000000026,,,,01/05/2020,3110185297,700,,Fees,,,,,,No
The Royal Borough of Kensington and Chelsea,RBKC,,Grenfell Team,Director for Resources and Assets,,Redact Details,D000000026,,,,04/05/2020,3110185847,"3,000.00",,Fees,,,,,,No
The Royal Borough of Kensington and Chelsea,RBKC,,Grenfell Team,Director for Resources and Assets,,Redact Details,D000000026,,,,04/05/2020,3110185849,714,,Fees,,,,,,No
The Royal Borough of Kensington and Chelsea,RBKC,,Grenfell Team,Director for Resources and Assets,,Redact Details,D000000026,,,,05/05/2020,3110186161,"1,962.50",,Fees,,,,,,No
The Royal Borough of Kensington and Chelsea,RBKC,,Grenfell Team,Director for Resources and Assets,,Redact Details,D000000026,,,,06/05/2020,3110186459,"10,000.00",,Fees,,,,,,No
The Royal Borough of Kensington and Chelsea,RBKC,,Grenfell Team,Director for Resources and Assets,,Redact Details,D000000026,,,,11/05/2020,3110186662,"1,000.00",,Fees,,,,,,No
The Royal Borough of Kensington and Chelsea,RBKC,,Grenfell Team,Director for Resources and Assets,,Redact Details,D000000026,,,,11/05/2020,3110186668,"12,500.00",,Fees,,,,,,No
The Royal Borough of Kensington and Chelsea,RBKC,,Grenfell Team,Director for Resources and Assets,,Redact Details,D000000026,,,,13/05/2020,3110189156,"4,500.00",,Insurance Claim Settlements,,,,,,No
The Royal Borough of Kensington and Chelsea,RBKC,,Grenfell Team,Director for Resources and Assets,,Redact Details,D000000026,,,,18/05/2020,3110189401,724.53,,Fees,,,,,,No
The Royal Borough of Kensington and Chelsea,RBKC,,Grenfell Team,Director for Resources and Assets,,Redact Details,D000000026,,,,18/05/2020,3110189405,568.89,,Fees,,,,,,No
The Royal Borough of Kensington and Chelsea,RBKC,,Grenfell Team,Director for Resources and Assets,,Redact Details,D000000026,,,,21/05/2020,3110190338,"12,500.00",,Fees,,,,,,No
The Royal Borough of Kensington and Chelsea,RBKC,,Grenfell Team,Director for Resources and Assets,,Redact Details,D000000026,,,,27/05/2020,3110192557,"1,853.00",,Fees,,,,,,No
The Royal Borough of Kensington and Chelsea,RBKC,,Grenfell Team,Director for Resources and Assets,,Redact Details,D000000026,,,,28/05/2020,3110192763,"5,000.00",,Fees,,,,,,No
The Royal Borough of Kensington and Chelsea,RBKC,,Grenfell Team,Director for Resources and Assets,,Redact Details,D000000026,,,,04/06/2020,3110194667,"12,500.00",,Fees,,,,,,No
The Royal Borough of Kensington and Chelsea,RBKC,,Grenfell Team,Director for Resources and Assets,,Redact Details,D000000026,,,,05/06/2020,3110194731,"1,143.77",,Fees,,,,,,No
The Royal Borough of Kensington and Chelsea,RBKC,,Grenfell Team,Director for Resources and Assets,,Redact Details,D000000026,,,,05/06/2020,3110194732,"1,228.15",,Fees,,,,,,No
The Royal Borough of Kensington and Chelsea,RBKC,,Grenfell Team,Director for Resources and Assets,,Redact Details,D000000026,,,,09/06/2020,3110196879,"3,000.00",,Fees,,,,,,No
The Royal Borough of Kensington and Chelsea,RBKC,,Grenfell Team,Director for Resources and Assets,,Redact Details,D000000026,,,,12/06/2020,3110197525,"5,000.00",,Fees,,,,,,No
The Royal Borough of Kensington and Chelsea,RBKC,,Grenfell Team,Director for Resources and Assets,,Redact Details,D000000026,,,,15/06/2020,3110197657,"10,000.00",,Fees,,,,,,No
The Royal Borough of Kensington and Chelsea,RBKC,,Grenfell Team,Director for Resources and Assets,,Redact Details,D000000026,,,,17/06/2020,3110198493,"5,000.00",,Fees,,,,,,No
The Royal Borough of Kensington and Chelsea,RBKC,,Grenfell Team,Director for Resources and Assets,,Redact Details,D000000026,,,,17/06/2020,3110198498,"5,000.00",,Fees,,,,,,No
The Royal Borough of Kensington and Chelsea,RBKC,,Grenfell Team,Director for Resources and Assets,,Redact Details,D000000026,,,,26/06/2020,3110201384,"10,000.00",,Fees,,,,,,No
The Royal Borough of Kensington and Chelsea,RBKC,,Grenfell Team,Director for Resources and Assets,,Redact Details,D000000026,,,,30/06/2020,3110201726,"1,050.00",,Fees,,,,,,No
The Royal Borough of Kensington and Chelsea,RBKC,,Grenfell Team,Director for Resources and Assets,,Jan Harrison Ltd ,1230497,,,,02/04/2020,3110177111,860,,Fees,,,,,,No
The Royal Borough of Kensington and Chelsea,RBKC,,Grenfell Team,Director for Resources and Assets,,Jan Harrison Ltd ,1230497,,,,06/04/2020,3110177356,"1,846.20",,Fees,,,,,,No
The Royal Borough of Kensington and Chelsea,RBKC,,Grenfell Team,Director for Resources and Assets,,Jan Harrison Ltd ,1230497,,,,06/04/2020,3110177357,962.85,,Fees,,,,,,No
The Royal Borough of Kensington and Chelsea,RBKC,,Grenfell Team,Director for Resources and Assets,,Jan Harrison Ltd ,1230497,,,,07/04/2020,3110178147,962.85,,Fees,,,,,,No
The Royal Borough of Kensington and Chelsea,RBKC,,Grenfell Team,Director for Resources and Assets,,Jan Harrison Ltd ,1230497,,,,10/04/2020,3110179083,778.7,,Fees,,,,,,No
The Royal Borough of Kensington and Chelsea,RBKC,,Grenfell Team,Director for Resources and Assets,,Jan Harrison Ltd ,1230497,,,,16/04/2020,3110181263,860,,Fees,,,,,,No
The Royal Borough of Kensington and Chelsea,RBKC,,Grenfell Team,Director for Resources and Assets,,Jan Harrison Ltd ,1230497,,,,20/04/2020,3110181404,694.95,,Fees,,,,,,No
The Royal Borough of Kensington and Chelsea,RBKC,,Grenfell Team,Director for Resources and Assets,,Jan Harrison Ltd ,1230497,,,,21/04/2020,3110182222,"1,500.00",,Fees,,,,,,No
The Royal Borough of Kensington and Chelsea,RBKC,,Grenfell Team,Director for Resources and Assets,,Jan Harrison Ltd ,1230497,,,,24/04/2020,3110182546,"1,500.00",,Fees,,,,,,No
The Royal Borough of Kensington and Chelsea,RBKC,,Grenfell Team,Director for Resources and Assets,,Jan Harrison Ltd ,1230497,,,,06/05/2020,3110186462,"1,587.50",,Fees,,,,,,No
The Royal Borough of Kensington and Chelsea,RBKC,,Grenfell Team,Director for Resources and Assets,,Jan Harrison Ltd ,1230497,,,,18/05/2020,3110189406,593.3,,Fees,,,,,,No
The Royal Borough of Kensington and Chelsea,RBKC,,Grenfell Team,Director for Resources and Assets,,Jan Harrison Ltd ,1230497,,,,20/05/2020,3110190251,"1,212.50",,Fees,,,,,,No
The Royal Borough of Kensington and Chelsea,RBKC,,Grenfell Team,Director for Resources and Assets,,Jan Harrison Ltd ,1230497,,,,27/05/2020,3110192581,"1,243.25",,Fees,,,,,,No
The Royal Borough of Kensington and Chelsea,RBKC,,Grenfell Team,Director for Resources and Assets,,Jan Harrison Ltd ,1230497,,,,28/05/2020,3110192772,853.2,,Fees,,,,,,No
The Royal Borough of Kensington and Chelsea,RBKC,,Grenfell Team,Director for Resources and Assets,,Jan Harrison Ltd ,1230497,,,,28/05/2020,3110192773,768.4,,Fees,,,,,,No
The Royal Borough of Kensington and Chelsea,RBKC,,Grenfell Team,Director for Resources and Assets,,Jan Harrison Ltd ,1230497,,,,03/06/2020,3110193954,"1,883.70",,Fees,,,,,,No
The Royal Borough of Kensington and Chelsea,RBKC,,Grenfell Team,Director for Resources and Assets,,Jan Harrison Ltd ,1230497,,,,08/06/2020,3110194893,900,,Fees,,,,,,No
The Royal Borough of Kensington and Chelsea,RBKC,,Grenfell Team,Director for Resources and Assets,,Jan Harrison Ltd ,1230497,,,,09/06/2020,3110196911,"1,212.50",,Fees,,,,,,No
The Royal Borough of Kensington and Chelsea,RBKC,,Grenfell Team,Director for Resources and Assets,,Jan Harrison Ltd ,1230497,,,,09/06/2020,3110196912,856.7,,Fees,,,,,,No
The Royal Borough of Kensington and Chelsea,RBKC,,Grenfell Team,Director for Resources and Assets,,Jan Harrison Ltd ,1230497,,,,09/06/2020,3110196914,"1,212.50",,Fees,,,,,,No
The Royal Borough of Kensington and Chelsea,RBKC,,Grenfell Team,Director for Resources and Assets,,Jan Harrison Ltd ,1230497,,,,09/06/2020,3110196915,531.15,,Fees,,,,,,No
The Royal Borough of Kensington and Chelsea,RBKC,,Grenfell Team,Director for Resources and Assets,,Jan Harrison Ltd ,1230497,,,,10/06/2020,3110196998,"1,500.00",,Fees,,,,,,No
The Royal Borough of Kensington and Chelsea,RBKC,,Grenfell Team,Director for Resources and Assets,,Jan Harrison Ltd ,1230497,,,,10/06/2020,3110196999,"1,212.50",,Fees,,,,,,No
The Royal Borough of Kensington and Chelsea,RBKC,,Grenfell Team,Director for Resources and Assets,,Jan Harrison Ltd ,1230497,,,,22/06/2020,3110198803,587.7,,Fees,,,,,,No
The Royal Borough of Kensington and Chelsea,RBKC,,Grenfell Team,Director for Resources and Assets,,Jan Harrison Ltd ,1230497,,,,26/06/2020,3110201375,508.6,,Fees,,,,,,No
The Royal Borough of Kensington and Chelsea,RBKC,,Grenfell Team,Director for Resources and Assets,,Jan Harrison Ltd ,1230497,,,,29/06/2020,3110201486,723.3,,Fees,,,,,,No
The Royal Borough of Kensington and Chelsea,RBKC,,Grenfell Team,Director for Resources and Assets,,Jan Harrison Ltd ,1230497,,,,30/06/2020,3110201734,"1,512.50",,Fees,,,,,,No
The Royal Borough of Kensington and Chelsea,RBKC,,Grenfell Team,Director for Resources and Assets,,NeuroHealth Case Management Services,1230765,,,,06/04/2020,3110177350,634.49,,Fees,,,,,,No
The Royal Borough of Kensington and Chelsea,RBKC,,Grenfell Team,Director for Resources and Assets,,NeuroHealth Case Management Services,1230765,,,,16/04/2020,3110181258,691.57,,Fees,,,,,,No
The Royal Borough of Kensington and Chelsea,RBKC,,Grenfell Team,Director for Resources and Assets,,NeuroHealth Case Management Services,1230765,,,,17/04/2020,3110181274,"3,286.68",,Fees,,,,,,No
The Royal Borough of Kensington and Chelsea,RBKC,,Grenfell Team,Director for Resources and Assets,,NeuroHealth Case Management Services,1230765,,,,15/05/2020,3110189328,"1,258.73",,Fees,,,,,,No
The Royal Borough of Kensington and Chelsea,RBKC,,Grenfell Team,Director for Resources and Assets,,NeuroHealth Case Management Services,1230765,,,,19/05/2020,3110190207,"1,258.73",,Fees,,,,,,No
The Royal Borough of Kensington and Chelsea,RBKC,,Grenfell Team,Director for Resources and Assets,,NeuroHealth Case Management Services,1230765,,,,10/06/2020,3110196959,609.9,,Fees,,,,,,No
The Royal Borough of Kensington and Chelsea,RBKC,,Grenfell Team,Director for Resources and Assets,,Central Moves Uk Limited ,1233324,,,,24/04/2020,2200091899,510,,Creditors Control : AP GRIR,,,,,,No
The Royal Borough of Kensington and Chelsea,RBKC,,Grenfell Team,Director for Resources and Assets,,Friendly Removals Ltd,1234589,,,,23/06/2020,2200104255,697.92,,Removal Costs,,,,,,No
The Royal Borough of Kensington and Chelsea,RBKC,,Grenfell Team,Director for Resources and Assets,,Kenyon International Emergency Services Ltd,1230539,,,,20/04/2020,2200090655,"18,467.23",,Fees,,,,,,No
The Royal Borough of Kensington and Chelsea,RBKC,,Grenfell Team,Director for Resources and Assets,,Tempus Facilities Management Ltd ,1235468,,,,20/05/2020,2200097396,"1,260.00",,Fees,,,,,,No
The Royal Borough of Kensington and Chelsea,RBKC,,Grenfell Team,Director for Resources and Assets,,Tempus Facilities Management Ltd ,1235468,,,,20/05/2020,2200097425,528.95,,Fees,,,,,,No
The Royal Borough of Kensington and Chelsea,RBKC,,Grenfell Team,Director for Resources and Assets,,Tempus Facilities Management Ltd ,1235468,,,,20/05/2020,2200097428,914.14,,Fees,,,,,,No
The Royal Borough of Kensington and Chelsea,RBKC,,Grenfell Team,Director for Resources and Assets,,Tempus Facilities Management Ltd ,1235468,,,,20/05/2020,2200097429,594,,Fees,,,,,,No
The Royal Borough of Kensington and Chelsea,RBKC,,Grenfell Team,Director for Resources and Assets,,Tempus Facilities Management Ltd ,1235468,,,,20/05/2020,2200097430,578.6,,Fees,,,,,,No
The Royal Borough of Kensington and Chelsea,RBKC,,Grenfell Team,Director for Resources and Assets,,Tempus Facilities Management Ltd ,1235468,,,,30/05/2020,2200099693,508.5,,Fees,,,,,,No
The Royal Borough of Kensington and Chelsea,RBKC,,Grenfell Team,Director for Resources and Assets,,Tempus Facilities Management Ltd ,1235468,,,,08/06/2020,2200101485,972,,Fees,,,,,,No
The Royal Borough of Kensington and Chelsea,RBKC,,Grenfell Team,Director for Resources and Assets,,Tempus Facilities Management Ltd ,1235468,,,,08/06/2020,2200101510,728,,Fees,,,,,,No
The Royal Borough of Kensington and Chelsea,RBKC,,Grenfell Team,Director for Resources and Assets,,Tempus Facilities Management Ltd ,1235468,,,,12/06/2020,2200102464,856.25,,Fees,,,,,,No
The Royal Borough of Kensington and Chelsea,RBKC,,Grenfell Team,Director for Resources and Assets,,Tempus Facilities Management Ltd ,1235468,,,,18/06/2020,2200103518,507,,Fees,,,,,,No
The Royal Borough of Kensington and Chelsea,RBKC,,Grenfell Team,Director for Resources and Assets,,Tempus Facilities Management Ltd ,1235468,,,,18/06/2020,2200103527,583.5,,Fees,,,,,,No
The Royal Borough of Kensington and Chelsea,RBKC,,Grenfell Team,Director for Resources and Assets,,Tempus Facilities Management Ltd ,1235468,,,,18/06/2020,2200103529,755.44,,Fees,,,,,,No
The Royal Borough of Kensington and Chelsea,RBKC,,Grenfell Team,Director for Resources and Assets,,Tempus Facilities Management Ltd ,1235468,,,,26/06/2020,2200105154,608.6,,Fees,,,,,,No
The Royal Borough of Kensington and Chelsea,RBKC,,Grenfell Team,Director for Resources and Assets,,Cornerstone Barristers ,1233685,,,,01/04/2020,2200091876,"1,125.00",,Legal Costs,,,,,,No
The Royal Borough of Kensington and Chelsea,RBKC,,Grenfell Team,Director for Resources and Assets,,Cornerstone Barristers ,1233685,,,,01/04/2020,2200091877,"1,500.00",,Legal Costs,,,,,,No
The Royal Borough of Kensington and Chelsea,RBKC,,Grenfell Team,Director for Resources and Assets,,Cornerstone Barristers ,1233685,,,,18/05/2020,2200096974,750,,Legal Costs,,,,,,No
The Royal Borough of Kensington and Chelsea,RBKC,,Grenfell Team,Director for Resources and Assets,,Dwf Llp ,1234046,,,,22/04/2020,2200091258,"12,963.20",,Legal Costs,,,,,,No
The Royal Borough of Kensington and Chelsea,RBKC,,Grenfell Team,Director for Resources and Assets,,Dwf Llp ,1234046,,,,22/04/2020,2200091259,"3,953.00",,Legal Costs,,,,,,No
The Royal Borough of Kensington and Chelsea,RBKC,,Grenfell Team,Director for Resources and Assets,,Dwf Llp ,1234046,,,,22/04/2020,2200091260,"23,892.65",,Legal Costs,,,,,,No
The Royal Borough of Kensington and Chelsea,RBKC,,Grenfell Team,Director for Resources and Assets,,Dwf Llp ,1234046,,,,29/04/2020,2200092801,"190,431.12",,Legal Costs,,,,,,No
The Royal Borough of Kensington and Chelsea,RBKC,,Grenfell Team,Director for Resources and Assets,,Dwf Llp ,1234046,,,,27/05/2020,2200099069,"11,674.39",,Legal Costs,,,,,,No
The Royal Borough of Kensington and Chelsea,RBKC,,Grenfell Team,Director for Resources and Assets,,Dwf Llp ,1234046,,,,27/05/2020,2200099073,"5,120.00",,Legal Costs,,,,,,No
The Royal Borough of Kensington and Chelsea,RBKC,,Grenfell Team,Director for Resources and Assets,,Dwf Llp ,1234046,,,,27/05/2020,2200099074,"2,527.00",,Legal Costs,,,,,,No
The Royal Borough of Kensington and Chelsea,RBKC,,Grenfell Team,Director for Resources and Assets,,Dwf Llp ,1234046,,,,27/05/2020,2200099075,"251,597.88",,Legal Costs,,,,,,No
The Royal Borough of Kensington and Chelsea,RBKC,,Grenfell Team,Director for Resources and Assets,,Dwf Llp ,1234046,,,,23/06/2020,2200104235,"10,432.50",,Legal Costs,,,,,,No
The Royal Borough of Kensington and Chelsea,RBKC,,Grenfell Team,Director for Resources and Assets,,Dwf Llp ,1234046,,,,30/06/2020,2200105917,"241,247.65",,Legal Costs,,,,,,No
The Royal Borough of Kensington and Chelsea,RBKC,,Grenfell Team,Director for Resources and Assets,,Redact Details,1267746,,,,23/04/2020,2200091615,"25,100.00",,Legal Costs,,,,,,No
The Royal Borough of Kensington and Chelsea,RBKC,,Grenfell Team,Director for Resources and Assets,,Weightmans Llp ,1235642,,,,01/04/2020,2200090630,971,,Hired and Contracted Services,,,,,,No
The Royal Borough of Kensington and Chelsea,RBKC,,Grenfell Team,Director for Resources and Assets,,ZELLIS UK LIMITED,1230787,,,,03/04/2020,2200087711,"1,424.40",,Hired and Contracted Services,,,,,,No
The Royal Borough of Kensington and Chelsea,RBKC,,Grenfell Team,Director for Resources and Assets,,Campbell Tickell Ltd ,1233060,,,,08/04/2020,2200088851,"8,617.15",,Creditors Control : AP GRIR,,,,,,No
The Royal Borough of Kensington and Chelsea,RBKC,,Grenfell Team,Director for Resources and Assets,,Gerda Security Products Ltd ,1234642,,,,23/04/2020,2200091585,"1,301.50",,Building Maintenace and Improvement :E12,,,,,,No
The Royal Borough of Kensington and Chelsea,RBKC,,Grenfell Team,Director for Resources and Assets,,Gerda Security Products Ltd ,1234642,,,,01/05/2020,2200093560,"1,050.00",,Building Maintenace and Improvement :E12,,,,,,No
The Royal Borough of Kensington and Chelsea,RBKC,,Grenfell Team,Director for Resources and Assets,,Gerda Security Products Ltd ,1234642,,,,20/05/2020,2200097552,"7,378.26",,Building Maintenace and Improvement :E12,,,,,,No
The Royal Borough of Kensington and Chelsea,RBKC,,Grenfell Team,Director for Resources and Assets,,Gerda Security Products Ltd ,1234642,,,,20/05/2020,2200097553,"4,828.06",,Building Maintenace and Improvement :E12,,,,,,No
The Royal Borough of Kensington and Chelsea,RBKC,,Grenfell Team,Director for Resources and Assets,,Gerda Security Products Ltd ,1234642,,,,15/06/2020,2200102920,"1,525.88",,Building Maintenace and Improvement :E12,,,,,,No
The Royal Borough of Kensington and Chelsea,RBKC,,Grenfell Team,Director for Resources and Assets,,LCH Consulting Limited,D000000023,,,,16/04/2020,3110181252,"8,450.82",,Hired and Contracted Services,,,,,,No
The Royal Borough of Kensington and Chelsea,RBKC,,Grenfell Team,Director for Grenfell,,Core Assets Childrens Services ,1233680,,,,20/04/2020,2200090649,"74,521.31",,Payments to Private Contractors,,,,,,No
The Royal Borough of Kensington and Chelsea,RBKC,,Resources & Assets,Financial Management,,Browne Jacobson Llp ,1232992,,,,06/05/2020,2200094750,"2,159.00",,Creditors Control : AP GRIR,,,,,,No
The Royal Borough of Kensington and Chelsea,RBKC,,Resources & Assets,Financial Management,,Browne Jacobson Llp ,1232992,,,,06/05/2020,2200094751,"3,979.00",,Creditors Control : AP GRIR,,,,,,No
The Royal Borough of Kensington and Chelsea,RBKC,,Grenfell Team,Director for Grenfell,,AJ Products (UK) Ltd,1269768,,,,30/06/2020,2200106024,"2,500.00",,General Refuse Collection and Disposal,,,,,,No
The Royal Borough of Kensington and Chelsea,RBKC,,Grenfell Team,Director for Grenfell,,Basis Ltd ,1232709,,,,22/05/2020,2200098058,595,,Training related expenditure,,,,,,No
The Royal Borough of Kensington and Chelsea,RBKC,,Grenfell Team,Director for Grenfell,,Basis Ltd ,1232709,,,,23/06/2020,2200104234,595,,Training related expenditure,,,,,,No
The Royal Borough of Kensington and Chelsea,RBKC,,Grenfell Team,Director for Grenfell,,Contour Direct Ltd ,1257919,,,,30/06/2020,2200106052,814,,"Publicity, Promotions and Advertisement",,,,,,No
The Royal Borough of Kensington and Chelsea,RBKC,,Grenfell Team,Director for Grenfell,,Eco Design Consultants,1265380,,,,06/04/2020,2200088148,"2,590.00",,Fees,,,,,,No
The Royal Borough of Kensington and Chelsea,RBKC,,Grenfell Team,Director for Grenfell,,Eco Design Consultants,1265380,,,,05/05/2020,2200094468,"1,785.00",,Fees,,,,,,No
The Royal Borough of Kensington and Chelsea,RBKC,,Grenfell Team,Director for Grenfell,,Noticeboard Company (Uk),1261784,,,,15/06/2020,2200102804,"1,990.00",,Furniture,,,,,,No
The Royal Borough of Kensington and Chelsea,RBKC,,Grenfell Team,Director for Grenfell,,PingLockker LTD ,1257077,,,,17/04/2020,2200090479,"6,000.00",,IT Software,,,,,,No
The Royal Borough of Kensington and Chelsea,RBKC,,Grenfell Team,Director for Grenfell,,Skilled Careers Limited,1265647,,,,02/04/2020,2200087484,"1,171.92",,Agency Staff,,,,,,No
The Royal Borough of Kensington and Chelsea,RBKC,,Grenfell Team,Director for Grenfell,,Skilled Careers Limited,1265647,,,,02/04/2020,2200087486,"1,048.00",,Agency Staff,,,,,,No
The Royal Borough of Kensington and Chelsea,RBKC,,Grenfell Team,Director for Grenfell,,Skilled Careers Limited,1265647,,,,02/04/2020,2200087487,838.4,,Agency Staff,,,,,,No
The Royal Borough of Kensington and Chelsea,RBKC,,Grenfell Team,Director for Grenfell,,Skilled Careers Limited,1265647,,,,02/04/2020,2200087488,"1,402.00",,Agency Staff,,,,,,No
The Royal Borough of Kensington and Chelsea,RBKC,,Grenfell Team,Director for Grenfell,,Skilled Careers Limited,1265647,,,,02/04/2020,2200087493,"1,234.80",,Agency Staff,,,,,,No
The Royal Borough of Kensington and Chelsea,RBKC,,Grenfell Team,Director for Grenfell,,Skilled Careers Limited,1265647,,,,09/04/2020,2200089003,"1,234.80",,Agency Staff,,,,,,No
The Royal Borough of Kensington and Chelsea,RBKC,,Grenfell Team,Director for Grenfell,,Skilled Careers Limited,1265647,,,,09/04/2020,2200089005,"1,349.43",,Agency Staff,,,,,,No
The Royal Borough of Kensington and Chelsea,RBKC,,Grenfell Team,Director for Grenfell,,Skilled Careers Limited,1265647,,,,09/04/2020,2200089007,"1,233.60",,Agency Staff,,,,,,No
The Royal Borough of Kensington and Chelsea,RBKC,,Grenfell Team,Director for Grenfell,,Skilled Careers Limited,1265647,,,,09/04/2020,2200089008,943.2,,Agency Staff,,,,,,No
The Royal Borough of Kensington and Chelsea,RBKC,,Grenfell Team,Director for Grenfell,,Skilled Careers Limited,1265647,,,,09/04/2020,2200089011,943.2,,Agency Staff,,,,,,No
The Royal Borough of Kensington and Chelsea,RBKC,,Grenfell Team,Director for Grenfell,,Skilled Careers Limited,1265647,,,,09/04/2020,2200089026,838.4,,Agency Staff,,,,,,No
The Royal Borough of Kensington and Chelsea,RBKC,,Grenfell Team,Director for Grenfell,,Skilled Careers Limited,1265647,,,,14/04/2020,2200089358,"1,314.38",,Agency Staff,,,,,,No
The Royal Borough of Kensington and Chelsea,RBKC,,Grenfell Team,Director for Grenfell,,Skilled Careers Limited,1265647,,,,15/04/2020,2200089957,759.8,,Agency Staff,,,,,,No
The Royal Borough of Kensington and Chelsea,RBKC,,Grenfell Team,Director for Grenfell,,Skilled Careers Limited,1265647,,,,16/04/2020,2200090088,987.84,,Agency Staff,,,,,,No
The Royal Borough of Kensington and Chelsea,RBKC,,Grenfell Team,Director for Grenfell,,Skilled Careers Limited,1265647,,,,16/04/2020,2200090090,986.88,,Agency Staff,,,,,,No
The Royal Borough of Kensington and Chelsea,RBKC,,Grenfell Team,Director for Grenfell,,Skilled Careers Limited,1265647,,,,16/04/2020,2200090093,"1,086.55",,Agency Staff,,,,,,No
The Royal Borough of Kensington and Chelsea,RBKC,,Grenfell Team,Director for Grenfell,,Skilled Careers Limited,1265647,,,,16/04/2020,2200090158,759.8,,Agency Staff,,,,,,No
The Royal Borough of Kensington and Chelsea,RBKC,,Grenfell Team,Director for Grenfell,,Skilled Careers Limited,1265647,,,,28/04/2020,2200092594,733.6,,Agency Staff,,,,,,No
The Royal Borough of Kensington and Chelsea,RBKC,,Grenfell Team,Director for Grenfell,,Skilled Careers Limited,1265647,,,,28/04/2020,2200092595,733.6,,Agency Staff,,,,,,No
The Royal Borough of Kensington and Chelsea,RBKC,,Grenfell Team,Director for Grenfell,,Skilled Careers Limited,1265647,,,,28/04/2020,2200092596,986.88,,Agency Staff,,,,,,No
The Royal Borough of Kensington and Chelsea,RBKC,,Grenfell Team,Director for Grenfell,,Skilled Careers Limited,1265647,,,,28/04/2020,2200092599,"1,104.08",,Agency Staff,,,,,,No
The Royal Borough of Kensington and Chelsea,RBKC,,Grenfell Team,Director for Grenfell,,Skilled Careers Limited,1265647,,,,28/04/2020,2200092602,987.84,,Agency Staff,,,,,,No
The Royal Borough of Kensington and Chelsea,RBKC,,Grenfell Team,Director for Grenfell,,Skilled Careers Limited,1265647,,,,05/05/2020,2200094428,943.2,,Agency Staff,,,,,,No
The Royal Borough of Kensington and Chelsea,RBKC,,Grenfell Team,Director for Grenfell,,Skilled Careers Limited,1265647,,,,05/05/2020,2200094432,943.2,,Agency Staff,,,,,,No
The Royal Borough of Kensington and Chelsea,RBKC,,Grenfell Team,Director for Grenfell,,Skilled Careers Limited,1265647,,,,05/05/2020,2200094434,"1,402.00",,Agency Staff,,,,,,No
The Royal Borough of Kensington and Chelsea,RBKC,,Grenfell Team,Director for Grenfell,,Skilled Careers Limited,1265647,,,,05/05/2020,2200094436,"1,234.80",,Agency Staff,,,,,,No
The Royal Borough of Kensington and Chelsea,RBKC,,Grenfell Team,Director for Grenfell,,Skilled Careers Limited,1265647,,,,07/05/2020,2200094983,943.2,,Agency Staff,,,,,,No
The Royal Borough of Kensington and Chelsea,RBKC,,Grenfell Team,Director for Grenfell,,Skilled Careers Limited,1265647,,,,07/05/2020,2200094986,"1,402.00",,Agency Staff,,,,,,No
The Royal Borough of Kensington and Chelsea,RBKC,,Grenfell Team,Director for Grenfell,,Skilled Careers Limited,1265647,,,,07/05/2020,2200095106,"1,111.32",,Agency Staff,,,,,,No
The Royal Borough of Kensington and Chelsea,RBKC,,Grenfell Team,Director for Grenfell,,Skilled Careers Limited,1265647,,,,12/05/2020,2200095728,733.6,,Agency Staff,,,,,,No
The Royal Borough of Kensington and Chelsea,RBKC,,Grenfell Team,Director for Grenfell,,Skilled Careers Limited,1265647,,,,15/05/2020,2200096769,"1,121.60",,Agency Staff,,,,,,No
The Royal Borough of Kensington and Chelsea,RBKC,,Grenfell Team,Director for Grenfell,,Skilled Careers Limited,1265647,,,,15/05/2020,2200096771,759.8,,Agency Staff,,,,,,No
The Royal Borough of Kensington and Chelsea,RBKC,,Grenfell Team,Director for Grenfell,,Skilled Careers Limited,1265647,,,,15/05/2020,2200096778,895.23,,Agency Staff,,,,,,No
The Royal Borough of Kensington and Chelsea,RBKC,,Grenfell Team,Director for Grenfell,,Skilled Careers Limited,1265647,,,,21/05/2020,2200097787,943.2,,Agency Staff,,,,,,No
The Royal Borough of Kensington and Chelsea,RBKC,,Grenfell Team,Director for Grenfell,,Skilled Careers Limited,1265647,,,,21/05/2020,2200097789,"1,476.80",,Agency Staff,,,,,,No
The Royal Borough of Kensington and Chelsea,RBKC,,Grenfell Team,Director for Grenfell,,Skilled Careers Limited,1265647,,,,21/05/2020,2200097794,"1,181.44",,Agency Staff,,,,,,No
The Royal Borough of Kensington and Chelsea,RBKC,,Grenfell Team,Director for Grenfell,,Skilled Careers Limited,1265647,,,,02/06/2020,2200100230,943.2,,Agency Staff,,,,,,No
The Royal Borough of Kensington and Chelsea,RBKC,,Grenfell Team,Director for Grenfell,,Skilled Careers Limited,1265647,,,,02/06/2020,2200100234,"1,181.44",,Agency Staff,,,,,,No
The Royal Borough of Kensington and Chelsea,RBKC,,Grenfell Team,Director for Grenfell,,Skilled Careers Limited,1265647,,,,04/06/2020,2200100758,733.6,,Agency Staff,,,,,,No
The Royal Borough of Kensington and Chelsea,RBKC,,Grenfell Team,Director for Grenfell,,Skilled Careers Limited,1265647,,,,11/06/2020,2200102244,943.2,,Agency Staff,,,,,,No
The Royal Borough of Kensington and Chelsea,RBKC,,Grenfell Team,Director for Grenfell,,Skilled Careers Limited,1265647,,,,11/06/2020,2200102245,"1,476.80",,Agency Staff,,,,,,No
The Royal Borough of Kensington and Chelsea,RBKC,,Grenfell Team,Director for Grenfell,,Skilled Careers Limited,1265647,,,,19/06/2020,2200103824,"1,476.80",,Agency Staff,,,,,,No
The Royal Borough of Kensington and Chelsea,RBKC,,Grenfell Team,Director for Grenfell,,Skilled Careers Limited,1265647,,,,19/06/2020,2200103825,943.2,,Agency Staff,,,,,,No
The Royal Borough of Kensington and Chelsea,RBKC,,Grenfell Team,Director for Grenfell,,Skilled Careers Limited,1265647,,,,19/06/2020,2200103855,759.8,,Agency Staff,,,,,,No
The Royal Borough of Kensington and Chelsea,RBKC,,Grenfell Team,Director for Grenfell,,Skilled Careers Limited,1265647,,,,19/06/2020,2200103868,"1,181.44",,Agency Staff,,,,,,No
The Royal Borough of Kensington and Chelsea,RBKC,,Grenfell Team,Director for Grenfell,,Skilled Careers Limited,1265647,,,,25/06/2020,2200104875,943.2,,Agency Staff,,,,,,No
The Royal Borough of Kensington and Chelsea,RBKC,,Grenfell Team,Director for Grenfell,,Skilled Careers Limited,1265647,,,,25/06/2020,2200104881,"1,476.80",,Agency Staff,,,,,,No
The Royal Borough of Kensington and Chelsea,RBKC,,Grenfell Team,Director for Grenfell,,The Hotline Group ,1235510,,,,01/04/2020,2200090381,517.81,,"Publicity, Promotions and Advertisement",,,,,,No
The Royal Borough of Kensington and Chelsea,RBKC,,Grenfell Team,Director for Grenfell,,The Hotline Group ,1235510,,,,19/06/2020,2200103765,530.71,,"Publicity, Promotions and Advertisement",,,,,,No
The Royal Borough of Kensington and Chelsea,RBKC,,Grenfell Team,Director for Grenfell,,Redefine Earls Court Management Ltd T/A Holiday Inn Express London,1231244,,,,05/06/2020,2200100968,"2,910.00",,Creditors Control : AP GRIR,,,,,,No
The Royal Borough of Kensington and Chelsea,RBKC,,Grenfell Team,Director for Grenfell,,Redefine Earls Court Management Ltd T/A Holiday Inn Express London,1231244,,,,05/06/2020,2200100970,"1,564.33",,Creditors Control : AP GRIR,,,,,,No
The Royal Borough of Kensington and Chelsea,RBKC,,Grenfell Team,Director for Grenfell,,Silverdoor Ltd,1261764,,,,15/04/2020,2200089926,"6,150.00",,Hire of Accommodation and Facilities,,,,,,No
The Royal Borough of Kensington and Chelsea,RBKC,,Grenfell Team,Director for Grenfell,,Silverdoor Ltd,1261764,,,,20/05/2020,2200097373,"6,355.00",,Hire of Accommodation and Facilities,,,,,,No
The Royal Borough of Kensington and Chelsea,RBKC,,Grenfell Team,Director for Grenfell,,Silverdoor Ltd,1261764,,,,20/05/2020,2200097669,"12,505.00",,Hire of Accommodation and Facilities,,,,,,No
The Royal Borough of Kensington and Chelsea,RBKC,,Grenfell Team,Director for Grenfell,,A Hall Maintenance ,1232090,,,,01/06/2020,2200099781,"1,585.00",,Hire of Accommodation and Facilities,,,,,,No
The Royal Borough of Kensington and Chelsea,RBKC,,Grenfell Team,Director for Grenfell,,Redact Details,1235698,,,,21/04/2020,3110181772,"12,000.00",,Temporary Accommodation,,,,,,No
The Royal Borough of Kensington and Chelsea,RBKC,,Grenfell Team,Director for Grenfell,,Anscombe & Ringland The Chancellors Group of Estate Agents,1232406,,,,01/04/2020,3110176490,"3,800.00",,Temporary Accommodation,,,,,,No
The Royal Borough of Kensington and Chelsea,RBKC,,Grenfell Team,Director for Grenfell,,Anscombe & Ringland The Chancellors Group of Estate Agents,1232406,,,,01/05/2020,3110185303,"3,800.00",,Temporary Accommodation,,,,,,No
The Royal Borough of Kensington and Chelsea,RBKC,,Grenfell Team,Director for Grenfell,,Anscombe & Ringland The Chancellors Group of Estate Agents,1232406,,,,02/06/2020,3110193893,"3,800.00",,Temporary Accommodation,,,,,,No
The Royal Borough of Kensington and Chelsea,RBKC,,Grenfell Team,Director for Grenfell,,Redact Details,1232718,,,,08/04/2020,3110178534,"2,145.00",,Temporary Accommodation,,,,,,No
The Royal Borough of Kensington and Chelsea,RBKC,,Grenfell Team,Director for Grenfell,,Redact Details,1232718,,,,12/05/2020,3110189117,"2,145.00",,Temporary Accommodation,,,,,,No
The Royal Borough of Kensington and Chelsea,RBKC,,Grenfell Team,Director for Grenfell,,Redact Details,1232718,,,,10/06/2020,3110197002,"2,145.00",,Temporary Accommodation,,,,,,No
The Royal Borough of Kensington and Chelsea,RBKC,,Grenfell Team,Director for Grenfell,,Chesterton Global Ltd ,1233351,,,,27/04/2020,3110182631,"2,331.87",,Temporary Accommodation,,,,,,No
The Royal Borough of Kensington and Chelsea,RBKC,,Grenfell Team,Director for Grenfell,,Chesterton Global Ltd ,1233351,,,,26/05/2020,3110192380,"2,390.17",,Temporary Accommodation,,,,,,No
The Royal Borough of Kensington and Chelsea,RBKC,,Grenfell Team,Director for Grenfell,,Chesterton Global Ltd ,1233351,,,,24/06/2020,3110201209,"2,390.17",,Temporary Accommodation,,,,,,No
The Royal Borough of Kensington and Chelsea,RBKC,,Grenfell Team,Director for Grenfell,,Redact Details,1235759,,,,06/04/2020,3110177352,"2,175.25",,Temporary Accommodation,,,,,,No
The Royal Borough of Kensington and Chelsea,RBKC,,Grenfell Team,Director for Grenfell,,Redact Details,1235759,,,,08/05/2020,3110186631,"2,175.25",,Temporary Accommodation,,,,,,No
The Royal Borough of Kensington and Chelsea,RBKC,,Grenfell Team,Director for Grenfell,,Redact Details,1235759,,,,09/06/2020,3110196862,"2,175.25",,Temporary Accommodation,,,,,,No
